Workbook

Sheet Guía Rápida
B2: Guía Rápida
B3: A) Al abrir el simulador da click en "Habilitar Contenido" en caso de aparecer esta opción.
B4: B) Seleccionar el Perfil del Cliente "Premier, No Premier"
B5: C) Seleccionar el tipo de simulación "Por Valor de la Vivienda, Por Monto del Crédito Y Valor de la Vivienda, Por Ingresos del Cliente"
B6: D) Seleccionar Producto "Adquisición, Exclusiva, Liquidez, Pago de Hipoteca"
B7: E) Seleccionar Tipo de Financiamiento "Tradicional, Cofinavit, Apoyo Infonavit, Respalda2, Alia2"
B8: F) Introducir el valor de la vivienda
B9: G) Seleccionar Plazo "5,10,15,20 años"
B10: H) Si es el caso introduce el importe del crédito o el ingreso mensual del cliente
B11: I) Si es el caso, introduce el crédito Infonavit o FOVISSSTE y el saldo de la subcuenta.
B12: J) Seleccionar si es cliente Nómina HSBC o No
B13: K) En caso de haber elegido un "Adquisición, No Premier" aparecerá un combo para elegir una tasa, seleccionar alguna. Con la tasa más baja solo accedemos al 65% de LTV, con la tasa más alta solo accedemos al 75% de LTV
B14: L) En caso de elegir la tasa más alta (Nivel de riesgo alto) y solicitar un aforo superior al 75%, seleccionar "SI" en el combo "LTV 90%", con esto se cobrará la sobretasa
B15: M) En caso de tener duda o creer que algo puede estar afectando la simulación selecciona "Nueva Cotización" y vuelve a empezar

Sheet Resumen
L3: Cliente HSBC | M3: Tipo | N3: Producto | O3: Tipo Financiamiento | P3: Plazo | Q3: Aguascalientes | R3: =IF($N$20="VERDADERO",$N$28,0.3174) -> 0.3174 | U3: Pago Fijo
D4: CREDITO HIPOTECARIO | L4: SI | M4: Por monto de crédito y valor de la vivienda | N4: Adquisicion | O4: Tradicional | P4: 5 | Q4: Baja California | R4: =IF($N$20="VERDADERO",$N$28,0.3174) -> 0.3174 | BG4: AdquisicionPremier50.9 | BH4: 20.86 | BJ4: AdquisicionPremier50.9 | BK4: 20.26
L5: NO | M5: Por ingresos del cliente | N5: Pago de Hipoteca | O5: Apoyo Infonavit | P5: 10 | Q5: Baja California Sur | R5: 0.3174 | T5: Segment | U5: Premier | Y5: No premier | AK5: Exclusiva | AO5: Pago Hipoteca | AS5: Liquidez Premier | AV5: Liquidez No Premier | BB5: Nómina Especial | BG5: AdquisicionPremier100.9 | BH5: 12.91 | BJ5: AdquisicionPremier100.9 | BK5: 12.16
C6: =TODAY() -> 2025-09-03 | L6: AdquisicionNo PremierTradicional | M6: Por Valor de la Vivienda | N6: Liquidez | O6: Cofinavit | P6: 15 | Q6: Campeche | R6: 0.3174 | U6: 5 años | V6: 10años | W6: 15años | X6: 20años | Y6: 5 años | Z6: 5 años | AA6: 5 años | AB6: 10años | AC6: 10años | AD6: 10años | AE6: 15años | AF6: 15años | AG6: 20años | AH6: 20años | AI6: 20años | AJ6: 20años | AK6: 5 años | AL6: 10años | AM6: 15años | AN6: 20años | AO6: 5 años | AP6: 10años | AQ6: 15años | AR6: 20años | AS6: 5 años | AT6: 10años | AU6: 15años | AV6: 5 años | AW6: 5 años | AX6: 10años | AY6: 10años | AZ6: 15años | BA6: 15años | BB6: 5 años | BC6: 10años | BD6: 15años | BE6: 20años | BG6: AdquisicionPremier150.9 | BH6: 10.56 | BJ6: AdquisicionPremier150.9 | BK6: 9.7
L7: AdquisicionPremierTradicional | M7: Por Campaña | N7: Exclusiva | O7: CI+CB | P7: =IF(D21=N6,"",20) -> 20 | Q7: Coahuila | R7: 0.3174 | T7: Rate | U7: 0.092 | V7: 0.0945 | W7: 0.097 | X7: 0.097 | Y7: 0.095 | Z7: 0.1 | AA7: 0.104 | AB7: 0.0975 | AC7: 0.1025 | AD7: 0.1065 | AE7: 0.1 | AF7: 0.105 | AG7: 0.109 | AH7: 0.1 | AI7: 0.105 | AJ7: 0.109 | AK7: 0.097 | AL7: 0.0995 | AM7: 0.102 | AN7: 0.102 | AO7: 0.092 | AP7: 0.0945 | AQ7: 0.097 | AR7: 0.097 | AS7: 0.115 | AT7: 0.1175 | AU7: 0.12 | AV7: 0.12 | AW7: 0.13 | AX7: 0.1225 | AY7: 0.1325 | AZ7: 0.125 | BA7: 0.135 | BB7: 0.094 | BC7: 0.0965 | BD7: 0.099 | BE7: 0.099 | BG7: AdquisicionPremier200.9 | BH7: 9.45 | BJ7: AdquisicionPremier200.9 | BK7: 8.5
L8: Perfil | N8: Pago Hipoteca+Liquidez | O8: Alia2 | P8: =IF(AND(D21="Exclusiva",D22="Tradicional"),25,IF(OR(D22=O5,D22=O6,$D$21&$D$22&N20=$N$24),25,"")) -> 25 | Q8: Colima | R8: 0.3174 | T8: Opening Fee | U8: 0 | V8: 0 | W8: 0 | X8: 0 | Y8: 0.01 | Z8: 0.01 | AA8: 0.01 | AB8: 0.01 | AC8: 0.01 | AD8: 0.01 | AE8: 0.01 | AF8: 0.01 | AG8: 0.01 | AH8: 0.01 | AI8: 0.01 | AJ8: 0.01 | AK8: 0.01 | AL8: 0.01 | AM8: 0.01 | AN8: 0.01 | AO8: 0 | AP8: 0 | AQ8: 0 | AR8: 0 | AS8: 0 | AT8: 0 | AU8: 0 | AV8: 0.015 | AW8: 0.015 | AX8: 0.015 | AY8: 0.015 | AZ8: 0.015 | BA8: 0.015 | BB8: 0 | BC8: 0 | BD8: 0 | BE8: 0 | BG8: AdquisicionNo Premier50.5 | BH8: 21 | BJ8: AdquisicionNo Premier50.5 | BK8: 20.41
C9: Nombre del ejecutivo | F9: Teléfono | N9: Nomina Especial | O9: Casa con casa | Q9: Chiapas | R9: 0.3174
C10: Nombre del cliente | F10: Teléfono | Q10: Chihuahua | R10: 0.3174
C11: Conjunto | M11: AdquisicionNo PremierCI+CB | Q11: Ciudad de México | R11: 0.3174
M12: AdquisicionPremierCI+CB | Q12: Durango | R12: 0.3174
Q13: Estado de México | R13: 0.3174
C14: Instrucciones: Llenar solo los campos en gris claro. | M14: AdquisicionNo PremierCasa con casa | N14: =L189 -> Pago Hipoteca+LiquidezAlto Valor | Q14: Guanajuato | R14: 0.3174
C15: Datos del Cliente | F15: Resultados | M15: AdquisicionPremierCasa con casa | Q15: Guerrero | R15: 0.3174
C16: Perfil Cliente | D16: No Premier | F16: Desembolso inicial | M16: AdquisicionNo PremierApoyo Infonavit | Q16: Hidalgo | R16: 0.3174
C17: ¿Es cliente Nómina HSBC? | D17: NO | F17: =IF(G17>=0,"Enganche","") -> Enganche | G17: =IFERROR(IF(J4<>"","-",IF(D21=V78,0,IF(D21=V79,0,IF(D21=V80,0,D26-IF(D22=O8,D32+D33+H25,IF(D22=O7,D33+H25,IF(D22=O6,D32+D33+H25,H25))))))),0) -> 90000 | M17: AdquisicionNo PremierCofinavit | N17: =9.8%-IF(D28=5,0%,IF(D28=10,0%,0)) -> 0.098 | Q17: Jalisco | R17: 0.3174
C18: Estado Vivienda | D18: Ciudad de México | F18: Gasto de Preoriginación - Avalúo Hipotecario | G18: =IF(AND(D21="Adquisicion",D22="Tradicional"),0,IF(OR(D21&D22&N20=N22,D21&D22&N20=N23,D21&D22&N20=N24),0,VLOOKUP(D26,Q71:R79,2))) -> 9222 | Q18: Michoacán | R18: 0.3174
F19: C. Contratación Crédito | G19: =IF(N20=TRUE,0%, IF(AND(OR(D22="Cofinavit",D22="Apoyo Infonavit"),D16="Premier",F19="C. Contratación Crédito"),0.5%, IF(AND(OR(D22="Cofinavit",D22="Apoyo Infonavit"),D16="Premier",F19="C. Penalización Pago Anticipado"),1.5%, IF(AND(OR(D22="Cofinavit",D22="Apoyo Infonavit"),D16="No Premier",F19="C. Contratación Crédito"),0.5%, IF(AND(OR(D22="Cofinavit",D22="Apoyo Infonavit"),D16="No Premier",F19="C. Penalización Pago Anticipado"),2.5%, IF(F19="Sin C Contratación Crédito",0%,0% )))))) -> 0.005 | H19: =IF(F19="C. Penalización Pago Anticipado",0,IFERROR(IF($D$25="Por ingresos del cliente",$N$58,IF($D$27=0,$M$83,$M$83))*G19,0)) -> 13500 | M19: C. Contratación Crédito | N19: Hipoteca Verde? | Q19: Morelos | R19: 0.3174
C20: Datos del crédito | F20: Gastos de Investigación | G20: =IF(D21=N8,0,0) -> 0 | M20: C. Penalización Pago Anticipado | N20: FALSE | Q20: Nayarit | R20: 0.3174
C21: Escoja la opción de Producto | D21: Adquisicion | F21: Gastos Notariales | G21: 0.07 | H21: =IF(J4<>"","-",IF(OR(D21=V77,D21=V82),D26*G21,IF(OR(D21=V79,D21=V78,D21=V80),H25*G21,IF(OR(D21=V81),G21*D26,"-")))) -> 210000 | M21: Sin C Contratación Crédito | N21: =IF(D28=5,9.75%,IF(D28=10,9.75%,9.75%)) -> 0.0975 | Q21: Nuevo León | R21: 0.3174
C22: =IF(OR(D21=N4,D21=N7,D21=N9),L161,"") -> Tipo de Programa | D22: Apoyo Infonavit | F22: Desembolso Total | G22: =IF(J4<>"","-",IF(G17<=0,0,G17)+IF(ISNUMBER(G18),G18,0)+IF(ISNUMBER(G20),G20,0)+IF(ISNUMBER(H21),H21,0))+IF(ISNUMBER(H19),H19,0) -> 322722 | N22: AdquisicionApoyo InfonavitVERDADERO | Q22: Oaxaca | R22: 0.3174
N23: AdquisicionCofinavitVERDADERO | Q23: Puebla | R23: 0.3174
C24: =IF(D21="Pago de Hipoteca","¿La hipoteca proviene de un Cofinavit, Apoyo, Aliados o Respaldados?",IF(D22="CI+CB","¿Es Cliente Asalariado?","")) ->  | F24: Condiciones del crédito | N24: AdquisicionTradicionalVERDADERO | Q24: Querétaro | R24: 0.3174
C25: Tipo de calculo | D25: Por Valor de la Vivienda | F25: Monto de crédito Total | G25: =IFERROR(H25/D26,0) -> 0.97 | H25: =IFERROR(IF(AND(D21="Liquidez",IF(D3<>"","-",IF(D21=N8,MIN(M58,D31+D26*0.2),IF(OR(D21=N4,D21=N7,D21=N9),M64,M58)))>70000000),70000000,IF(D3<>"","-",IF(D21=N8,MIN(M58,D31+D26*0.7),IF(OR(D21=N4,D21=N7,D21=N9),M64,M58))))-IF(D25=M6,D34,0),0) -> 2910000 | Q25: Quintana Roo | R25: 0.3174
C26: =IF(D22="Casa con casa", "Valor de Vivienda Garantía", "Valor de la Vivienda a Adquirir") -> Valor de la Vivienda a Adquirir | D26: 3000000 | F26: =IF(D22="CI+CB", "Tasa HSBC", "Tasa Final") -> Tasa Final | G26: =IF(AND(D21="AdquisiciOn",D22="Tradicional"),9.75%,IF(N20=TRUE,9.75%,9.8%)) -> 0.098 | I26: =IF(AND(D22="Tradicional",G26=9.75%),"El Esquema Tradicional solo Aplica para Hipoteca Verde","") ->  | Q26: San Luis Potosí | R26: 0.3174
C27: =IF(OR(D25=M5,D25=M6, D25=M7),"",L163) ->  | F27: Pago mensual total HSBC | G27: =IF(Amortización!E16="SI",Amortización!K24,Amortización!K21) -> 26648.034 | N27: 0.37 | Q27: Sinaloa | R27: 0.3174
C28: Plazo solicitado (años) | D28: 20 | F28: =IF(D22=O7,"CAT HSBC**","CAT**") -> CAT** | G28: =Amortización!K17 -> 0.1139160858 | N28: 0.292 | Q28: Sonora | R28: 0.3174
C29: =IF(OR($D$25=$M$5,AND(OR(D21=N4,D21=N7,D21=N9),D22=O5)),"Ingreso Mensual Neto*",IF(D25=M7,"Pago mensual máximo","")) -> Ingreso Mensual Neto* | D29: 50000 | F29: =IF(OR(D25="Por ingresos del cliente",D25="Por Campaña"),"Monto Máximo Por Ingresos","Ingreso Neto Requerido") -> Ingreso Neto Requerido | G29: =IFERROR(IF(D26="","-",IF(OR(D25="Por ingresos del cliente",D25="Por Campaña"),ROUND(M69/M76*1000,-3),IF(D21=V79,MIN(5000000,IF(OR(D25=M4,D25=M6),VLOOKUP(D28,V84:W87,2,0),ROUND(M69/M76*1000,-3))),IF(OR(D25=M4,D25=M6),VLOOKUP(D28,V84:W87,2,0))))),0) -> 40988.70864 | Q29: Tabasco | R29: 0.3174
C30: =IF($D$25=$M$5,"Pago Mensual en Buro(Obligaciones)","") ->  | Q30: Tamaulipas | R30: 0.3174
C31: =IF(OR(D25&D21=M49,D25&D21=M50,D25&D21=M51),"Monto Hipoteca Actual","") ->  | F31: =IF(D21=N8,"Pago Mensual",IF(D22="CI+CB","Distribución del Crédito","")) ->  | I31: Mensualidad | L31: =AF78 -> 0 | Q31: Tlaxcala | R31: 0.3174
C32: =IF(AND(OR(D21=N4,D21=N7,D21=N9),D22="Cofinavit"),"Crédito Otorgado menos Ecotecnologías",IF(AND(OR(D21=N4,D21=N7),D22="Alia2"),"Crédito FOVISSSTE","")) ->  | F32: =IF(D21=N8,"Pago Hipoteca",IF(D22=O7,"Crédito HSBC - Tasa "&(G26*100)&"%","")) ->  | G32: =IF(D22=O7,H25-G33,PMT($G$26/12,$D$28*12,-$D$31)+($M$73*1000)+($D$31*$L$86/1000)) -> 222.18 | I32: =IF(D22=O7,Amortización!K21,"") ->  | Q32: Veracruz | R32: 0.3174
C33: =IF(AND(OR(D21=N4,D21=N7, D21=N9),D22="Cofinavit"),"Saldo Subcuenta de Vivienda",IF(AND(OR(D21=N4,D21=N7),D22="CI+CB"),"Saldo Subcuenta de Vivienda",IF(AND(OR(D21=N4,D21=N7),D22=O8),"Saldo Subcuenta de Vivienda",""))) ->  | F33: =IF(D21=N8,"Liquidez (Sin IVA)",IF(D22=O7,"Crédito Infonavit - Tasa 10.45%","")) ->  | G33: =IF(D22=O7,ROUNDDOWN(MIN(H25*0.3,325*3153.7),2),PMT($G$26/12,$D$28*12,-(H25-D31))+((H25-D31)*$L$86/1000)) -> 28978.02295 | I33: =IF(D22=O7,Amortización!AY12,"") ->  | Q33: Yucatán | R33: 0.3174
C34: =IF(OR(D25&D21=M47,D25&D21=M48),"Enganche Adicional","") -> Enganche Adicional | D34: 0 | Q34: Zacatecas | R34: 0.3174
C35: =IF(D23=L171,"Comportamiento Crediticio","") ->  | D35: 3
C36: Mensajes clave
C37: =IF(ISERROR(VLOOKUP(TRUE,$N$177:$O$200,2,0)),"",VLOOKUP(TRUE,$N$177:$O$200,2,0)) -> 
C38: =IF(C23="Elige una tasa de interés", "EN BASE AL ESTUDIO DE CREDITO DEL CLIENTE Y SU AFORO, SE ASIGNARA UNA TASA DE INTERES","") -> 
C39: =IF(C24="Se requiere LTV al 90%?", "EL CLIENTE PUEDE ACCEDER AL AFORO HASTA EL 90% SI ASI LO REQUIERE","") -> 
C40: * Condiciones aplicables en caso de ser asalariado. En caso de tener otra actividad, revisar en comparativo los plazos. | L40: Premier | M40: =K41&K43 -> 0.0975Adquisicion | T40: Research Fee | U40: 0 | V40: 0 | W40: 0 | X40: 0 | Y40: 0 | Z40: 0 | AA40: 0 | AB40: 0 | AC40: 0 | AD40: 0 | AE40: 0 | AF40: 0 | AG40: 0 | AH40: 0 | AI40: 0 | AJ40: 0 | AK40: 0 | AL40: 0 | AM40: 0 | AN40: 0 | AO40: 0 | AP40: 0 | AQ40: 0 | AR40: 0 | AS40: 0 | AT40: 0 | AU40: 0 | AV40: 0 | AW40: 0 | AX40: 0 | AY40: 0 | AZ40: 0 | BA40: 0 | BB40: 0 | BC40: 0 | BD40: 0 | BE40: 0 | BG40: AdquisicionNo Premier50.75 | BH40: 21.25 | BJ40: AdquisicionNo Premier50.75 | BK40: 20.65
C41: ** CAT HSBC promedio sin IVA. Informativo. Tasa fija anual. Cobertura Nacional. Crédito en Moneda Nacional. Información sujeta a cambios sin previo aviso. | K41: =L170 -> 0.0975 | L41: No Premier | M41: 0 | T41: Appraisal | U41: Sí | V41: Sí | W41: Sí | X41: Sí | Y41: Sí | Z41: Sí | AA41: Sí | AB41: Sí | AC41: Sí | AD41: Sí | AE41: Sí | AF41: Sí | AG41: Sí | AH41: Sí | AI41: Sí | AJ41: Sí | AK41: Sí | AL41: Sí | AM41: Sí | AN41: Sí | AO41: Sí | AP41: Sí | AQ41: Sí | AR41: Sí | AS41: Sí | AT41: Sí | AU41: Sí | AV41: Sí | AW41: Sí | AX41: Sí | AY41: Sí | AZ41: Sí | BA41: Sí | BB41: Sí | BC41: Sí | BD41: Sí | BE41: Sí | BG41: AdquisicionNo Premier50.9 | BH41: 21.44 | BJ41: AdquisicionNo Premier50.9 | BK41: 20.84
C42: Aplican condiciones. Sujeto a aprobación de crédito. Consulta términos, condiciones de contratación y comisiones en www.hsbc.com.mx | K42: =L171 -> 0.0975 | L42: =K42&K43 -> 0.0975Adquisicion | M42: 0.01 | N42: AdquisicionNo Premier | O42: =IF(D23=L168,90%,IF(D23=L169,94%,IF(D23=L170,85%,IF(D23&D35=L183,75%,90%)))) -> 0.9 | T42: LTV | U42: 0.9 | V42: 0.9 | W42: 0.9 | X42: 0.9 | Y42: 0.5 | Z42: 0.75 | AA42: 0.9 | AB42: 0.5 | AC42: 0.75 | AD42: 0.9 | AE42: 0.5 | AF42: 0.75 | AG42: 0.9 | AH42: 0.5 | AI42: 0.75 | AJ42: 0.9 | AK42: 0.9 | AL42: 0.9 | AM42: 0.9 | AN42: 0.9 | AO42: 0.85 | AP42: 0.85 | AQ42: 0.85 | AR42: 0.85 | AS42: 0.7 | AT42: 0.7 | AU42: 0.7 | AV42: 0.5 | AW42: 0.7 | AX42: 0.5 | AY42: 0.7 | AZ42: 0.5 | BA42: 0.7 | BB42: 0.9 | BC42: 0.9 | BD42: 0.9 | BE42: 0.9 | BG42: AdquisicionNo Premier100.5 | BH42: 13.08 | BJ42: AdquisicionNo Premier100.5 | BK42: 12.32
C43: Información mostrada para fines informativos y de comparación exclusivamente. No constituye obligación alguna para HSBC o las Aseguradoras indicadas. | K43: Adquisicion | L43: =D21&D22 -> AdquisicionApoyo Infonavit | N43: Pago de HipotecaNo Premier | O43: =IF(H25/D26<=85%,85%,IF(AND(H25/D26<=95%,D24="SI"),85%,"")) ->  | T43: Monthly Fee (sin Iva) | U43: 0 | V43: 0 | W43: 0 | X43: 0 | Y43: 348 | Z43: 348 | AA43: 348 | AB43: 348 | AC43: 348 | AD43: 348 | AE43: 348 | AF43: 348 | AG43: 348 | AH43: 348 | AI43: 348 | AJ43: 348 | AK43: 0 | AL43: 0 | AM43: 0 | AN43: 0 | AO43: 348 | AP43: 348 | AQ43: 348 | AR43: 348 | AS43: 348 | AT43: 348 | AU43: 348 | AV43: 348 | AW43: 348 | AX43: 348 | AY43: 348 | AZ43: 348 | BA43: 348 | BB43: 0 | BC43: 0 | BD43: 0 | BE43: 0 | BG43: AdquisicionNo Premier100.75 | BH43: 13.35 | BJ43: AdquisicionNo Premier100.75 | BK43: 12.59
C44: El Seguro de Vida es registrado y operado por HSBC Seguros S.A. de CV., Grupo Financiero HSBC. El Seguro de Daños es registrado y operado por AXA Seguros S.A. de C.V. | K44: =K43&L40 -> AdquisicionPremier | L44: Liga | N44: LiquidezNo Premier | O44: =IF(H25/D26<=50%,50%,IF(H25/D26<=80%,80%,"")) ->  | T44: Pago Por mil | U44: 20.86 | V44: 12.91 | W44: 10.56 | X44: 9.45 | Y44: 21 | Z44: 21.25 | AA44: 21.44 | AB44: 13.08 | AC44: 13.35 | AD44: 13.58 | AE44: 10.75 | AF44: 11.05 | AG44: 11.3 | AH44: 9.65 | AI44: 9.98 | AJ44: 10.25 | AK44: 21.1 | AL44: 13.19 | AM44: 10.87 | AN44: 9.78 | AO44: 20.86 | AP44: 12.91 | AQ44: 10.56 | AR44: 9.45 | AS44: 21.99 | AT44: 14.2 | AU44: 12 | AV44: 22.24 | AW44: 22.75 | AX44: 14.49 | AY44: 15.08 | AZ44: 12.33 | BA44: 12.98 | BB44: 20.95 | BC44: 13.02 | BD44: 10.68 | BE44: 9.58 | BG44: AdquisicionNo Premier100.9 | BH44: 13.58 | BJ44: AdquisicionNo Premier100.9 | BK44: 12.81
L45: =(IF(D21&D16=N7&L40,N4,D21)) -> Adquisicion | M45: =D21&D16&D28&O50 -> AdquisicionNo Premier200.9 | N45: AdquisicionPremier | O45: =IF(AND(D22="CI+CB",D24="SI"),90%,IF(OR(H25/D26<=90%,D22=O5,D22=O6),90%,90%)) -> 0.9 | T45: Factor de Línea | U45: 21.49 | V45: 13.54 | W45: 11.19 | X45: 10.08 | Y45: 21.97 | Z45: 22.22 | AA45: 22.41 | AB45: 14.05 | AC45: 14.32 | AD45: 14.55 | AE45: 11.72 | AF45: 12.02 | AG45: 12.27 | AH45: 10.62 | AI45: 10.95 | AJ45: 11.22 | AK45: 21.73 | AL45: 13.82 | AM45: 11.5 | AN45: 10.41 | AO45: 21.83 | AP45: 13.88 | AQ45: 11.53 | AR45: 10.42 | AS45: 22.96 | AT45: 15.17 | AU45: 12.97 | AV45: 23.21 | AW45: 23.72 | AX45: 15.46 | AY45: 16.05 | AZ45: 13.3 | BA45: 13.95 | BB45: 21.58 | BC45: 13.65 | BD45: 11.31 | BE45: 10.21 | BG45: AdquisicionNo Premier150.5 | BH45: 10.75 | BJ45: AdquisicionNo Premier150.5 | BK45: 9.88
H46: Versión M110 2025.09.02 | L46: =(IF(D21&D16=N7&L40,N4,D21)&D16&D28) -> AdquisicionNo Premier20 | N46: LiquidezPremier | O46: =IF(H25/D26<=50%,50%,IF(H25/D26<=80%,80%,"")) ->  | T46: CaT | U46: 0.1121395052 | V46: 0.1123844645 | W46: 0.1136170685 | X46: 0.112644602 | Y46: 0.1319832009 | Z46: 0.1331994651 | AA46: 0.1366819827 | AB46: 0.1285718338 | AC46: 0.1302007031 | AD46: 0.1341027646 | AE46: 0.1280470607 | AF46: 0.1300829161 | AG46: 0.1339573905 | AH46: 0.125937852 | AI46: 0.1283281486 | AJ46: 0.1322447121 | AK46: 0.122374832 | AL46: 0.1206130811 | AM46: 0.1211379222 | AN46: 0.1197416463 | AO46: 0.1172043485 | AP46: 0.1173667351 | AQ46: 0.1182404626 | AR46: 0.1169777705 | AS46: 0.1450956399 | AT46: 0.1441838717 | AU46: 0.1446123011 | AV46: 0.1622471431 | AW46: 0.1697431932 | AX46: 0.1573170912 | AY46: 0.1654434508 | AZ46: 0.1565655314 | BA46: 0.1649007745 | BB46: 0.1141433518 | BC46: 0.1145455795 | BD46: 0.1157401184 | BE46: 0.1147699478 | BG46: AdquisicionNo Premier150.75 | BH46: 11.05 | BJ46: AdquisicionNo Premier150.75 | BK46: 10.17
C47: * Condiciones aplicables en caso de ser asalariado. En caso de tener otra actividad, revisar en comparativo los plazos. | L47: =(IF(D21&D16=N7&L40,N4,D21)&D16&D28&O50) -> AdquisicionNo Premier200.9 | M47: =M6&N4 -> Por Valor de la ViviendaAdquisicion | N47: ExclusivaNo Premier | O47: =IF(H25/D26<=97%,90%,"") -> 0.9 | BG47: AdquisicionNo Premier150.9 | BH47: 11.3 | BJ47: AdquisicionNo Premier150.9 | BK47: 10.41
L48: =(IF(D21&D16=N7&L40,N4,D21)&D28) -> Adquisicion20 | M48: =M6&N7 -> Por Valor de la ViviendaExclusiva | N48: ExclusivaPremier | O48: =IF(H25/D26<=97%,90%,"") -> 0.9 | BG48: AdquisicionNo Premier200.5 | BH48: 9.65 | BJ48: AdquisicionNo Premier200.5 | BK48: 8.69
L49: =(IF(D21&D16=N7&L40,N4,D21)&D28) -> Adquisicion20 | M49: =M4&N8 -> Por monto de crédito y valor de la viviendaPago Hipoteca+Liquidez | N49: Nomina Especial | O49: 0.9 | BG49: AdquisicionNo Premier200.75 | BH49: 9.98 | BJ49: AdquisicionNo Premier200.75 | BK49: 9.01
L50: =(IF(D21&D16=N7&L40,N4,D21)&D16&D28) -> AdquisicionNo Premier20 | M50: =M6&N8 -> Por Valor de la ViviendaPago Hipoteca+Liquidez | N50: LTV | O50: =IF(D21=N4,O42,IF(D21=N5,O43,IF(D21=N6,O44,IF(D21=N7,O47,IF(D21=N9,O49))))) -> 0.9 | U50: Pago Bajo | BG50: AdquisicionNo Premier200.9 | BH50: 10.25 | BJ50: AdquisicionNo Premier200.9 | BK50: 9.27
L51: LTV | M51: =M5&N8 -> Por ingresos del clientePago Hipoteca+Liquidez | BG51: ExclusivaNo Premier50.9 | BH51: 21.1 | BJ51: ExclusivaNo Premier50.9 | BK51: 20.5
L52: =IF($L$45="LiquidezPremier",N52,M52) -> 0.5 | M52: 0.5 | N52: 0.7 | O52: 0.85 | T52: Segment | U52: Premier | Y52: No premier | AK52: Exclusiva | AO52: Pago Hipoteca | BB52: Nómina Especial | BG52: ExclusivaNo Premier100.9 | BH52: 13.19 | BJ52: ExclusivaNo Premier100.9 | BK52: 12.43
L53: =IF($L$45="LiquidezPremier",N53,M53) -> 0.7 | M53: 0.7 | N53: 0.7 | O53: 0.85 | U53: 5 años | V53: 10años | W53: 15años | X53: 20años | Y53: 5 años | Z53: 5 años | AA53: 5 años | AB53: 10años | AC53: 10años | AD53: 10años | AE53: 15años | AF53: 15años | AG53: 20años | AH53: 20años | AI53: 20años | AJ53: 20años | AK53: 5 años | AL53: 10años | AM53: 15años | AN53: 20años | AO53: 5 años | AP53: 10años | AQ53: 15años | AR53: 20años | BB53: 5 años | BC53: 10años | BD53: 15años | BE53: 20años | BG53: ExclusivaNo Premier150.9 | BH53: 10.87 | BJ53: ExclusivaNo Premier150.9 | BK53: 10
L54: =IF($L$45="LiquidezPremier",N54,M54) -> 0.75 | M54: 0.75 | N54: 0.7 | O54: 0.85 | T54: Rate | U54: 0.092 | V54: 0.0945 | W54: 0.097 | X54: 0.097 | Y54: 0.095 | Z54: 0.1 | AA54: 0.104 | AB54: 0.0975 | AC54: 0.1025 | AD54: 0.1065 | AE54: 0.1 | AF54: 0.105 | AG54: 0.109 | AH54: 0.1 | AI54: 0.105 | AJ54: 0.109 | AK54: 0.097 | AL54: 0.0995 | AM54: 0.102 | AN54: 0.102 | AO54: 0.092 | AP54: 0.0945 | AQ54: 0.097 | AR54: 0.097 | BB54: 0.094 | BC54: 0.0965 | BD54: 0.099 | BE54: 0.099 | BG54: ExclusivaNo Premier200.9 | BH54: 9.78 | BJ54: ExclusivaNo Premier200.9 | BK54: 8.82
L55: =IF($L$45="LiquidezPremier",N55,M55) -> 0.85 | M55: 0.85 | N55: 0.7 | O55: 0.85 | T55: Opening Fee | U55: 0 | V55: 0 | W55: 0 | X55: 0 | Y55: 0.01 | Z55: 0.01 | AA55: 0.01 | AB55: 0.01 | AC55: 0.01 | AD55: 0.01 | AE55: 0.01 | AF55: 0.01 | AG55: 0.01 | AH55: 0.01 | AI55: 0.01 | AJ55: 0.01 | AK55: 0.01 | AL55: 0.01 | AM55: 0.01 | AN55: 0.01 | AO55: 0 | AP55: 0 | AQ55: 0 | AR55: 0 | BB55: 0 | BC55: 0 | BD55: 0 | BE55: 0 | BG55: Pago de Hipoteca50.85 | BH55: 20.86 | BJ55: Pago de Hipoteca50.85 | BK55: 20.26
L56: =IF($L$45="LiquidezPremier",N56,M56) -> 0.9 | M56: 0.9 | N56: 0.7 | O56: 0.85 | T56: Research Fee | U56: 0 | V56: 0 | W56: 0 | X56: 0 | Y56: 0 | Z56: 0 | AA56: 0 | AB56: 0 | AC56: 0 | AD56: 0 | AE56: 0 | AF56: 0 | AG56: 0 | AH56: 0 | AI56: 0 | AJ56: 0 | AK56: 0 | AL56: 0 | AM56: 0 | AN56: 0 | AO56: 0 | AP56: 0 | AQ56: 0 | AR56: 0 | BB56: 0 | BC56: 0 | BD56: 0 | BE56: 0 | BG56: Pago de Hipoteca100.85 | BH56: 12.91 | BJ56: Pago de Hipoteca100.85 | BK56: 12.16
T57: Appraisal | U57: Sí | V57: Sí | W57: Sí | X57: Sí | Y57: Sí | Z57: Sí | AA57: Sí | AB57: Sí | AC57: Sí | AD57: Sí | AE57: Sí | AF57: Sí | AG57: Sí | AH57: Sí | AI57: Sí | AJ57: Sí | AK57: Sí | AL57: Sí | AM57: Sí | AN57: Sí | AO57: Sí | AP57: Sí | AQ57: Sí | AR57: Sí | BB57: Sí | BC57: Sí | BD57: Sí | BE57: Sí | BG57: Pago de Hipoteca150.85 | BH57: 10.56 | BJ57: Pago de Hipoteca150.85 | BK57: 9.7
M58: =IF(AND(D25=M6,D22="Alia2",D23=L170),MIN(P75,P76),IF(AND(D25=M6,D22="Alia2",D23=L171),MIN(P75,P76),IF(J4="",IF(D25=M6,P76,IF(P75<100000,"-",P75)),0))) -> 2910000 | N58: =IFERROR(MIN(M58,M64),0) -> 2910000 | O58: =N58*G19 -> 14550 | T58: LTV | U58: 0.9 | V58: 0.9 | W58: 0.9 | X58: 0.9 | Y58: 0.5 | Z58: 0.75 | AA58: 0.9 | AB58: 0.5 | AC58: 0.75 | AD58: 0.9 | AE58: 0.5 | AF58: 0.75 | AG58: 0.9 | AH58: 0.5 | AI58: 0.75 | AJ58: 0.9 | AK58: 0.9 | AL58: 0.9 | AM58: 0.9 | AN58: 0.9 | AO58: 0.85 | AP58: 0.85 | AQ58: 0.85 | AR58: 0.85 | BB58: 0.9 | BC58: 0.9 | BD58: 0.9 | BE58: 0.9 | BG58: Pago de Hipoteca200.85 | BH58: 9.45 | BJ58: Pago de Hipoteca200.85 | BK58: 8.5
L59: Gastos-Subcueta | M59: =IF(H21="-",0,-D33) -> 0 | T59: Monthly Fee (sin Iva) | U59: 0 | V59: 0 | W59: 0 | X59: 0 | Y59: 348 | Z59: 348 | AA59: 348 | AB59: 348 | AC59: 348 | AD59: 348 | AE59: 348 | AF59: 348 | AG59: 348 | AH59: 348 | AI59: 348 | AJ59: 348 | AK59: 0 | AL59: 0 | AM59: 0 | AN59: 0 | AO59: 348 | AP59: 348 | AQ59: 348 | AR59: 348 | BB59: 0 | BC59: 0 | BD59: 0 | BE59: 0 | BG59: LiquidezPremier50.7 | BH59: 21.99 | BJ59: LiquidezPremier50.7 | BK59: 21.99
L60: Enganche base | M60: =IF(D21=V78,"",IF(D21=V79,"",IF(D21=V80,"",IF(J4="",IF(OR(D22&D21=O8&N4,D22&D21=O8&N7),D26-D32-M58,IF(OR(D22&D21=O7&N4,D22&D21=O7&N7),D26-M58,IF(OR(D22&D21=O6&N4,D22&D21=O6&N7,D22&D21=O6&N9),D26-D32-M58,D26-M58))),"-")))) -> 90000 | O60: =N4&O5 -> AdquisicionApoyo Infonavit | T60: Pago Por mil | U60: 20.26 | V60: 12.16 | W60: 9.7 | X60: 8.5 | Y60: 20.41 | Z60: 20.65 | AA60: 20.84 | AB60: 12.32 | AC60: 12.59 | AD60: 12.81 | AE60: 9.88 | AF60: 10.17 | AG60: 10.41 | AH60: 8.69 | AI60: 9.01 | AJ60: 9.27 | AK60: 20.5 | AL60: 12.43 | AM60: 10 | AN60: 8.82 | AO60: 20.26 | AP60: 12.16 | AQ60: 9.7 | AR60: 8.5 | BB60: 20.36 | BC60: 12.27 | BD60: 9.82 | BE60: 8.63 | BG60: LiquidezPremier100.7 | BH60: 14.2 | BJ60: LiquidezPremier100.7 | BK60: 14.2
L61: Ajuste por SSV | M61: =IFERROR(M59+IF(M60="-",0,M60)-IF(D25=M6,0,0),2) -> 90000 | O61: =N7&O5 -> ExclusivaApoyo Infonavit | T61: Factor de Línea | U61: 20.89 | V61: 12.79 | W61: 10.33 | X61: 9.13 | Y61: 21.38 | Z61: 21.62 | AA61: 21.81 | AB61: 13.29 | AC61: 13.56 | AD61: 13.78 | AE61: 10.85 | AF61: 11.14 | AG61: 11.38 | AH61: 9.66 | AI61: 9.98 | AJ61: 10.24 | AK61: 21.13 | AL61: 13.06 | AM61: 10.63 | AN61: 9.45 | AO61: 21.23 | AP61: 13.13 | AQ61: 10.67 | AR61: 9.47 | BB61: 20.99 | BC61: 12.9 | BD61: 10.45 | BE61: 9.26 | BG61: LiquidezPremier150.7 | BH61: 12 | BJ61: LiquidezPremier150.7 | BK61: 12
L62: Monto Max | M62: =IF(AND(D22=O6,D32>1),97%,IF(AND(D22=O8,D32>1),95%,IF(D22=O5,97%,IF(AND(D22=O7,D24="NO"),85%,90%)))) -> 0.97 | O62: =N9&O5 -> Nomina EspecialApoyo Infonavit | T62: CaT | U62: 0.111833189 | V62: 0.1120510149 | W62: 0.1131486799 | X62: 0.112023581 | Y62: 0.13161243 | Z62: 0.1327715094 | AA62: 0.1364203222 | AB62: 0.1277860711 | AC62: 0.1296469182 | AD62: 0.1334468823 | AE62: 0.127005065 | AF62: 0.1292907052 | AG62: 0.1331708227 | AH62: 0.1247228451 | AI62: 0.1273317149 | AJ62: 0.1312750085 | AK62: 0.122095737 | AL62: 0.1201081174 | AM62: 0.120510789 | AN62: 0.119038217 | AO62: 0.1168353355 | AP62: 0.1177754346 | AQ62: 0.1175840944 | AR62: 0.1161185891 | BB62: 0.1140065629 | BC62: 0.114209602 | BD62: 0.1153067081 | BE62: 0.1141855964 | BG62: LiquidezNo Premier50.5 | BH62: 22.24 | BJ62: LiquidezNo Premier50.5 | BK62: 22.24
L63: Cofi | M63: =IF(AND(D22="Cofinavit",D32>1),1-(D26-D32)/D26,IF(D22="Apoyo Infonavit",1-(D26-D32)/D26,0)) -> 0 | BG63: LiquidezNo Premier50.7 | BH63: 22.75 | BJ63: LiquidezNo Premier50.7 | BK63: 22.75
L64: Final | M64: =IFERROR(MIN(D26*(M62-M63),IF(D25=M6,MIN(P76+M61,M58),IF(P75<100000,"-",MIN(P75+M61,M58)))),0) -> 2910000 | N64: =D26*(M62-M63) -> 2910000 | O64: =M62-M63 -> 0.97 | BG64: LiquidezNo Premier100.5 | BH64: 14.49 | BJ64: LiquidezNo Premier100.5 | BK64: 14.49
L65: Factores y Estimación de Línea | BG65: LiquidezNo Premier100.7 | BH65: 15.08 | BJ65: LiquidezNo Premier100.7 | BK65: 15.08
BG66: LiquidezNo Premier150.5 | BH66: 12.33 | BJ66: LiquidezNo Premier150.5 | BK66: 12.33
L67: Factor DTI | M67: =IF(D25="Por Campaña",100%,65%) -> 0.65 | BG67: LiquidezNo Premier150.7 | BH67: 12.98 | BJ67: LiquidezNo Premier150.7 | BK67: 12.98
F68: =IF(AND(D19="Asalariado",H25>10000000),90%,0) -> 0 | L68: Factor No Asalariado | M68: 1
M69: =MIN(((IF(D17="SI",D31,0)+D29)*M67),(((IF(D17="SI",D28,0)+D29)*M67)-D30))*M68 -> 32500 | Q69: Costo Avaluos | T69: Gastos Notariales | V69: Tipo de Financiamiento | W69: Monto Maximo | X69: Validación | Y69: Cumple
Q70: De | R70: Costo | T70: 0.02 | V70: Tradicional | W70: =D27 -> 0 | X70: HSBC + Inf < 97% | Y70: =IF(D21&D16&D23&L5=M168,(D26*0.97),IF(D21&D16&D23&D24=M170,(D26*0.85),IF(D21&D16&D23&D24=N170,(D26*0.9),IF(D21&D16&D23&D24=N171,(D26*0.9),IF(D21&D16&D23&D24=M171,(D26*O50),(D26*1)-D32))))) -> 3000000
L71: Factor Comisión Mensual | M71: =IF(D21=N6,0.348,IF(D21&D16=L6,0.29,0)) -> 0 | Q71: 0 | R71: 2146 | T71: 0.03 | V71: Apoyo Infonavit | W71: =Y72 -> 3000000 | X71: 100% GyH | Y71: =IF(SUM(Y70,D32)<SUM(D26,G18,G21*D26),SUM(D26,G18,G21*D26)-SUM(D32,D33),Y70) -> 3219222
L72: Factor Vida | M72: =L86 -> 0.44 | Q72: 500001 | R72: 3422 | T72: 0.04 | V72: Cofinavit | W72: =Y72 -> 3000000 | Y72: =MIN(Y71,Y70) -> 3000000
L73: Factor Daños | M73: =VLOOKUP(D18,$Q$3:$R$39,2,0)*IF(D25=M7,1,0.7) -> 0.22218 | Q73: 1000001 | R73: 5916 | T73: 0.045 | V73: CI+CB | W73: =IF(D25="Valor de la Vivienda",D26-D33,MIN(D26-D33,D29)) -> 50000 | AB73: Apoyo Infonavit0.097
L74: Tasa para cálculo ingreso | M74: =IF(D22="CI+CB",(IF(OR(D25=M4),G26,VLOOKUP(D16&D21&D28,M102:N165,2,0))*0.7)+(10.45%*0.3),IF(OR(D22="Apoyo Infonavit",D22="Cofinavit"),9.8%,IF(OR(D25=M4),G26,VLOOKUP(D16&D21&D28,M102:N165,2,0)))) -> 0.098 | Q74: 2000001 | R74: 9222 | T74: 0.05 | V74: Respalda2 | W74: =IF(D25="Valor de la Vivienda",D26-D33,MIN(D26-D33,D29)) -> 50000 | AB74: =D22&D23 -> Apoyo Infonavit
L75: Ajuste corrección | M75: 0 | O75: Monto de Máximo | P75: =IFERROR(VLOOKUP(D21,V77:X82,IF(OR(D25=M4,D25=M6),2,3),0),0) -> 2910000 | Q75: 3000001 | R75: 12470 | T75: 0.06
L76: Factor de Línea/Tasa | M76: =IF(Amortización!E14="Pago Fijo",ROUND(PMT(M74/12,D28*12,-1000),2), IF(AND(OR(D22="Apoyo Infonavit",D22="Cofinavit"),D28=25,N20=TRUE,Amortización!E14="Pago Bajo"),8.86, IF(AND(OR(D22="Apoyo Infonavit",D22="Cofinavit"),D28=20,N20=TRUE,Amortización!E14="Pago Bajo"),9.02, IF(AND(OR(D22="Apoyo Infonavit",D22="Cofinavit"),D28=15,N20=TRUE,Amortización!E14="Pago Bajo"),10.23, IF(AND(OR(D22="Apoyo Infonavit",D22="Cofinavit"),D28=10,N20=TRUE,Amortización!E14="Pago Bajo"),12.84, IF(AND(OR(D22="Apoyo Infonavit",D22="Cofinavit"),D28=5,N20=TRUE,Amortización!E14="Pago Bajo"),21.08, IF(AND(OR(D22="Apoyo Infonavit",D22="Cofinavit"),D28=25,Amortización!E14="Pago Bajo"),8.9, IF(AND(OR(D22="Apoyo Infonavit",D22="Cofinavit"),D28=20,Amortización!E14="Pago Bajo"),9.06, IF(AND(OR(D22="Apoyo Infonavit",D22="Cofinavit"),D28=15,Amortización!E14="Pago Bajo"),10.28, IF(AND(OR(D22="Apoyo Infonavit",D22="Cofinavit"),D28=10,Amortización!E14="Pago Bajo"),12.87, IF(AND(OR(D22="Apoyo Infonavit",D22="Cofinavit"),D28=5,Amortización!E14="Pago Bajo"),21.14, VLOOKUP(D16&D21&D28,M102:O131,3,0))+M72+M73+M71+M75)))))))))) -> 9.06 | O76: Valor de Vivienda | P76: =IF(OR(D21=V81,D21=V77),MIN(IF(D22=V74,W74,IF(D22=V72,W72,IF(D22=V73,W73,VLOOKUP(D21,V77:Y82,4,0)*D26))),Y81*D26,30000000),MIN(VLOOKUP(D21,V77:Y82,4,0)*D26,30000000))-IF(AND(D25=X45,D21=V77),D27,0) -> 2910000 | Q76: 4000001 | R76: 15370 | T76: 0.07 | V76: Producto | W76: Monto Max por Monto | X76: Monto Max por Ingreso | Y76: Max Financiamiento | Z76: Min Financiamiento
Q77: 5000001 | R77: 19952 | T77: 0.08 | V77: Adquisicion | W77: =MIN(VLOOKUP(D22,$V$70:$W$74,2,0),IF(D25=M4,D27,50000000),D26*Y77,50000000) -> 2910000 | X77: =MIN($G$29,IF($D$21=$V$77,IF(OR($D$22=$V$70,$D$22=$V$72,$D$22=$V$71),$D$26*Y77,IF($D$22=$V$74,MIN($D$26-D33,$D$26*Y77),IF($D$32+$D$33>0.1*$D$26,$D$26-$D$32,IF($D$32<0.05*$D$26,$G$29,$D$26*0.95-$D$32)))),$D$26*Y77)) -> 40988.70864 | Y77: =IF(AND(D16="Premier",D24="SI"),AC77, IF(AND(OR(D16="Premier",D16="No Premier"),D22="Apoyo Infonavit"),AD77, IF(AND(OR(D16="Premier",D16="No Premier"),D22="Cofinavit"),AD77, IF(AND(D16="Premier",D22="Alia2"),AD77, IF(AND(D23=L170,D22="Apoyo Infonavit",D24="SI"),AC77,IF(AND(D23=L171,D22="Apoyo Infonavit",D24="SI"),AC77,IF(AND(D22="Alia2",D23=L171),AC78,IF(D22="CI+CB",AD78,IF(D17="SI",AC77,AB77))))))))) -> 0.97 | Z77: 350000 | AB77: =IF(D16=L40,90%,IF(AND(D22="Cofinavit",D23=L168),95%,IF(D22="Apoyo Infonavit",97%,IF(AND(D23=L170,D22="Apoyo Infonavit"),97%,IF(AND(D23=L170,D22="Tradicional"),85%,IF(D23=L168,90%,IF(D23&D35=L183,80%,IF(D23&D35=L184,75%,90%))))+IF(D16=L40,0%,IF(D24=L4,15%))+IF(D22&D24=O6&L4,0.05,0)+IF(D22&O50=O6&0.9,0.05,+IF(D22&D24=O5&L4,0.05,0)+IF(D22&O50=O5&0.9,0.05,0))))))+IF(AB74=AB73,0.05,0) -> 0.97 | AC77: 0.9 | AD77: 0.97 | AG77: =VLOOKUP(D22,$V$70:$W$74,2,0) -> 3000000
Q78: 7000001 | R78: 23200 | T78: 0.09 | V78: Pago de Hipoteca | W78: =IF(D25="Por Valor de la Vivienda",MIN(D26*Y78,50000000),MIN(D26*Y78,D27,50000000)) -> 2550000 | X78: =MIN(D26*Y78,G29) -> 40988.70864 | Y78: =IF(D24="SI",AR42+0.1,AR42) -> 0.85 | Z78: 350000 | AC78: =IF(D16=L40,90%,IF(AND(D22="Alia2",D23=L170,D24="SI"),90%,IF(AND(D23=L168,D22="Apoyo Infonavit"),95%,IF(AND(D23=L170,D22="Alia2"),85%,IF(AND(D23=L170,D22="Tradicional"),85%,IF(D23=L168,90%,IF(D23&D35=L183,75%,IF(D23&D35=L184,75%,90%))))+IF(D16=L40,0%,IF(D24=L4,15%))+IF(D22&D24=O6&L4,0.05,0)+IF(D22&O50=O6&0.9,0.05,+IF(D22&D24=O5&L4,0.05,0)+IF(D22&O50=O5&0.9,0.05,0)))))) -> 0.95 | AD78: =IF(D24="SI",90%,85%) -> 0.85 | AG78: =IF(D25=M4,D27,50000000) -> 50000000
M79: =ROUND(M69/(ROUND(PMT(M74/12,D28*12,-1000),2)+M71+M72+M73)*1000,0) -> 3191851 | Q79: 10000001 | R79: 24360 | T79: 0.1 | V79: Liquidez | W79: =MIN($D$26*Y79,$D$27,70000000) -> 2400000 | X79: =MIN(D26*Y79,G29,50000000) -> 40988.70864 | Y79: 0.8 | Z79: 350000 | AG79: =D26*Y77 -> 2910000
T80: 0.11 | V80: =N8 -> Pago Hipoteca+Liquidez | W80: =MIN($D$26*Y80,$D$27,50000000) -> 2550000 | X80: =MIN(D26*Y80,G29) -> 40988.70864 | Y80: =AR42 -> 0.85 | Z80: 350000
L81: CréditoLTV | M81: =IF(D25=M4,D27,M82) -> 2700000 | T81: 0.12 | V81: Exclusiva | W81: =MIN(VLOOKUP(D22,$V$70:$W$74,2,0),IF(D25=M4,D27,50000000),D26*Y81,50000000) -> 2910000 | X81: =MIN($G$29,IF($D$21=$V$81,IF(OR($D$22=$V$70,$D$22=$V$71),$D$26*$Y$81,IF($D$22=$V$74,MIN($D$26-#REF!,$D$26*$Y$81),IF($D$32+$D$33>0.1*$D$26,$D$26-$D$32-$D$33,IF($D$32<0.05*$D$26,$G$29,$D$26*0.95-$D$32)))),$D$26*Y77)) -> 40988.70864 | Y81: =IF(D21=N4,97%,IF(D22=O6,97%,IF(AND(D22=O5,D24="SI"),90%,IF(D22=O5,97%,IF(D22=O8,95%,IF(D22=O7,85%+AB81,AK42)))))) -> 0.97 | Z81: 350000 | AB81: =IF(D24="SI",5%,0) -> 0
L82: Credito solicitado | M82: =IF($D$25=$M$6,MIN(($D$26*$O$82)-$D$34,$P$76),"") -> 2700000 | O82: =IF(D21=V79,Y79,IF(D21=V78,Y78,IF(D21=V80,Y80,90%))) -> 0.9 | V82: Nomina Especial | W82: =MIN(VLOOKUP(D22,$V$70:$W$74,2,0),IF(D25=M4,D27,50000000),D26*Y82,50000000) -> 2910000 | X82: =MIN($G$29,IF($D$21=$V$82,IF(OR($D$22=$V$70,$D$22=$V$71),$D$26*$Y$82,IF($D$22=$V$74,MIN($D$26-#REF!,$D$26*$Y$82),IF($D$32+$D$33>0.1*$D$26,$D$26-$D$32-$D$33,IF($D$32<0.05*$D$26,$G$29,$D$26*0.95-$D$32)))),$D$26*Y77)) -> 40988.70864 | Y82: =IF(D22=O5,97%,90%) -> 0.97 | Z82: 350000
M83: =MIN(M82,M84,M81) -> 2700000 | N83: =IFERROR(M83*G19,0) -> 13500 | V83: Plazos | W83: Ingresos Mínimos
M84: =MIN($D$26-$D$32-$D$33-D34,$D$26*1-$D$32) -> 3000000 | V84: =$D$28 -> 20 | W84: =IF($D$22="CI+CB",(Amortización!$K$21+Amortización!$AY$12)/100%/65%,IF(Amortización!$F$16="NO",Amortización!$K$21/100%/65%,Amortización!$K$24/100%/65%)) -> 40988.70864 | Y84: =IF(H25>10000000,"SI","NO") -> NO
L85: Factores Seguros | V85: =$D$28 -> 20 | W85: =IF($D$22="CI+CB",(Amortización!$K$21+Amortización!$AY$12)/100%/65%,IF(Amortización!$F$16="NO",Amortización!$K$21/100%/65%,Amortización!$K$24/100%/65%)) -> 40988.70864
K86: Vida | L86: =IF(N20="Verdadero",0.44,0.44) -> 0.44 | V86: =$D$28 -> 20 | W86: =IF($D$22="CI+CB",(Amortización!$K$21+Amortización!$AY$12)/100%/65%,IF(Amortización!$F$16="NO",Amortización!$K$21/100%/65%,Amortización!$K$24/100%/65%)) -> 40988.70864
K87: Daños | V87: =$D$28 -> 20 | W87: =IF($D$22="CI+CB",(Amortización!$K$21+Amortización!$AY$12)/100%/65%,IF(Amortización!$F$16="NO",Amortización!$K$21/100%/65%,Amortización!$K$24/100%/65%)) -> 40988.70864
K89: Pago Fijo | M89: Pago Fijo
K90: Pago Bajo
R91: =IF(D22=O6,"Cofi",IF(D22=O8,"Cofi","")) ->  | V91: DTI | W91: 0.65
L93: =MIN(D26*0.9,D26-D34) -> 2700000
T94: =IF(OR(D22=O6,D22=O8),(H25+D32)/D26,G25) -> 0.97 | V94: =V77&L190 -> Adquisicion | W94: =IF(H25>10000000,"SI","NO") -> NO | X94: =IF(W94="SI","10%",0) -> 0
T95: =IF(AND(R91="Cofi",T94<=0.8, G25<=70%),0.7,MAX(T94,G25)) -> 0.97 | V95: =V77&L191 -> AdquisicionNormal | X95: 0.1
T96: =IF(D22<>O4,"",G25) ->  | V96: =V77&L192 -> Adquisicion | X96: 0.15
V97: =V77&L193 -> Adquisicion | X97: 0.4
V98: =$V$81&L190 -> Exclusiva | X98: 0.1
V99: =$V$81&L191 -> ExclusivaNormal | X99: 0.1
V100: =$V$81&L192 -> Exclusiva | X100: 0.15
L101: Premier | V101: =$V$81&L193 -> Exclusiva | X101: 0.4
K102: 5 | L102: 0.092 | M102: PremierAdquisicion5 | N102: =N103-0.25% -> 0.096 | O102: 19.99 | R102: ="PremierAdquisicion5"&IF(D24="SI","0.9","0.9") -> PremierAdquisicion50.9 | S102: =IF(OR(D22="Apoyo Infonavit",D22="Cofinavit"),9.8%,9.75%) -> 0.098 | T102: =IF(D19=L190,0%,IF($T$96<=0.85,0%,0)) -> 0 | U102: =IF($D$19=$L$190,0%,IF(AND($D$22<>$O$4,$T$95<=0.97),0.72%,0)) -> 0 | V102: =IF($D$19=$L$190,0.95%,0) -> 0.0095 | W102: =IF($D$22="CI+CB",-0.55%,0) -> 0
K103: 10 | L103: 0.0945 | M103: PremierAdquisicion10 | N103: =N104-0.25% -> 0.0985 | O103: 11.84 | R103: ="PremierAdquisicion10"&IF(D24="SI","0.9","0.9") -> PremierAdquisicion100.9 | S103: =IF(OR(D22="Apoyo Infonavit",D22="Cofinavit"),9.8%,9.75%) -> 0.098 | T103: =IF(D19=L190,0%,IF($T$96<=0.85,0%,0)) -> 0 | U103: =IF($D$19=$L$190,0%,IF(AND($D$22<>$O$4,$T$95<=0.97),0.72%,0)) -> 0 | V103: =IF($D$19=$L$190,0.95%,0) -> 0.0095 | W103: 0
K104: 15 | L104: 0.097 | M104: PremierAdquisicion15 | N104: =N105 -> 0.101 | O104: 9.34 | R104: ="PremierAdquisicion15"&IF(D24="SI","0.9","0.9") -> PremierAdquisicion150.9 | S104: =IF(OR(D22="Apoyo Infonavit",D22="Cofinavit"),9.8%,9.75%) -> 0.098 | T104: =IF(D19=L190,0%,IF($T$96<=0.85,0%,0)) -> 0 | U104: 0 | V104: =IF($D$19=$L$190,0.95%,0) -> 0.0095 | W104: 0
K105: 20 | L105: 0.097 | M105: PremierAdquisicion20 | N105: 0.101 | O105: 8.11 | R105: ="PremierAdquisicion20"&IF(D24="SI","0.9","0.9") -> PremierAdquisicion200.9 | S105: =IF(OR(D22="Apoyo Infonavit",D22="Cofinavit"),9.8%,9.75%) -> 0.098 | T105: =IF(D19=L190,0%,IF($T$96<=0.85,0%,0)) -> 0 | U105: 0 | V105: =IF($D$19=$L$190,0.95%,0) -> 0.0095 | W105: 0
M106: No PremierAdquisicion5 | N106: =N107-0.25% -> 0.096 | O106: 20.15 | R106: ="PremierAdquisicion25"&IF(D25="SI","0.9","0.9") -> PremierAdquisicion250.9 | S106: =IF(OR(D22="Apoyo Infonavit",D22="Cofinavit"),9.8%,9.75%) -> 0.098 | T106: =IF(D20=L191,0%,IF($T$96<=0.85,0%,0)) -> 0 | U106: 0 | V106: =IF($D$19=$L$190,0.95%,0) -> 0.0095 | W106: =IF($D$22="CI+CB",-0.55%,0) -> 0
L107: No premier | M107: No PremierAdquisicion10 | N107: =N108-0.25% -> 0.0985 | O107: 12.02 | R107: No PremierAdquisicion50.9 | S107: =S111-0.25% -> 0.106
M108: No PremierAdquisicion15 | N108: =N109 -> 0.101 | O108: 9.54 | R108: No PremierAdquisicion50.94 | S108: =S112-0.25% -> 0.106
K109: 5 | L109: 0.104 | M109: No PremierAdquisicion20 | N109: 0.101 | O109: 8.33 | R109: No PremierAdquisicion50.85 | S109: 0.1125
K110: 10 | L110: 0.1065 | M110: No PremierExclusiva5 | N110: =N111-0.25% -> 0.096 | O110: 20.03 | R110: No PremierAdquisicion50.75 | S110: 0.1175
K111: 15 | L111: 0.109 | M111: No PremierExclusiva10 | N111: =N112-0.25% -> 0.0985 | O111: 11.89 | R111: No PremierAdquisicion100.9 | S111: =S115-0.25% -> 0.1085
K112: 20 | L112: 0.109 | M112: No PremierExclusiva15 | N112: =N113 -> 0.101 | O112: 9.4 | R112: No PremierAdquisicion100.94 | S112: =S116-0.25% -> 0.1085
M113: No PremierExclusiva20 | N113: 0.101 | O113: 8.18 | R113: No PremierAdquisicion100.85 | S113: 0.115
L114: Exclusiva | M114: No PremierPago de Hipoteca5 | N114: =N115-0.25% -> 0.0985 | O114: 20.06 | R114: No PremierAdquisicion100.75 | S114: 0.12
K115: 5 | L115: 0.097 | M115: No PremierPago de Hipoteca10 | N115: =N116-0.25% -> 0.101 | O115: 11.92 | R115: No PremierAdquisicion150.9 | S115: 0.111
K116: 10 | L116: 0.0995 | M116: No PremierPago de Hipoteca15 | N116: =N117 -> 0.1035 | O116: 9.43 | R116: No PremierAdquisicion150.94 | S116: 0.111
K117: 15 | L117: 0.102 | M117: No PremierPago de Hipoteca20 | N117: 0.1035 | O117: 8.21 | R117: No PremierAdquisicion150.85 | S117: 0.1175
K118: 20 | L118: 0.102 | M118: No PremierLiquidez5 | N118: =N119-0.25% -> 0.125 | R118: No PremierAdquisicion150.75 | S118: 0.1225
L119: Pago Hipoteca | M119: No PremierLiquidez10 | N119: =N120-0.25% -> 0.1275 | R119: No PremierExclusiva50.9 | S119: =S120-0.25% -> 0.106
K120: 5 | L120: 0.092 | M120: No PremierLiquidez15 | N120: 0.13 | R120: No PremierExclusiva100.9 | S120: =S121-0.25% -> 0.1085
K121: 10 | L121: 0.0945 | M121: PremierLiquidez5 | N121: =N122-0.25% -> 0.116 | R121: No PremierExclusiva150.9 | S121: =S122 -> 0.111
K122: 15 | L122: 0.097 | M122: PremierLiquidez10 | N122: =N123-0.25% -> 0.1185 | R122: No PremierExclusiva200.9 | S122: 0.111
K123: 20 | L123: 0.097 | M123: PremierLiquidez15 | N123: 0.121 | R123: No PremierExclusiva250.9 | S123: 0.111
M124: PremierPago de Hipoteca5 | N124: =N125-0.25% -> 0.0985 | O124: 19.89 | R124: No PremierPago de Hipoteca50.85 | S124: =S125-0.25% -> 0.1075
L125: LiquidezNo Premier | M125: PremierPago de Hipoteca10 | N125: =N126-0.25% -> 0.101 | O125: 11.74 | R125: No PremierPago de Hipoteca100.85 | S125: =S126-0.25% -> 0.11
K126: 5 | L126: 0.115 | M126: PremierPago de Hipoteca15 | N126: =N127 -> 0.1035 | O126: 9.23 | R126: No PremierPago de Hipoteca150.85 | S126: =S127 -> 0.1125
K127: 10 | L127: 0.1175 | M127: PremierPago de Hipoteca20 | N127: 0.1035 | O127: 7.99 | R127: No PremierPago de Hipoteca200.85 | S127: 0.1125
K128: 15 | L128: 0.12 | M128: PremierExclusiva5 | N128: =N129-0.25% -> 0.096 | O128: 19.99 | R128: PremierLiquidez50.8 | S128: =S129-0.25% -> 0.1225 | V128: =IF($D$19=$L$190,0.4%,0) -> 0.004
M129: PremierExclusiva10 | N129: =N130-0.25% -> 0.0985 | O129: 11.84 | R129: PremierLiquidez100.8 | S129: =S130-0.25% -> 0.125 | V129: =IF($D$19=$L$190,0.4%,0) -> 0.004
L130: liquidez Premier | M130: PremierExclusiva15 | N130: =N131 -> 0.101 | O130: 9.34 | R130: PremierLiquidez150.8 | S130: 0.1275 | V130: =IF($D$19=$L$190,0.4%,0) -> 0.004
K131: 5 | L131: 0.13 | M131: PremierExclusiva20 | N131: 0.101 | O131: 8.11 | R131: No PremierLiquidez50.5 | S131: =S133-0.25% -> 0.13
K132: 10 | L132: 0.1325 | M132: PremierPago de Hipoteca6 | N132: =N133 -> 0.0985 | R132: No PremierLiquidez50.8 | S132: =S134-0.25% -> 0.1325
K133: 15 | L133: 0.135 | M133: PremierPago de Hipoteca7 | N133: 0.0985 | R133: No PremierLiquidez100.5 | S133: 0.1325
K134: 5 | M134: PremierPago de Hipoteca8 | N134: =N135 -> 0.0985 | R134: No PremierLiquidez100.8 | S134: =S136-0.25% -> 0.135
K135: 6 | M135: PremierPago de Hipoteca9 | N135: =N136-0.25% -> 0.0985 | R135: No PremierLiquidez150.5 | S135: 0.135
K136: 7 | M136: PremierPago de Hipoteca11 | N136: =N137 -> 0.101 | R136: No PremierLiquidez150.8 | S136: 0.1375
K137: 8 | M137: PremierPago de Hipoteca12 | N137: 0.101 | R137: PremierPago de Hipoteca50.85 | S137: =S138-0.25%-V137 -> 0.0895 | V137: =IF($D$19=$L$190,0.6%,0) -> 0.006
K138: 9 | M138: PremierPago de Hipoteca13 | N138: =N139 -> 0.101 | R138: PremierPago de Hipoteca100.85 | S138: =S139-0.25%-V138 -> 0.098 | V138: =IF($D$19=$L$190,0.6%,0) -> 0.006
K139: 10 | M139: PremierPago de Hipoteca14 | N139: =N140-0.25% -> 0.101 | R139: PremierPago de Hipoteca150.85 | S139: =S140-V139 -> 0.1065 | V139: =IF($D$19=$L$190,0.6%,0) -> 0.006
K140: 11 | M140: PremierPago de Hipoteca16 | N140: =N141 -> 0.1035 | R140: PremierPago de Hipoteca200.85 | S140: 0.1125 | V140: =IF($D$19=$L$190,0.6%,0) -> 0.006
K141: 12 | M141: PremierPago de Hipoteca17 | N141: 0.1035 | R141: PremierExclusiva50.9 | S141: =S142-0.25% -> 0.106
K142: 13 | M142: PremierPago de Hipoteca18 | N142: =N143 -> 0.1035 | R142: PremierExclusiva100.9 | S142: =S143-0.25% -> 0.1085
K143: 14 | M143: PremierPago de Hipoteca19 | N143: 0.1035 | R143: PremierExclusiva150.9 | S143: =S144 -> 0.111
K144: 15 | M144: No PremierPago de Hipoteca6 | N144: =N145 -> 0.0985 | R144: PremierExclusiva200.9 | S144: 0.111
K145: 16 | M145: No PremierPago de Hipoteca7 | N145: 0.0985 | R145: PremierExclusiva250.9 | S145: 0.111
K146: 17 | M146: No PremierPago de Hipoteca8 | N146: =N147 -> 0.0985 | R146: No PremierAdquisicion200.9 | S146: 0.111
K147: 18 | M147: No PremierPago de Hipoteca9 | N147: =N148-0.25% -> 0.0985 | R147: No PremierAdquisicion200.94 | S147: 0.111
K148: 19 | M148: No PremierPago de Hipoteca11 | N148: =N149 -> 0.101 | R148: No PremierAdquisicion200.85 | S148: 0.1175
K149: 20 | M149: No PremierPago de Hipoteca12 | N149: 0.101 | R149: No PremierAdquisicion200.75 | S149: 0.1225
M150: No PremierPago de Hipoteca13 | N150: =N151 -> 0.101 | R150: No PremierAdquisicion250.9 | S150: 0.111
M151: No PremierPago de Hipoteca14 | N151: =N152-0.25% -> 0.101 | R151: No PremierAdquisicion250.94 | S151: 0.111
M152: No PremierPago de Hipoteca16 | N152: =N153 -> 0.1035 | R152: No PremierAdquisicion250.85 | S152: 0.1175
L153: Crédito Infonavit | M153: No PremierPago de Hipoteca17 | N153: 0.1035 | R153: No PremierAdquisicion250.75 | S153: 0.1225
L154: Crédito FOVISSSTE incluyendo SSV | M154: No PremierPago de Hipoteca18 | N154: =N155 -> 0.1035 | R154: PremierLiquidez50.5 | S154: =S155-0.25% -> 0.12
L155: Saldo Subcuenta de Vivienda | M155: No PremierPago de Hipoteca19 | N155: 0.1035 | R155: PremierLiquidez100.5 | S155: =S156-0.25% -> 0.1225
M156: PremierNomina Especial5 | N156: =N157-0.25% -> 0.096 | R156: PremierLiquidez150.5 | S156: 0.125
M157: PremierNomina Especial10 | N157: =N158-0.25% -> 0.0985 | R157: No PremierPago de Hipoteca60.85 | S157: =S161-0.25% -> 0.1075
L158: =IF(C29="Ingreso mensual neto*","Ingreso mensual neto*",IF(C29="Pago Mensual Máximo","Pago Mensual Máximo","1")) -> Ingreso mensual neto* | M158: PremierNomina Especial15 | N158: =N159 -> 0.101 | R158: No PremierPago de Hipoteca70.85 | S158: 0.1075
L159: Pago mensual en Buro(Obligaciones) | M159: PremierNomina Especial20 | N159: 0.101 | R159: No PremierPago de Hipoteca80.85 | S159: 0.1075
M160: No PremierNomina Especial5 | N160: =N161-0.25% -> 0.096 | R160: No PremierPago de Hipoteca90.85 | S160: 0.1075
L161: Tipo de Programa | M161: No PremierNomina Especial10 | N161: =N162-0.25% -> 0.0985 | R161: No PremierPago de Hipoteca110.85 | S161: 0.11
M162: No PremierNomina Especial15 | N162: =N163 -> 0.101 | R162: No PremierPago de Hipoteca120.85 | S162: 0.11
L163: Monto del Crédito | M163: No PremierNomina Especial20 | N163: 0.101 | R163: No PremierPago de Hipoteca130.85 | S163: 0.11
L164: Monto Hipoteca Actual | M164: ="Premier"&N8&D28 -> PremierPago Hipoteca+Liquidez20 | N164: 0.107 | R164: No PremierPago de Hipoteca140.85 | S164: =S168-0.25% -> 0.11
L165: Enganche Adicional | M165: ="No Premier"&N8&D28 -> No PremierPago Hipoteca+Liquidez20 | N165: 0.107 | R165: No PremierPago de Hipoteca160.85 | S165: 0.1125
L166: Elige una tasa de interés | R166: No PremierPago de Hipoteca170.85 | S166: 0.1125
L167: ¿La hipoteca proviene de un Cofinavit, Apoyo, Aliados o Respaldados? | R167: No PremierPago de Hipoteca180.85 | S167: 0.1125
J168: 1 | L168: =IF($D$28=$P$4,9.75%,9.75%) -> 0.0975 | M168: =N4&L41&L168&L5 -> AdquisicionNo Premier0.0975NO | R168: No PremierPago de Hipoteca190.85 | S168: 0.1125
J169: 2 | L169: =IF($D$28=$P$4,9.75%,9.75%) -> 0.0975 | R169: PremierPago de Hipoteca60.85 | S169: =11.25%-0.5%-V169 -> 0.1015 | V169: =IF($D$19=$L$190,0.6%,0) -> 0.006
J170: 3 | L170: =IF($D$28=$P$4,9.75%,9.75%) -> 0.0975 | M170: =N4&L41&L170&L5 -> AdquisicionNo Premier0.0975NO | N170: =N4&L41&L170&L4 -> AdquisicionNo Premier0.0975SI | R170: PremierPago de Hipoteca70.85 | S170: =11.25%-0.5%-V170 -> 0.1015 | V170: =IF($D$19=$L$190,0.6%,0) -> 0.006
J171: 4 | L171: =IF($D$28=$P$4,9.75%,9.75%) -> 0.0975 | M171: =N4&L41&L171&L5 -> AdquisicionNo Premier0.0975NO | N171: =N4&L41&L171&L4 -> AdquisicionNo Premier0.0975SI | R171: PremierPago de Hipoteca80.85 | S171: =11.25%-0.5%-V171 -> 0.1015 | V171: =IF($D$19=$L$190,0.6%,0) -> 0.006
L172: ¿Se requiere financiamiento máximo? | R172: PremierPago de Hipoteca90.85 | S172: =11.25%-0.5%-V172 -> 0.1015 | V172: =IF($D$19=$L$190,0.6%,0) -> 0.006
L173: Elige una Tasa | N173: =D27/D26 -> 0 | R173: PremierPago de Hipoteca110.85 | S173: =11.25%-0.25%-V173 -> 0.104 | V173: =IF($D$19=$L$190,0.6%,0) -> 0.006
R174: PremierPago de Hipoteca120.85 | S174: =11.25%-0.25%-V174 -> 0.104 | V174: 0.006
R175: PremierPago de Hipoteca130.85 | S175: =11.25%-0.25%-V175 -> 0.104 | V175: 0.006
R176: PremierPago de Hipoteca140.85 | S176: =11.25%-0.25%-V176 -> 0.104 | V176: 0.006
N177: =D21="" -> FALSE | O177: Introducir Producto | R177: PremierPago de Hipoteca160.85 | S177: =11.25%-V177 -> 0.1065 | V177: 0.006
N178: =D26=0 -> FALSE | O178: Introducir Valor de la Vivienda | R178: PremierPago de Hipoteca170.85 | S178: =11.25%-V178 -> 0.1065 | V178: 0.006
L179: =IF(D22="CI+CB",0,IF(D21=N5,0,IF(D16=L40,0.7%,IF(D21=N7,0.7%,0.6%)))) -> 0.006 | N179: =D26<350000 -> FALSE | O179: El monto mínimo de la garantía son $350,000 | R179: PremierPago de Hipoteca180.85 | S179: =11.25%-V179 -> 0.1065 | V179: 0.006
N180: =AND(D25=M4,D27=0) -> FALSE | O180: Introducir el Monto del Crédito | R180: PremierPago de Hipoteca190.85 | S180: =11.25%-V180 -> 0.1065 | V180: 0.006
L181: 3 | N181: =AND(D25=M5,D29<8500) -> FALSE | O181: Se necesita un ingreso mayor a $10,000 | R181: PremierNomina Especial50.9 | S181: =S182-0.25% -> 0.106
L182: 4 | N182: =AND(D21=N6,D26<350000) -> FALSE | O182: El monto mínimo de la garantía son $350,000 | R182: PremierNomina Especial100.9 | S182: =S183-0.25% -> 0.1085
L183: =L171&L181 -> 0.09753 | N183: =AND(D21<>N6,H25>20000000) -> FALSE | O183: El monto máximo de crédito son $20,000,000 | R183: PremierNomina Especial150.9 | S183: =S185 -> 0.111
L184: =L171&L182 -> 0.09754 | N184: =AND(D21=N6,H25>50000000) -> FALSE | O184: El monto máximo de crédito son $50,000,000 | R184: PremierNomina Especial200.9 | S184: 0.111
L185: Comportamiento Crediticio | N185: =AND(D21=N6,D27>50000000) -> FALSE | O185: El monto máximo de crédito son $50,000,000 | R185: PremierNomina Especial250.9 | S185: 0.111
N186: =AND(D21=N6,N173>70%) -> FALSE | O186: Recuerda, el LTV máximo es de 70% | R186: No PremierNomina Especial50.9 | S186: =S187-0.25% -> 0.106
O187: Recuerda, el LTV máximo es de 90% | R187: No PremierNomina Especial100.9 | S187: =S188-0.25% -> 0.1085
N188: =AND($D$21=$N$5,$G$25>85%,$D$24="NO") -> FALSE | O188: Recuerda, el LTV máximo es de 85% | R188: No PremierNomina Especial150.9 | S188: =S190 -> 0.111
L189: Pago Hipoteca+LiquidezAlto Valor | N189: =AND(D21=N6,G25>70%) -> FALSE | O189: Recuerda, el LTV máximo es de 70% | R189: No PremierNomina Especial200.9 | S189: 0.111
L190: =IF(D16="Premier","Alto Valor","") ->  | N190: =AND(D21=N6,D28>15) -> FALSE | O190: Introducir un plazo válido | R190: No PremierNomina Especial250.9 | S190: 0.111
L191: Normal
N192: =AND(D21=N7,D22<>O6,D22<>O8,H25<200000) -> FALSE | O192: El monto de crédito debe ser mayor a $200,000
O193: Seleccone un Tipo de Financiamiento Válido
N194: =AND(D22=O6,H25<100000) -> FALSE | O194: El monto de crédito debe ser mayor a $100,000
N195: =AND(D22=O8,H25<100000) -> FALSE | O195: El monto de crédito debe ser mayor a $100,000
N196: =AND(OR(D25=M5,D25=M4,D25=M6),D21=N8,D31=0) -> FALSE | O196: Introducir Monto de Hipoteca Actual
N197: =AND(D21=N8,D25=M4,D31<200000) -> FALSE | O197: Monto de Hipoteca Actual Debe Ser Mayor a $200,000
N198: =AND(D25=M4,D21=N8,D27-D31<10000) -> FALSE | O198: Monto de crédito solicitado debe ser al menos $10,000 mayor a la hipoteca actual
N199: =AND($D$21=$N$8,$G$25>85%) -> FALSE | O199: Recuerda, el LTV máximo es de 85%
N200: =AND(D21<>N7,D22<>O6,D22<>O8,H25<200000) -> FALSE | O200: El monto de crédito debe ser mayor a $200,000
T267: Pago de Hipoteca
T268: Liquidez

Sheet Amortización
V1: SI | X1: =Resumen!D28 -> 20 | AB1: =IF(X1=5,60,IF(X1=10,120,IF(X1=15,180,IF(X1=20,240)))) -> 240 | AE1: =V1&0 -> SI0
V2: NO | X2: =IF(E16=V1,3,0) -> 0 | AE2: =COUNT(F21:F320) -> 198 | AH2: verde?
G3: CREDITO HIPOTECARIO | AH3: =Resumen!N20 -> FALSE | AV3: CREDITO CI +CB
C4: Tabla de amortización | G4: Mensualidad | X4: Pago FijoSI
F5: =IF(E7="Pago de Hipoteca",E7&Resumen!D28&Resumen!O50,IF(E7&E9="AdquisicionPremier",Amortización!E7&Amortización!E9&Resumen!D28&90%,IF(E7&E9="LiquidezPremier",E7&E9&Resumen!D28&70%,E7&E9&Resumen!D28&Resumen!O50))) -> AdquisicionNo Premier200.9 | G5: plazo | H5: =E8&E11 -> Adquisicion | L5: =TODAY() -> 2025-09-03
C7: Datos Generales | E7: =IF(E8&E9=Resumen!N7&Resumen!L40,Resumen!N4,Amortización!E8) -> Adquisicion | H7: =IF(E10="CI+CB", "Datos del crédito HSBC - CI+CB", "Datos del crédito") -> Datos del crédito | U7: Producto | AK7: =K11/12 -> 20 | AL7: Plazo | AV7: Datos del crédito INFONAVIT - CI+CB
C8: Producto | E8: =Resumen!D21 -> Adquisicion | H8: Monto de Vivienda | K8: =Resumen!D26 -> 3000000 | M8: =IF(E16="SI","Intereses Diferidos","") ->  | Q8: =IF(E16="SI",MAX(0,(F24*3)-AG19),"") ->  | U8: Adquisicion | X8: Pago Fijo | AB8: AdquisicionNo Premier15Pago Fijo | AV8: Monto de Vivienda
C9: Tipo de cliente | E9: =Resumen!D16 -> No Premier | H9: Crédito | K9: =IF(H5="Pago Hipoteca+LiquidezPago de Hipoteca",Resumen!D31,IF(H5="Pago Hipoteca+LiquidezLiquidez",Resumen!H25-Resumen!D31,IF(E10=Resumen!O7,Resumen!G32,Resumen!H25))) -> 2910000 | M9: =IF(M8="","","Los prepagos liquidan inicialmente los intereses diferidos") ->  | U9: Pago de Hipoteca | X9: Pago Bajo | AB9: AdquisicionNo Premier20Pago Fijo | AK9: =C8&C9&AL7&H10 -> ProductoTipo de clientePlazoTasa anual | AQ9: Plazo&Tasa | AV9: Crédito | AY9: =IF(E10="CI+CB",Resumen!G33,0) -> 0
C10: =IF(OR(E8=U11,E8=U10),"Esquema","Tipo de financiamiento") -> Tipo de financiamiento | E10: =IF(OR(E8=U11,E8=U10),"Pago Fijo",Resumen!D22) -> Apoyo Infonavit | H10: Tasa anual | K10: =Resumen!G26 -> 0.098 | U10: Liquidez | AB10: =K11/12 -> 20 | AK10: =E8&E9&AK7&K10 -> AdquisicionNo Premier200.098 | AQ10: =AK7&K10 -> 200.098 | AV10: Tasa anual | AY10: 0.1045
C11: =IF(E8=U11,"Tabla a simular","") ->  | H11: Plazo en meses | K11: =Resumen!$D$28*12 -> 240 | U11: Pago Hipoteca+Liquidez | AV11: Plazo en meses | AY11: =Resumen!$D$28*12 -> 240
H12: =Resumen!$F$19 -> C. Contratación Crédito | K12: =IF(H12="Comisión por apertura",Resumen!$G$19, Resumen!$G$19) -> 0.005 | U12: Exclusiva | AV12: Mensualidad | AY12: =MAX(BD21:BD260) -> 0
C13: Opciones de pago | H13: Gasto de Preoriginación - Avalúo Hipotecario | K13: =Resumen!G18 -> 9222 | U13: Apoyo Infonavit | V13: Apoyo InfonavitAdquisicion | AB13: Seguro de Daños | AE13: =VLOOKUP(Resumen!D18,Resumen!Q3:R39,2,0)/1000 -> 0.0003174 | AG13: 0.000292 | AH13: daños verde | AV13: Comisión por administración | AY13: 0.01
C14: =IF(E8=U10,"",IF(E8=U11,"",IF(E8=U9,"Esquema","Esquema"))) -> Esquema | E14: Pago Bajo | H14: Plazo para liquidación | K14: =IF(K9="-","-",COUNT($D$20:$D$320)) -> 198 | U14: Infonavit | AB14: Comisión por administración | AE14: =IF(OR(E8&E9="AdquisicionPremier",Resumen!D21=Resumen!N8),"0",IF(OR(E8="Exclusiva",E10="Apoyo Infonavit", E10= "Cofinavit",Resumen!N20="VERDADERO"),"0",IF(E8&E9="AdquisicionNo Premier",250,IF(OR(E8="Pago de Hipoteca",E8="nomina Especial"),"0",250)))) -> 0 | AG14: 0.37 | AH14: vida verde | AV14: Plazo para liquidación | AY14: =IF(AY9="-","-",COUNT($D$20:$D$320)) -> 198
C15: Tipo prepago | E15: Plazo | H15: ="Factor "&IF(E10="Pago Fijo","Pago Fijo",E14) -> Factor Pago Bajo | K15: =IF(E14=X9,VLOOKUP(AQ10,AQ17:AR89,2,0),PMT($K$10/12,$K$11,-1000)) -> 8.4 | U15: Apoyo Infonavit | AV15: ="Factor "&IF(AS10="Pago Fijo","Pago Fijo",AS14) -> Factor | AY15: =PMT($AY$10/12,$AY$11,-1000) -> 9.950235115
C16: =IF(C12="","",IF(E14=X9,"","Skip Payment")) ->  | E16: NO
C17: Ingreso mensual | E17: =IF(OR(Resumen!D21&Resumen!D22=Resumen!O60,Resumen!D21&Resumen!D22=Resumen!O61,Resumen!D21&Resumen!D22=Resumen!O62),MIN(IF(Resumen!D29="",0,Resumen!D29),3439.46*25),0) -> 50000 | H17: CAT* | K17: =IF(ISERROR(((1+IRR(V20:V320))^(12))-1),"-",(((1+IRR(V20:V320))^(12))-1)) -> 0.1139160858 | AK17: AdquisicionPremier50.084 | AL17: 19.77 | AO17: 5 | AP17: =AP18-0.25% -> 0.0988 | AQ17: =AO17&AP17 -> 50.0988 | AR17: 20.48 | AV17: CAT* | AY17: =IF(ISERROR(((1+IRR(BK20:BK320))^(12))-1),"-",(((1+IRR(BK20:BK320))^(12))-1)) -> -
AK18: AdquisicionPremier50.084 | AL18: 19.77 | AO18: 10 | AP18: =AP19-0.25% -> 0.1013 | AQ18: =AO18&AP18 -> 100.1013 | AR18: 12.39
C19: Mes | D19: Saldo Inicial | E19: Pago a Capital | F19: Interes | G19: Seguro de Vida | H19: Seguro de Daños | I19: Comisión por Administración - Renta | J19: =IF(OR(E11=Resumen!N6,E8=Resumen!N6),"Iva Sobre Intereses","") ->  | K19: Pago Mensual Total | L19: Saldo Final | M19: Pago Anticipado | N19: Pago Anticipado a Capital | O19: Comisión Pago Anticipado | P19: IVA Comisión P. Anticipado | Q19: Aportación Infonavit | R19: Tasa de Interes | U19: Flujo sin IVA | V19: Flujo CAT | X19: FACTOR | Y19: IVA | AG19: =SUM(M21:M320) -> 0 | AH19: Intereses diferidos por pagar | AI19: Prepago a saldo | AK19: AdquisicionPremier50.084 | AL19: 19.77 | AO19: 15 | AP19: =AP20 -> 0.1038 | AQ19: 150.1038 | AR19: 9.94 | AV19: Mes | AW19: Saldo Inicial | AX19: Pago a Capital | AY19: Intereses | AZ19: Seguro de Vida | BA19: Seguro de Daños | BB19: Comisión por Administración | BC19: =IF(OR(AX11=Resumen!BD6,AX8=Resumen!BD6),"Iva Intereses","") ->  | BD19: Mensualidad Total | BE19: Saldo Final | BF19: Prepago | BH19: Tasa de Interes | BK19: Flujo sin IVA
C20: 0 | K20: =IF(D20="","",E20+F20+G20+H20+I20) ->  | L20: =K9 -> 2910000 | T20: 0 | U20: =IF(ISNUMBER(K9),-K9,0)+IF(H12="Comisión por apertura",IF(ISNUMBER(K12),K12*K9,0),0)+IF(ISNUMBER(K13),K13/1.16,0)+IF(ISNUMBER(Resumen!G20),Resumen!G20/1.16) -> -2902050 | V20: =IF(ISNUMBER(K9),-K9,0)+IF(H12="C. Contratación Crédito",IF(ISNUMBER(K12),K12*K9,0),0)+IF(ISNUMBER(K13),K13/1.16,0)+IF(ISNUMBER(Resumen!G20),Resumen!G20/1.16) -> -2887500 | AG20: Prepago real | AH20: =IF(E16="no",0,K9*K10*3/12) -> 0 | AK20: AdquisicionPremier100.0865 | AL20: 11.61 | AO20: 20 | AP20: =AP21 -> 0.1038 | AQ20: 200.1038 | AR20: 8.76 | AV20: 0 | BD20: =IF(AW20="","",AX20+AY20+AZ20+BA20+BB20) ->  | BE20: =BD9 -> 0 | BJ20: 0 | BK20: =IF(ISNUMBER(AY9),-AY9,0)+IF(ISNUMBER(AY12),AY12,0)+IF(ISNUMBER(AY13),AY13/1.16,0)+IF(ISNUMBER(Resumen!AW20),Resumen!AW20/1.16) -> 0.008620689655
C21: 1 | D21: =IF(K9="-","",K9) -> 2910000 | E21: =IF($E$16=$V$1,0,IF(D21="","",IF($E$14="Pago Fijo",MIN(IF($E$15="Mensualidad",-PMT(R21/12,$K$11-C20,D21)-F21,-PMT(R21/12,$K$11,$K$9)-F21),D21),MIN(X21*$K$9*$K$15/1000-F21,D21)))) -> 679 | F21: =IF($E$16=$V$1,0,IF(D21="","",D21*(R21/12))) -> 23765 | G21: =IF($E$16=$V$1,0,IF(D21="","",L20*Resumen!$L$86/1000)) -> 1280.4 | H21: =IF($E$16=$V$1,0,IF(D21="","",IF($E$11="Liquidez","0",AB21))) -> 923.634 | I21: =IF($E$16=$V$1,0,IF(D21="","",Amortización!$AE$14)) -> 0 | J21: =IFERROR(IF(OR($E$11=Resumen!$N$6,$E$8=Resumen!$N$6),Amortización!F21*0.16,0),"") -> 0 | K21: =IFERROR(IF(D21="","",E21+F21+G21+H21+I21+Y21+J21),0) -> 26648.034 | L21: =IFERROR(IF(D21="","",IF((D21-E21-AI21-Q21)<1,0,D21-E21-AI21-Q21)),0) -> 2909321 | M21: =IF(OR(L20=0,L20=""),"",0) -> 0 | N21: =IF(OR(O21="",O21=0),M21,M21-O21-P21) -> 0 | O21: =IF(M21="","",IF(AND($H$12="Comisión pago anticipado",C21<37),M21-(M21/(1+$K$12)),0)) -> 0 | P21: =IF(O21="","",IF(O21=0,0,O21*0.16)) -> 0 | R21: =IF(D21="","",Resumen!$G$26) -> 0.098 | T21: =IF(ISNUMBER(T20),IF($K$11>=T20+1,T20+1,""),"") -> 1 | U21: =IF(D21="","",E21+F21+G21+H21/1.16+I21+Q21) -> 26520.63621 | V21: =IF($E$16=$V$1,AI21,IF(ISNUMBER(T21),IF($E$14="Pago Fijo",PMT(R21/12,$K$11,-$K$9),X21*$K$15*$K$9/1000)+G21+AI21+Q21+H21/1.16+$AE$14,0)) -> 26520.63621 | X21: 1 | Y21: 0 | AB21: =IF((($K$8*0.7)*($AE$13))>L20*($AE$13),($K$8*0.7)*($AE$13),($AE$13)*L20) -> 923.634 | AE21: =K9*K10/12 -> 23765 | AG21: =IF($AH$20=0,0,IF(N21>AH20,MAX(0,N21-AH20),N21)) -> 0 | AH21: =IFERROR(MAX(0,AH20-N21),0) -> 0 | AI21: =IF($E$16="no",N21,IF(AH21>0,0,AG21)) -> 0 | AK21: AdquisicionPremier100.0865 | AL21: 11.61 | AO21: 25 | AP21: 0.1038 | AQ21: 250.1038 | AR21: 8.71 | AV21: 1 | AW21: =IF(AY9="-","",AY9) -> 0 | AX21: =IF($E$16=$V$1,0,IF(AW21="","",PMT($AY$10/12,$AY$11,-$AW$21)-AY21)) -> 0 | AY21: =IF($E$16=$V$1,0,IF(AW21="","",AW21*(BH21/12))) -> 0 | AZ21: =IF($E$16=$V$1,0,IF(AW21="","",BE20*0/1000)) -> 0 | BA21: =IF($E$16=$V$1,0,IF(AW21="","",IF($E$11="Liquidez","0",0))) -> 0 | BB21: =IF($E$16=$V$1,0,IF(AW21="","",AW21*$AY$13/12)) -> 0 | BC21: =IFERROR(IF(OR($E$11=Resumen!$N$6,$E$8=Resumen!$N$6),Amortización!AY21*0.16,0),"") -> 0 | BD21: =IFERROR(IF(AW21="","",AX21+AY21+AZ21+BA21+BB21+BC21),0) -> 0 | BE21: =IFERROR(IF(AW21="","",IF((AW21-AX21-BY21)<1,0,AW21-AX21-BY21)),0) -> 0 | BF21: =IF(OR(BE20=0,BE20=""),"",0) ->  | BH21: =IF(AW21="","",$AY$10) -> 0.1045 | BJ21: =IF(ISNUMBER(BJ20),IF($K$11>=BJ20+1,BJ20+1,""),"") -> 1 | BK21: =IF(AW21="","",AX21+AY21+AZ21+BA21/1.16+BB21/1.16) -> 0
C22: =IF(OR(L21="",L21=0),"",IF(C21+1>$K$11+$X$2,"",C21+1)) -> 2 | D22: =IF(IF(D21="","",D21-E21-Q21-AI21)<0.01,"",IF(D21="","",L21)) -> 2909321 | E22: =IF($E$16=$V$1,0,IF(D22="","",IF($E$14="Pago Fijo",MIN(IF($E$15="Mensualidad",-PMT(R22/12,$K$11-C21,D22)-F22,-PMT(R22/12,$K$11,$K$9)-F22),D22),MIN(X22*$K$9*$K$15/1000-F22,D22)))) -> 684.5451667 | F22: =IF($E$16=$V$1,0,IF(D22="","",D22*(R22/12))) -> 23759.45483 | G22: =IF($E$16=$V$1,0,IF(D22="","",L21*Resumen!$L$86/1000)) -> 1280.10124 | H22: =IF($E$16=$V$1,0,IF(D22="","",IF($E$11="Liquidez","0",AB22))) -> 923.4184854 | I22: =IF($E$16=$V$1,0,IF(D22="","",Amortización!$AE$14)) -> 0 | J22: =IFERROR(IF(OR($E$11=Resumen!$N$6,$E$8=Resumen!$N$6),Amortización!F22*0.16,0),"") -> 0 | K22: =IFERROR(IF(D22="","",E22+F22+G22+H22+I22+Y22+J22),0) -> 26647.51973 | L22: =IFERROR(IF(D22="","",IF((D22-E22-AI22-Q22)<1,0,D22-E22-AI22-Q22)),0) -> 2903636.455 | M22: 0 | N22: =IF(OR(O22="",O22=0),M22,M22-O22-P22) -> 0 | O22: =IF(M22="","",IF(AND($H$12="Comisión pago anticipado",C22<37),M22-(M22/(1+$K$12)),0)) -> 0 | P22: =IF(O22="","",IF(O22=0,0,O22*0.16)) -> 0 | Q22: =IF(OR(L21=0,L21=""),"",IF(E22>=D22,0,$E$17*10%)) -> 5000 | R22: =IF(D22="","",R21) -> 0.098 | T22: =C22 -> 2 | U22: =IF(D22="","",E22+F22+G22+H22/1.16+I22+Q22) -> 31520.15166 | V22: =IF($E$16=$V$1,AI22,IF(ISNUMBER(T22),IF($E$14="Pago Fijo",PMT(R22/12,$K$11,-$K$9),X22*$K$15*$K$9/1000)+G22+AI22+Q22+H22/1.16+$AE$14,0)) -> 31520.15166 | X22: 1 | Y22: 0 | AB22: =IF((($K$8*0.7)*($AE$13))>L21*($AE$13),($K$8*0.7)*($AE$13),($AE$13)*L21) -> 923.4184854 | AG22: =IF($AH$20=0,0,IF(N22>AH21,MAX(0,N22-AH21),N22)) -> 0 | AH22: =IFERROR(MAX(0,AH21-N22),0) -> 0 | AI22: =IF($E$16="no",N22,IF(AH22>0,0,AG22)) -> 0 | AK22: AdquisicionPremier100.0865 | AL22: 11.61 | AO22: 5 | AP22: =AP23-0.25% -> 0.0995 | AQ22: 50.0995 | AR22: 20.51 | AV22: =IF(OR(BE21="",BE21=0),"",IF(AV21+1>$K$11+$X$2,"",AV21+1)) ->  | AW22: =IF(IF(AW21="","",AW21-AX21-BM21-BY21)<0.01,"",IF(AW21="","",BE21)) ->  | AX22: =IF($E$16=$V$1,0,IF(AW22="","",PMT($AY$10/12,$AY$11,-$AW$21)-AY22)) ->  | AY22: =IF($E$16=$V$1,0,IF(AW22="","",AW22*(BH22/12))) ->  | AZ22: =IF($E$16=$V$1,0,IF(AW22="","",BE21*0/1000)) ->  | BA22: =IF($E$16=$V$1,0,IF(AW22="","",IF($E$11="Liquidez","0",0))) ->  | BB22: =IF($E$16=$V$1,0,IF(AW22="","",AW22*$AY$13/12)) ->  | BC22: =IFERROR(IF(OR($E$11=Resumen!$N$6,$E$8=Resumen!$N$6),Amortización!AY22*0.16,0),"") -> 0 | BD22: =IFERROR(IF(AW22="","",AX22+AY22+AZ22+BA22+BB22+BC22),0) ->  | BH22: =IF(AW22="","",BH21) ->  | BJ22: =AV22 ->  | BK22: =IF(AW22="","",AX22+AY22+AZ22+BA22/1.16+BB22/1.16) -> 
C23: 3 | D23: =IF(IF(D22="","",D22-E22-Q22-AI22)<0.01,"",IF(D22="","",L22)) -> 2903636.455 | E23: =IF($E$16=$V$1,0,IF(D23="","",IF($E$14="Pago Fijo",MIN(IF($E$15="Mensualidad",-PMT(R23/12,$K$11-C22,D23)-F23,-PMT(R23/12,$K$11,$K$9)-F23),D23),MIN(X23*$K$9*$K$15/1000-F23,D23)))) -> 730.9689522 | F23: =IF($E$16=$V$1,0,IF(D23="","",D23*(R23/12))) -> 23713.03105 | G23: =IF($E$16=$V$1,0,IF(D23="","",L22*Resumen!$L$86/1000)) -> 1277.60004 | H23: 921.6142108 | I23: =IF($E$16=$V$1,0,IF(D23="","",Amortización!$AE$14)) -> 0 | J23: =IFERROR(IF(OR($E$11=Resumen!$N$6,$E$8=Resumen!$N$6),Amortización!F23*0.16,0),"") -> 0 | K23: 26643.21425 | L23: 2902905.486 | M23: 0 | N23: 0 | O23: 0 | P23: 0 | R23: 0.098 | T23: 3 | U23: 26516.09505 | V23: 26516.09505 | X23: 1 | Y23: 0 | AB23: 921.6142108 | AE23: =PMT(R23/12,K11,-K9) -> 27697.62295 | AG23: 0 | AH23: 0 | AI23: 0 | AK23: AdquisicionPremier150.089 | AL23: 9.09 | AO23: 10 | AP23: =AP24-0.25% -> 0.102 | AQ23: 100.102 | AR23: 12.42 | AY23: =IF($E$16=$V$1,0,IF(AW23="","",AW23*(BH23/12))) ->  | BC23: =IFERROR(IF(OR($E$11=Resumen!$N$6,$E$8=Resumen!$N$6),Amortización!AY23*0.16,0),"") -> 0
C24: 4 | D24: 2902905.486 | E24: =IFERROR(IF($E$14&$E$16=$X$4,PMT(R24/12,$K$11,-$K$9)-F24,IF(D24="","",IF($E$14="Pago Fijo",MIN(IF($E$15="Mensualidad",-PMT(R24/12,$K$11-C23,D24)-F24,-PMT(R24/12,$K$11,$K$9)-F24),D24),MIN(X24*$K$9*$K$15/1000-F24,D24)))),0) -> 736.938532 | F24: =IF(D24="","",D24*(R24/12)) -> 23707.06147 | G24: =IF(D24="","",L23*Resumen!$L$86/1000) -> 1277.278414 | H24: 921.3822012 | I24: =IF($E$16=$V$1,0,IF(D24="","",Amortización!$AE$14)) -> 0 | J24: =IFERROR(IF(OR($E$11=Resumen!$N$6,$E$8=Resumen!$N$6),Amortización!F24*0.16,0),"") -> 0 | K24: 26642.66062 | L24: =IFERROR(IF(D24="","",IF((D24-E24-AI24-Q24)<1,0,D24-E24-AI24-Q24)),0) -> 2897168.547 | M24: 0 | N24: 0 | O24: 0 | P24: 0 | Q24: =IF(OR(L23=0,L23=""),"",IF(E24>=D24,0,$E$17*10%)) -> 5000 | R24: 0.098 | T24: 4 | U24: 31515.57341 | V24: 31515.57341 | X24: 1 | Y24: 0 | AB24: 921.3822012 | AE24: =AE23-AE21 -> 3932.622948 | AG24: 0 | AH24: 0 | AI24: 0 | AK24: AdquisicionPremier150.089 | AL24: 9.09 | AO24: 15 | AP24: =AP25 -> 0.1045 | AQ24: 150.1045 | AR24: 9.98 | AY24: =IF(AW24="","",AW24*(BH24/12)) ->  | BC24: =IFERROR(IF(OR($E$11=Resumen!$N$6,$E$8=Resumen!$N$6),Amortización!AY24*0.16,0),"") -> 0
C25: 5 | D25: 2897168.547 | E25: =IFERROR(IF($E$14&$E$16=$X$4,PMT(R25/12,$K$11,-$K$9)-F25,IF(D25="","",IF($E$14="Pago Fijo",MIN(IF($E$15="Mensualidad",-PMT(R25/12,$K$11-C24,D25)-F25,-PMT(R25/12,$K$11,$K$9)-F25),D25),MIN(X25*$K$9*$K$15/1000-F25,D25)))),0) -> 783.7901966 | F25: =IF(D25="","",D25*(R25/12)) -> 23660.2098 | G25: =IF(D25="","",L24*Resumen!$L$86/1000) -> 1274.754161 | H25: 919.5612969 | I25: =IF($E$16=$V$1,0,IF(D25="","",Amortización!$AE$14)) -> 0 | J25: =IFERROR(IF(OR($E$11=Resumen!$N$6,$E$8=Resumen!$N$6),Amortización!F25*0.16,0),"") -> 0 | K25: 26638.31546 | L25: 2896384.757 | M25: 0 | N25: 0 | O25: 0 | P25: 0 | R25: 0.098 | T25: 5 | U25: 26511.47942 | V25: 26511.47942 | X25: 1 | Y25: 0 | AB25: 919.5612969 | AG25: 0 | AH25: 0 | AI25: 0 | AK25: AdquisicionPremier150.089 | AL25: 9.09 | AO25: 20 | AP25: =AP26 -> 0.1045 | AQ25: 200.1045 | AR25: 8.8 | BC25: =IFERROR(IF(OR($E$11=Resumen!$N$6,$E$8=Resumen!$N$6),Amortización!AY25*0.16,0),"") -> 0
C26: 6 | D26: 2896384.757 | E26: 790.1911499 | F26: 23653.80885 | G26: =IF(D26="","",L25*Resumen!$L$86/1000) -> 1274.409293 | H26: 919.3125219 | I26: =IF($E$16=$V$1,0,IF(D26="","",Amortización!$AE$14)) -> 0 | J26: =IFERROR(IF(OR($E$11=Resumen!$N$6,$E$8=Resumen!$N$6),Amortización!F26*0.16,0),"") -> 0 | K26: 26637.72182 | L26: 2890594.566 | M26: 0 | N26: 0 | O26: 0 | P26: 0 | Q26: =IF(OR(L25=0,L25=""),"",IF(E26>=D26,0,$E$17*10%)) -> 5000 | R26: 0.098 | T26: 6 | U26: =IF(D26="","",E26+F26+G26+H26/1.16+I26+Q26) -> 31510.92009 | V26: 31510.92009 | X26: 1 | Y26: 0 | AB26: 919.3125219 | AG26: 0 | AH26: 0 | AI26: 0 | AK26: AdquisicionPremier200.089 | AL26: 7.84 | AO26: 25 | AP26: 0.1045 | AQ26: =AO26&AP26 -> 250.1045 | AR26: 8.76 | BC26: =IFERROR(IF(OR($E$11=Resumen!$N$6,$E$8=Resumen!$N$6),Amortización!AY26*0.16,0),"") -> 0
C27: 7 | D27: 2890594.566 | E27: 837.477711 | F27: 23606.52229 | G27: =IF(D27="","",L26*Resumen!$L$86/1000) -> 1271.861609 | H27: 917.4747152 | I27: =IF($E$16=$V$1,0,IF(D27="","",Amortización!$AE$14)) -> 0 | J27: =IFERROR(IF(OR($E$11=Resumen!$N$6,$E$8=Resumen!$N$6),Amortización!F27*0.16,0),"") -> 0 | K27: 26633.33632 | L27: 2889757.088 | M27: 0 | N27: 0 | O27: 0 | P27: 0 | R27: 0.098 | T27: 7 | U27: 26506.78809 | V27: 26506.78809 | X27: 1 | Y27: 0 | AB27: 917.4747152 | AG27: 0 | AH27: 0 | AI27: 0 | AK27: AdquisicionPremier200.089 | AL27: 7.84 | AO27: 5 | AP27: =AP31-0.25% -> 0.106 | AQ27: 50.106 | AR27: 20.83 | BC27: =IFERROR(IF(OR($E$11=Resumen!$N$6,$E$8=Resumen!$N$6),Amortización!AY27*0.16,0),"") -> 0
C28: 8 | D28: 2889757.088 | E28: 844.3171123 | F28: 23599.68289 | G28: =IF(D28="","",L27*Resumen!$L$86/1000) -> 1271.493119 | H28: 917.2088998 | I28: =IF($E$16=$V$1,0,IF(D28="","",Amortización!$AE$14)) -> 0 | J28: =IFERROR(IF(OR($E$11=Resumen!$N$6,$E$8=Resumen!$N$6),Amortización!F28*0.16,0),"") -> 0 | K28: 26632.70202 | L28: 2883912.771 | M28: 0 | N28: 0 | O28: 0 | P28: 0 | Q28: =IF(OR(L27=0,L27=""),"",IF(E28>=D28,0,$E$17*10%)) -> 5000 | R28: 0.098 | T28: 8 | U28: 31506.19045 | V28: 31506.19045 | X28: 1 | Y28: 0 | AB28: 917.2088998 | AG28: 0 | AH28: 0 | AI28: 0 | AK28: AdquisicionPremier200.089 | AL28: 7.84 | AO28: 5 | AP28: =AP32-0.25% -> 0.106 | AQ28: 50.106 | AR28: 20.83 | BC28: =IFERROR(IF(OR($E$11=Resumen!$N$6,$E$8=Resumen!$N$6),Amortización!AY28*0.16,0),"") -> 0
C29: 9 | D29: 2883912.771 | E29: 892.045702 | F29: 23551.9543 | G29: =IF(D29="","",L28*Resumen!$L$86/1000) -> 1268.921619 | H29: 915.3539136 | I29: =IF($E$16=$V$1,0,IF(D29="","",Amortización!$AE$14)) -> 0 | J29: =IFERROR(IF(OR($E$11=Resumen!$N$6,$E$8=Resumen!$N$6),Amortización!F29*0.16,0),"") -> 0 | K29: 26628.27553 | L29: 2883020.725 | M29: 0 | N29: 0 | O29: 0 | P29: 0 | R29: 0.098 | T29: 9 | U29: 26502.01982 | V29: 26502.01982 | X29: 1 | Y29: 0 | AB29: 915.3539136 | AG29: 0 | AH29: 0 | AI29: 0 | AK29: AdquisicionNo Premier50.084 | AL29: 19.77 | AO29: 5 | AP29: 0.1125 | AQ29: 50.1125 | AR29: 21.15 | BC29: =IFERROR(IF(OR($E$11=Resumen!$N$6,$E$8=Resumen!$N$6),Amortización!AY29*0.16,0),"") -> 0
C30: 10 | D30: 2883020.725 | E30: 899.3307419 | F30: 23544.66926 | G30: =IF(D30="","",L29*Resumen!$L$86/1000) -> 1268.529119 | H30: 915.0707783 | I30: =IF($E$16=$V$1,0,IF(D30="","",Amortización!$AE$14)) -> 0 | J30: =IFERROR(IF(OR($E$11=Resumen!$N$6,$E$8=Resumen!$N$6),Amortización!F30*0.16,0),"") -> 0 | K30: 26627.5999 | L30: 2877121.395 | M30: 0 | N30: 0 | O30: 0 | P30: 0 | Q30: =IF(OR(L29=0,L29=""),"",IF(E30>=D30,0,$E$17*10%)) -> 5000 | R30: 0.098 | T30: 10 | U30: 31501.38324 | V30: 31501.38324 | X30: 1 | Y30: 0 | AB30: 915.0707783 | AG30: 0 | AH30: 0 | AI30: 0 | AK30: AdquisicionNo Premier50.086 | AL30: 19.87 | AO30: 5 | AP30: 0.1175 | AQ30: 50.1175 | AR30: 21.39 | BC30: =IFERROR(IF(OR($E$11=Resumen!$N$6,$E$8=Resumen!$N$6),Amortización!AY30*0.16,0),"") -> 0
C31: 11 | D31: 2877121.395 | E31: 947.5086097 | F31: 23496.49139 | G31: =IF(D31="","",L30*Resumen!$L$86/1000) -> 1265.933414 | H31: 913.1983307 | I31: =IF($E$16=$V$1,0,IF(D31="","",Amortización!$AE$14)) -> 0 | J31: =IFERROR(IF(OR($E$11=Resumen!$N$6,$E$8=Resumen!$N$6),Amortización!F31*0.16,0),"") -> 0 | K31: 26623.13174 | L31: 2876173.886 | M31: 0 | N31: 0 | O31: 0 | P31: 0 | R31: 0.098 | T31: 11 | U31: 26497.17335 | V31: 26497.17335 | X31: 1 | Y31: 0 | AB31: 913.1983307 | AG31: 0 | AH31: 0 | AI31: 0 | AK31: AdquisicionNo Premier50.088 | AL31: 19.96 | AO31: 10 | AP31: =AP35-0.25% -> 0.1085 | AQ31: 100.1085 | AR31: 12.77 | BC31: =IFERROR(IF(OR($E$11=Resumen!$N$6,$E$8=Resumen!$N$6),Amortización!AY31*0.16,0),"") -> 0
C32: 12 | D32: 2876173.886 | E32: 955.2465966 | F32: 23488.7534 | G32: =IF(D32="","",L31*Resumen!$L$86/1000) -> 1265.51651 | H32: 912.8975915 | I32: =IF($E$16=$V$1,0,IF(D32="","",Amortización!$AE$14)) -> 0 | J32: =IFERROR(IF(OR($E$11=Resumen!$N$6,$E$8=Resumen!$N$6),Amortización!F32*0.16,0),"") -> 0 | K32: 26622.4141 | L32: 2870218.64 | M32: 0 | N32: 0 | O32: 0 | P32: 0 | Q32: =IF(OR(L31=0,L31=""),"",IF(E32>=D32,0,$E$17*10%)) -> 5000 | R32: 0.098 | T32: 12 | U32: 31496.49719 | V32: 31496.49719 | X32: 1 | Y32: 0 | AB32: 912.8975915 | AG32: 0 | AH32: 0 | AI32: 0 | AK32: AdquisicionNo Premier50.0915 | AL32: 20.13 | AO32: 10 | AP32: =AP36-0.25% -> 0.1085 | AQ32: 100.1085 | AR32: 12.77 | BC32: =IFERROR(IF(OR($E$11=Resumen!$N$6,$E$8=Resumen!$N$6),Amortización!AY32*0.16,0),"") -> 0
C33: 13 | D33: 2870218.64 | E33: =IFERROR(IF($E$14&$E$16=$X$4,PMT(R33/12,$K$11,-$K$9)-F33,IF(D33="","",IF($E$14="Pago Fijo",MIN(IF($E$15="Mensualidad",-PMT(R33/12,$K$11-C32,D33)-F33,-PMT(R33/12,$K$11,$K$9)-F33),D33),MIN(X33*$K$9*$K$15/1000-F33,D33)))),0) -> 1468.317111 | F33: 23440.11889 | G33: =IF(D33="","",L32*Resumen!$L$86/1000) -> 1262.896201 | H33: 911.0073962 | I33: =IF($E$16=$V$1,0,IF(D33="","",Amortización!$AE$14)) -> 0 | J33: =IFERROR(IF(OR($E$11=Resumen!$N$6,$E$8=Resumen!$N$6),Amortización!F33*0.16,0),"") -> 0 | K33: 27082.3396 | L33: 2868750.322 | M33: 0 | N33: 0 | O33: 0 | P33: 0 | R33: =IF(D33="","",R32)-IF(E8&E9&AB10&E14=AB8,0%,IF(E8&E9&AB10&E14=AB9,0%,0))+IF(E10&E8=V13,0%,0) -> 0.098 | T33: 13 | U33: =IF(D33="","",E33+F33+G33+H33/1.16+I33+Q33) -> 26956.68341 | V33: 26956.68341 | X33: =IF($E$16=$V$1,1,IF(OR(AND($E$8="Adquisicion",$E$9="Premier"),AND($E$8="Exclusiva",$E$9="Premier"),AND($E$8="Nomina Especial",$E$9="Premier")),X23*1.019,IF(OR(AND($E$8="Adquisicion",$E$9="No Premier"),AND($E$8="Exclusiva",$E$9="No Premier"),AND($E$8="Nomina Especial",$E$9="No Premier")),X23*1.019,IF($E$8="Pago de Hipoteca",X21*1.019)))) -> 1.019 | Y33: 0 | AB33: 911.0073962 | AG33: 0 | AH33: 0 | AI33: 0 | AK33: AdquisicionNo Premier100.0865 | AL33: 11.61 | AO33: 10 | AP33: 0.115 | AQ33: 100.115 | AR33: 13.13 | BC33: =IFERROR(IF(OR($E$11=Resumen!$N$6,$E$8=Resumen!$N$6),Amortización!AY33*0.16,0),"") -> 0 | BH33: =IF(AW33="","",BH32)-IF(AX8&AX9&BR10&AX14=BR8,0%,IF(AX8&AX9&BR10&AX14=BR9,0%,0))+IF(AX10&AX8=BL13,0%,0) -> 
C34: 14 | D34: 2868750.322 | E34: 1480.308367 | F34: 23428.12763 | G34: =IF(D34="","",L33*Resumen!$L$86/1000) -> 1262.250142 | H34: 910.5413523 | I34: =IF($E$16=$V$1,0,IF(D34="","",Amortización!$AE$14)) -> 0 | J34: =IFERROR(IF(OR($E$11=Resumen!$N$6,$E$8=Resumen!$N$6),Amortización!F34*0.16,0),"") -> 0 | K34: 27081.22749 | L34: 2862270.014 | M34: 0 | N34: 0 | O34: 0 | P34: 0 | Q34: =IF(OR(L33=0,L33=""),"",IF(E34>=D34,0,$E$17*10%)) -> 5000 | R34: =IF(D34="","",R33) -> 0.098 | T34: 14 | U34: 31955.63558 | V34: 31955.63558 | X34: =IF($E$16=$V$1,1,IF(OR(AND($E$8="Adquisicion",$E$9="Premier"),AND($E$8="Exclusiva",$E$9="Premier"),AND($E$8="Nomina Especial",$E$9="Premier")),X24*1.019,IF(OR(AND($E$8="Adquisicion",$E$9="No Premier"),AND($E$8="Exclusiva",$E$9="No Premier"),AND($E$8="Nomina Especial",$E$9="No Premier")),X24*1.019,IF($E$8="Pago de Hipoteca",X22*1.019)))) -> 1.019 | Y34: 0 | AB34: 910.5413523 | AG34: 0 | AH34: 0 | AI34: 0 | AK34: AdquisicionNo Premier100.0885 | AL34: 11.71 | AO34: 10 | AP34: 0.12 | AQ34: 100.12 | AR34: 13.41 | BC34: =IFERROR(IF(OR($E$11=Resumen!$N$6,$E$8=Resumen!$N$6),Amortización!AY34*0.16,0),"") -> 0 | BH34: =IF(AW34="","",BH33) -> 
C35: 15 | D35: 2862270.014 | E35: 1533.230885 | F35: 23375.20511 | G35: =IF(D35="","",L34*Resumen!$L$86/1000) -> 1259.398806 | H35: 908.4845025 | I35: =IF($E$16=$V$1,0,IF(D35="","",Amortización!$AE$14)) -> 0 | J35: =IFERROR(IF(OR($E$11=Resumen!$N$6,$E$8=Resumen!$N$6),Amortización!F35*0.16,0),"") -> 0 | K35: 27076.31931 | L35: 2860736.783 | M35: 0 | N35: 0 | O35: 0 | P35: 0 | R35: 0.098 | T35: 15 | U35: 26951.0111 | V35: 26951.0111 | X35: =IF($E$16=$V$1,1,IF(OR(AND($E$8="Adquisicion",$E$9="Premier"),AND($E$8="Exclusiva",$E$9="Premier"),AND($E$8="Nomina Especial",$E$9="Premier")),X25*1.019,IF(OR(AND($E$8="Adquisicion",$E$9="No Premier"),AND($E$8="Exclusiva",$E$9="No Premier"),AND($E$8="Nomina Especial",$E$9="No Premier")),X25*1.019,IF($E$8="Pago de Hipoteca",X23*1.019)))) -> 1.019 | Y35: 0 | AB35: 908.4845025 | AG35: 0 | AH35: 0 | AI35: 0 | AK35: AdquisicionNo Premier100.0905 | AL35: 11.81 | AO35: 15 | AP35: =AP39 -> 0.111 | AQ35: 150.111 | AR35: 10.37 | BC35: =IFERROR(IF(OR($E$11=Resumen!$N$6,$E$8=Resumen!$N$6),Amortización!AY35*0.16,0),"") -> 0
C36: 16 | D36: 2860736.783 | E36: 1545.752271 | F36: 23362.68373 | G36: =IF(D36="","",L35*Resumen!$L$86/1000) -> 1258.724185 | H36: 907.997855 | I36: =IF($E$16=$V$1,0,IF(D36="","",Amortización!$AE$14)) -> 0 | J36: =IFERROR(IF(OR($E$11=Resumen!$N$6,$E$8=Resumen!$N$6),Amortización!F36*0.16,0),"") -> 0 | K36: 27075.15804 | L36: 2854191.031 | M36: 0 | N36: 0 | O36: 0 | P36: 0 | Q36: =IF(OR(L35=0,L35=""),"",IF(E36>=D36,0,$E$17*10%)) -> 5000 | R36: 0.098 | T36: 16 | U36: 31949.91696 | V36: 31949.91696 | X36: =IF(OR(AND($E$8="Adquisicion",$E$9="Premier"),AND($E$8="Exclusiva",$E$9="Premier"),AND($E$8="Nomina Especial",$E$9="Premier")),X24*1.019,IF(OR(AND($E$8="Adquisicion",$E$9="No Premier"),AND($E$8="Exclusiva",$E$9="No Premier"),AND($E$8="Nomina Especial",$E$9="No Premier")),X24*1.019,IF($E$8="Pago de Hipoteca",X24*1.019))) -> 1.019 | Y36: 0 | AB36: 907.997855 | AG36: 0 | AH36: 0 | AI36: 0 | AK36: AdquisicionNo Premier100.094 | AL36: 12 | AO36: 15 | AP36: =AP40 -> 0.111 | AQ36: 150.111 | AR36: 10.37 | BC36: =IFERROR(IF(OR($E$11=Resumen!$N$6,$E$8=Resumen!$N$6),Amortización!AY36*0.16,0),"") -> 0
C37: 17 | D37: 2854191.031 | E37: 1599.209248 | F37: 23309.22675 | G37: =IF(D37="","",L36*Resumen!$L$86/1000) -> 1255.844054 | H37: 905.9202332 | I37: =IF($E$16=$V$1,0,IF(D37="","",Amortización!$AE$14)) -> 0 | J37: =IFERROR(IF(OR($E$11=Resumen!$N$6,$E$8=Resumen!$N$6),Amortización!F37*0.16,0),"") -> 0 | K37: 27070.20029 | L37: 2852591.822 | M37: 0 | N37: 0 | O37: 0 | P37: 0 | R37: 0.098 | T37: 17 | U37: 26945.24577 | V37: 26945.24577 | X37: =IF(OR(AND($E$8="Adquisicion",$E$9="Premier"),AND($E$8="Exclusiva",$E$9="Premier"),AND($E$8="Nomina Especial",$E$9="Premier")),X25*1.019,IF(OR(AND($E$8="Adquisicion",$E$9="No Premier"),AND($E$8="Exclusiva",$E$9="No Premier"),AND($E$8="Nomina Especial",$E$9="No Premier")),X25*1.019,IF($E$8="Pago de Hipoteca",X25*1.019))) -> 1.019 | Y37: 0 | AB37: 905.9202332 | AG37: 0 | AH37: 0 | AI37: 0 | AK37: AdquisicionNo Premier150.089 | AL37: 9.09 | AO37: 15 | AP37: 0.1175 | AQ37: 150.1175 | AR37: 10.77 | BC37: =IFERROR(IF(OR($E$11=Resumen!$N$6,$E$8=Resumen!$N$6),Amortización!AY37*0.16,0),"") -> 0
C38: 18 | D38: 2852591.822 | E38: 1612.269457 | F38: 23296.16654 | G38: =IF(D38="","",L37*Resumen!$L$86/1000) -> 1255.140402 | H38: 905.4126442 | I38: =IF($E$16=$V$1,0,IF(D38="","",Amortización!$AE$14)) -> 0 | J38: =IFERROR(IF(OR($E$11=Resumen!$N$6,$E$8=Resumen!$N$6),Amortización!F38*0.16,0),"") -> 0 | K38: 27068.98905 | L38: 2845979.552 | M38: 0 | N38: 0 | O38: 0 | P38: 0 | Q38: =IF(OR(L37=0,L37=""),"",IF(E38>=D38,0,$E$17*10%)) -> 5000 | R38: 0.098 | T38: 18 | U38: 31944.10454 | V38: 31944.10454 | X38: 1.019 | Y38: 0 | AB38: 905.4126442 | AG38: 0 | AH38: 0 | AI38: 0 | AK38: AdquisicionNo Premier150.091 | AL38: 9.2 | AO38: 15 | AP38: 0.1225 | AQ38: 150.1225 | AR38: 11.08 | BC38: =IFERROR(IF(OR($E$11=Resumen!$N$6,$E$8=Resumen!$N$6),Amortización!AY38*0.16,0),"") -> 0
C39: 19 | D39: 2845979.552 | E39: 1666.269657 | F39: 23242.16634 | G39: =IF(D39="","",L38*Resumen!$L$86/1000) -> 1252.231003 | H39: 903.3139099 | I39: =IF($E$16=$V$1,0,IF(D39="","",Amortización!$AE$14)) -> 0 | J39: =IFERROR(IF(OR($E$11=Resumen!$N$6,$E$8=Resumen!$N$6),Amortización!F39*0.16,0),"") -> 0 | K39: 27063.98091 | L39: 2844313.283 | M39: 0 | N39: 0 | O39: 0 | P39: 0 | R39: 0.098 | T39: 19 | U39: 26939.38589 | V39: 26939.38589 | X39: 1.019 | Y39: 0 | AB39: 903.3139099 | AG39: 0 | AH39: 0 | AI39: 0 | AK39: AdquisicionNo Premier150.093 | AL39: 9.31 | AO39: 20 | AP39: 0.111 | AQ39: 200.111 | AR39: 9.31 | BC39: =IFERROR(IF(OR($E$11=Resumen!$N$6,$E$8=Resumen!$N$6),Amortización!AY39*0.16,0),"") -> 0
C40: 20 | D40: 2844313.283 | E40: 1679.877526 | F40: 23228.55847 | G40: =IF(D40="","",L39*Resumen!$L$86/1000) -> 1251.497844 | H40: 902.7850359 | I40: =IF($E$16=$V$1,0,IF(D40="","",Amortización!$AE$14)) -> 0 | J40: =IFERROR(IF(OR($E$11=Resumen!$N$6,$E$8=Resumen!$N$6),Amortización!F40*0.16,0),"") -> 0 | K40: 27062.71888 | L40: 2837633.405 | M40: 0 | N40: 0 | O40: 0 | P40: 0 | Q40: =IF(OR(L39=0,L39=""),"",IF(E40>=D40,0,$E$17*10%)) -> 5000 | R40: 0.098 | T40: 20 | U40: 31938.19681 | V40: 31938.19681 | X40: 1.019 | Y40: 0 | AB40: 902.7850359 | AG40: 0 | AH40: 0 | AI40: 0 | AK40: AdquisicionNo Premier150.0965 | AL40: 9.52 | AO40: 20 | AP40: 0.111 | AQ40: 200.111 | AR40: 9.31 | BC40: =IFERROR(IF(OR($E$11=Resumen!$N$6,$E$8=Resumen!$N$6),Amortización!AY40*0.16,0),"") -> 0
C41: 21 | D41: 2837633.405 | E41: 1734.429859 | F41: 23174.00614 | G41: =IF(D41="","",L40*Resumen!$L$86/1000) -> 1248.558698 | H41: 900.6648427 | I41: =IF($E$16=$V$1,0,IF(D41="","",Amortización!$AE$14)) -> 0 | J41: =IFERROR(IF(OR($E$11=Resumen!$N$6,$E$8=Resumen!$N$6),Amortización!F41*0.16,0),"") -> 0 | K41: 27057.65954 | L41: 2835898.975 | M41: 0 | N41: 0 | O41: 0 | P41: 0 | R41: 0.098 | T41: 21 | U41: 26933.42991 | V41: 26933.42991 | X41: 1.019 | Y41: 0 | AB41: 900.6648427 | AG41: 0 | AH41: 0 | AI41: 0 | AK41: AdquisicionNo Premier200.089 | AL41: 7.84 | AO41: 20 | AP41: 0.1175 | AQ41: 200.1175 | AR41: 9.85 | BC41: =IFERROR(IF(OR($E$11=Resumen!$N$6,$E$8=Resumen!$N$6),Amortización!AY41*0.16,0),"") -> 0
C42: 22 | D42: 2835898.975 | E42: 1748.59437 | F42: 23159.84163 | G42: =IF(D42="","",L41*Resumen!$L$86/1000) -> 1247.795549 | H42: 900.1143347 | I42: =IF($E$16=$V$1,0,IF(D42="","",Amortización!$AE$14)) -> 0 | J42: =IFERROR(IF(OR($E$11=Resumen!$N$6,$E$8=Resumen!$N$6),Amortización!F42*0.16,0),"") -> 0 | K42: 27056.34588 | L42: 2829150.381 | M42: 0 | N42: 0 | O42: 0 | P42: 0 | Q42: =IF(OR(L41=0,L41=""),"",IF(E42>=D42,0,$E$17*10%)) -> 5000 | R42: 0.098 | T42: 22 | U42: 31932.19218 | V42: 31932.19218 | X42: 1.019 | Y42: 0 | AB42: 900.1143347 | AG42: 0 | AH42: 0 | AI42: 0 | AK42: AdquisicionNo Premier200.091 | AL42: 7.96 | AO42: 20 | AP42: 0.1225 | AQ42: 200.1225 | AR42: 10.26 | BC42: =IFERROR(IF(OR($E$11=Resumen!$N$6,$E$8=Resumen!$N$6),Amortización!AY42*0.16,0),"") -> 0
C43: 23 | D43: 2829150.381 | E43: 1803.70789 | F43: 23104.72811 | G43: =IF(D43="","",L42*Resumen!$L$86/1000) -> 1244.826168 | H43: 897.9723309 | I43: =IF($E$16=$V$1,0,IF(D43="","",Amortización!$AE$14)) -> 0 | J43: =IFERROR(IF(OR($E$11=Resumen!$N$6,$E$8=Resumen!$N$6),Amortización!F43*0.16,0),"") -> 0 | K43: 27051.2345 | L43: 2827346.673 | M43: 0 | N43: 0 | O43: 0 | P43: 0 | R43: 0.098 | T43: 23 | U43: 26927.37625 | V43: 26927.37625 | X43: 1.019 | Y43: 0 | AB43: 897.9723309 | AG43: 0 | AH43: 0 | AI43: 0 | AK43: AdquisicionNo Premier200.093 | AL43: 8.08 | AO43: 25 | AP43: =AP39 -> 0.111 | AQ43: 250.111 | AR43: 9.31 | BC43: =IFERROR(IF(OR($E$11=Resumen!$N$6,$E$8=Resumen!$N$6),Amortización!AY43*0.16,0),"") -> 0
C44: 24 | D44: 2827346.673 | E44: 1818.438171 | F44: 23089.99783 | G44: =IF(D44="","",L43*Resumen!$L$86/1000) -> 1244.032536 | H44: 897.399834 | I44: =IF($E$16=$V$1,0,IF(D44="","",Amortización!$AE$14)) -> 0 | J44: =IFERROR(IF(OR($E$11=Resumen!$N$6,$E$8=Resumen!$N$6),Amortización!F44*0.16,0),"") -> 0 | K44: 27049.86837 | L44: 2820528.235 | M44: 0 | N44: 0 | O44: 0 | P44: 0 | Q44: =IF(OR(L43=0,L43=""),"",IF(E44>=D44,0,$E$17*10%)) -> 5000 | R44: 0.098 | T44: 24 | U44: 31926.08908 | V44: 31926.08908 | X44: 1.019 | Y44: 0 | AB44: 897.399834 | AG44: 0 | AH44: 0 | AI44: 0 | AK44: AdquisicionNo Premier200.0965 | AL44: 8.3 | AO44: 25 | AP44: =AP40 -> 0.111 | AQ44: 250.111 | AR44: 9.31 | BC44: =IFERROR(IF(OR($E$11=Resumen!$N$6,$E$8=Resumen!$N$6),Amortización!AY44*0.16,0),"") -> 0
C45: 25 | D45: 2820528.235 | E45: 2347.382367 | F45: 23034.31392 | G45: =IF(D45="","",L44*Resumen!$L$86/1000) -> 1241.032423 | H45: 895.2356617 | I45: =IF($E$16=$V$1,0,IF(D45="","",Amortización!$AE$14)) -> 0 | J45: =IFERROR(IF(OR($E$11=Resumen!$N$6,$E$8=Resumen!$N$6),Amortización!F45*0.16,0),"") -> 0 | K45: 27517.96437 | L45: 2818180.852 | M45: 0 | N45: 0 | O45: 0 | P45: 0 | R45: =IF(D45="","",R44)-IF(E20&E21&AB23&E26=AB21,0%,IF(E20&E21&AB23&E26=AB22,0%,0))+IF(E22&E20=V25,0%,0) -> 0.098 | T45: 25 | U45: 27394.48359 | V45: 27394.48359 | X45: 1.038361 | Y45: 0 | AB45: 895.2356617 | AG45: 0 | AH45: 0 | AI45: 0 | AK45: ExclusivaNo Premier50.0825 | AL45: 19.7 | AO45: 25 | AP45: 0.1175 | AQ45: 250.1175 | AR45: 9.85 | BC45: =IFERROR(IF(OR($E$11=Resumen!$N$6,$E$8=Resumen!$N$6),Amortización!AY45*0.16,0),"") -> 0 | BH45: =IF(AW45="","",BH44)-IF(AX20&AX21&BR23&AX26=BR21,0%,IF(AX20&AX21&BR23&AX26=BR22,0%,0))+IF(AX22&AX20=BL25,0%,0) -> 
C46: 26 | D46: 2818180.852 | E46: 2366.552656 | F46: 23015.14363 | G46: =IF(D46="","",L45*Resumen!$L$86/1000) -> 1239.999575 | H46: 894.4906025 | I46: =IF($E$16=$V$1,0,IF(D46="","",Amortización!$AE$14)) -> 0 | J46: =IFERROR(IF(OR($E$11=Resumen!$N$6,$E$8=Resumen!$N$6),Amortización!F46*0.16,0),"") -> 0 | K46: 27516.18646 | L46: 2810814.3 | M46: 0 | N46: 0 | O46: 0 | P46: 0 | Q46: =IF(OR(L45=0,L45=""),"",IF(E46>=D46,0,$E$17*10%)) -> 5000 | R46: =IF(D46="","",R45) -> 0.098 | T46: 26 | U46: 32392.80845 | V46: 32392.80845 | X46: 1.038361 | Y46: 0 | AB46: 894.4906025 | AG46: 0 | AH46: 0 | AI46: 0 | AK46: ExclusivaNo Premier100.085 | AL46: 11.53 | AO46: 25 | AP46: 0.1225 | AQ46: 250.1225 | AR46: 10.26 | BC46: =IFERROR(IF(OR($E$11=Resumen!$N$6,$E$8=Resumen!$N$6),Amortización!AY46*0.16,0),"") -> 0 | BH46: =IF(AW46="","",BH45) -> 
C47: 27 | D47: 2810814.3 | E47: 2426.712836 | F47: 22954.98345 | G47: =IF(D47="","",L46*Resumen!$L$86/1000) -> 1236.758292 | H47: 892.1524587 | I47: =IF($E$16=$V$1,0,IF(D47="","",Amortización!$AE$14)) -> 0 | J47: =IFERROR(IF(OR($E$11=Resumen!$N$6,$E$8=Resumen!$N$6),Amortización!F47*0.16,0),"") -> 0 | K47: 27510.60703 | L47: 2808387.587 | M47: 0 | N47: 0 | O47: 0 | P47: 0 | R47: 0.098 | T47: 27 | U47: 27387.55152 | V47: 27387.55152 | X47: 1.038361 | Y47: 0 | AB47: 892.1524587 | AG47: 0 | AH47: 0 | AI47: 0 | AK47: ExclusivaNo Premier150.0875 | AL47: 9 | AO47: 5 | AP47: =AP48 -> 0.1075 | AQ47: 50.1075 | AR47: 20.9 | BC47: =IFERROR(IF(OR($E$11=Resumen!$N$6,$E$8=Resumen!$N$6),Amortización!AY47*0.16,0),"") -> 0
C48: 28 | D48: 2808387.587 | E48: 2446.530991 | F48: 22935.16529 | G48: =IF(D48="","",L47*Resumen!$L$86/1000) -> 1235.690538 | H48: 891.3822201 | I48: =IF($E$16=$V$1,0,IF(D48="","",Amortización!$AE$14)) -> 0 | J48: =IFERROR(IF(OR($E$11=Resumen!$N$6,$E$8=Resumen!$N$6),Amortización!F48*0.16,0),"") -> 0 | K48: 27508.76904 | L48: 2800941.056 | M48: 0 | N48: 0 | O48: 0 | P48: 0 | Q48: =IF(OR(L47=0,L47=""),"",IF(E48>=D48,0,$E$17*10%)) -> 5000 | R48: 0.098 | T48: 28 | U48: 32385.81977 | V48: 32385.81977 | X48: 1.038361 | Y48: 0 | AB48: 891.3822201 | AG48: 0 | AH48: 0 | AI48: 0 | AK48: ExclusivaNo Premier200.0875 | AL48: 7.75 | AO48: 6 | AP48: 0.1075 | AQ48: 60.1075 | AR48: 18.14 | BC48: =IFERROR(IF(OR($E$11=Resumen!$N$6,$E$8=Resumen!$N$6),Amortización!AY48*0.16,0),"") -> 0
C49: 29 | D49: 2800941.056 | E49: 2507.344328 | F49: 22874.35196 | G49: =IF(D49="","",L48*Resumen!$L$86/1000) -> 1232.414065 | H49: 889.0186911 | I49: =IF($E$16=$V$1,0,IF(D49="","",Amortización!$AE$14)) -> 0 | J49: =IFERROR(IF(OR($E$11=Resumen!$N$6,$E$8=Resumen!$N$6),Amortización!F49*0.16,0),"") -> 0 | K49: 27503.12904 | L49: 2798433.712 | M49: 0 | N49: 0 | O49: 0 | P49: 0 | R49: 0.098 | T49: 29 | U49: 27380.50577 | V49: 27380.50577 | X49: 1.038361 | Y49: 0 | AB49: 889.0186911 | AG49: 0 | AH49: 0 | AI49: 0 | AK49: Pago de HipotecaNo Premier50.0805 | AL49: 19.61 | AO49: 7 | AP49: 0.1075 | AQ49: 70.1075 | AR49: 16.18 | BC49: =IFERROR(IF(OR($E$11=Resumen!$N$6,$E$8=Resumen!$N$6),Amortización!AY49*0.16,0),"") -> 0
C50: 30 | D50: 2798433.712 | E50: 2527.820973 | F50: 22853.87531 | G50: =IF(D50="","",L49*Resumen!$L$86/1000) -> 1231.310833 | H50: 888.22286 | I50: =IF($E$16=$V$1,0,IF(D50="","",Amortización!$AE$14)) -> 0 | J50: =IFERROR(IF(OR($E$11=Resumen!$N$6,$E$8=Resumen!$N$6),Amortización!F50*0.16,0),"") -> 0 | K50: 27501.22998 | L50: 2790905.891 | M50: 0 | N50: 0 | O50: 0 | P50: 0 | Q50: =IF(OR(L49=0,L49=""),"",IF(E50>=D50,0,$E$17*10%)) -> 5000 | R50: 0.098 | T50: 30 | U50: 32378.71648 | V50: 32378.71648 | X50: 1.038361 | Y50: 0 | AB50: 888.22286 | AG50: 0 | AH50: 0 | AI50: 0 | AK50: Pago de HipotecaNo Premier100.083 | AL50: 11.43 | AO50: 8 | AP50: =AP51 -> 0.1075 | AQ50: 80.1075 | AR50: 14.73 | BC50: =IFERROR(IF(OR($E$11=Resumen!$N$6,$E$8=Resumen!$N$6),Amortización!AY50*0.16,0),"") -> 0
C51: 31 | D51: 2790905.891 | E51: 2589.298178 | F51: 22792.39811 | G51: =IF(D51="","",L50*Resumen!$L$86/1000) -> 1227.998592 | H51: 885.8335297 | I51: =IF($E$16=$V$1,0,IF(D51="","",Amortización!$AE$14)) -> 0 | J51: =IFERROR(IF(OR($E$11=Resumen!$N$6,$E$8=Resumen!$N$6),Amortización!F51*0.16,0),"") -> 0 | K51: 27495.52841 | L51: 2788316.592 | M51: 0 | N51: 0 | O51: 0 | P51: 0 | R51: 0.098 | T51: 31 | U51: 27373.34447 | V51: 27373.34447 | X51: 1.038361 | Y51: 0 | AB51: 885.8335297 | AG51: 0 | AH51: 0 | AI51: 0 | AK51: Pago de HipotecaNo Premier150.0855 | AL51: 8.89 | AO51: 9 | AP51: =AP52-0.25% -> 0.1075 | AQ51: 90.1075 | AR51: 13.61 | BC51: =IFERROR(IF(OR($E$11=Resumen!$N$6,$E$8=Resumen!$N$6),Amortización!AY51*0.16,0),"") -> 0
C52: 32 | D52: 2788316.592 | E52: 2610.444113 | F52: 22771.25217 | G52: =IF(D52="","",L51*Resumen!$L$86/1000) -> 1226.859301 | H52: 885.0116864 | I52: =IF($E$16=$V$1,0,IF(D52="","",Amortización!$AE$14)) -> 0 | J52: =IFERROR(IF(OR($E$11=Resumen!$N$6,$E$8=Resumen!$N$6),Amortización!F52*0.16,0),"") -> 0 | K52: 27493.56727 | L52: 2780706.148 | M52: 0 | N52: 0 | O52: 0 | P52: 0 | Q52: =IF(OR(L51=0,L51=""),"",IF(E52>=D52,0,$E$17*10%)) -> 5000 | R52: 0.098 | T52: 32 | U52: 32371.49669 | V52: 32371.49669 | X52: 1.038361 | Y52: 0 | AB52: 885.0116864 | AG52: 0 | AH52: 0 | AI52: 0 | AK52: Pago de HipotecaNo Premier200.0855 | AL52: 7.63 | AO52: 10 | AP52: =AP53 -> 0.11 | AQ52: 100.11 | AR52: 12.86 | BC52: =IFERROR(IF(OR($E$11=Resumen!$N$6,$E$8=Resumen!$N$6),Amortización!AY52*0.16,0),"") -> 0
C53: 33 | D53: 2780706.148 | E53: 2672.596073 | F53: 22709.10021 | G53: =IF(D53="","",L52*Resumen!$L$86/1000) -> 1223.510705 | H53: 882.5961315 | I53: =IF($E$16=$V$1,0,IF(D53="","",Amortización!$AE$14)) -> 0 | J53: =IFERROR(IF(OR($E$11=Resumen!$N$6,$E$8=Resumen!$N$6),Amortización!F53*0.16,0),"") -> 0 | K53: 27487.80312 | L53: 2778033.552 | M53: 0 | N53: 0 | O53: 0 | P53: 0 | R53: 0.098 | T53: 33 | U53: 27366.06572 | V53: 27366.06572 | X53: 1.038361 | Y53: 0 | AB53: 882.5961315 | AG53: 0 | AH53: 0 | AI53: 0 | AK53: ExclusivaPremier50.0825 | AL53: 19.7 | AO53: 11 | AP53: 0.11 | AQ53: 110.11 | AR53: 12.14 | BC53: =IFERROR(IF(OR($E$11=Resumen!$N$6,$E$8=Resumen!$N$6),Amortización!AY53*0.16,0),"") -> 0
C54: =IF(OR(L53="",L53=0),"",IF(C53+1>$K$11+$X$2,"",C53+1)) -> 34 | D54: 2778033.552 | E54: 2694.422274 | F54: 22687.27401 | G54: =IF(D54="","",L53*Resumen!$L$86/1000) -> 1222.334763 | H54: 881.7478495 | I54: =IF($E$16=$V$1,0,IF(D54="","",Amortización!$AE$14)) -> 0 | J54: =IFERROR(IF(OR($E$11=Resumen!$N$6,$E$8=Resumen!$N$6),Amortización!F54*0.16,0),"") -> 0 | K54: 27485.7789 | L54: 2770339.13 | M54: 0 | N54: 0 | O54: 0 | P54: 0 | Q54: =IF(OR(L53=0,L53=""),"",IF(E54>=D54,0,$E$17*10%)) -> 5000 | R54: 0.098 | T54: =C54 -> 34 | U54: 32364.1585 | V54: 32364.1585 | X54: 1.038361 | Y54: 0 | AB54: 881.7478495 | AG54: 0 | AH54: 0 | AI54: 0 | AK54: ExclusivaPremier50.0825 | AL54: 19.7 | AO54: 12 | AP54: 0.11 | AQ54: 120.11 | AR54: 11.56 | BC54: =IFERROR(IF(OR($E$11=Resumen!$N$6,$E$8=Resumen!$N$6),Amortización!AY54*0.16,0),"") -> 0
C55: 35 | D55: 2770339.13 | E55: 2757.260056 | F55: 22624.43623 | G55: =IF(D55="","",L54*Resumen!$L$86/1000) -> 1218.949217 | H55: 879.3056398 | I55: =IF($E$16=$V$1,0,IF(D55="","",Amortización!$AE$14)) -> 0 | J55: =IFERROR(IF(OR($E$11=Resumen!$N$6,$E$8=Resumen!$N$6),Amortización!F55*0.16,0),"") -> 0 | K55: 27479.95114 | L55: 2767581.87 | M55: 0 | N55: 0 | O55: 0 | P55: 0 | R55: 0.098 | T55: 35 | U55: 27358.6676 | V55: 27358.6676 | X55: 1.038361 | Y55: 0 | AB55: 879.3056398 | AG55: 0 | AH55: 0 | AI55: 0 | AK55: ExclusivaPremier50.0825 | AL55: 19.7 | AO55: 13 | AP55: =AP56 -> 0.11 | AQ55: 130.11 | AR55: 11.07 | BC55: =IFERROR(IF(OR($E$11=Resumen!$N$6,$E$8=Resumen!$N$6),Amortización!AY55*0.16,0),"") -> 0
C56: 36 | D56: 2767581.87 | E56: 2779.77768 | F56: =IF(D56="","",D56*(R56/12)) -> 22601.9186 | G56: =IF(D56="","",L55*Resumen!$L$86/1000) -> 1217.736023 | H56: 878.4304855 | I56: =IF($E$16=$V$1,0,IF(D56="","",Amortización!$AE$14)) -> 0 | J56: =IFERROR(IF(OR($E$11=Resumen!$N$6,$E$8=Resumen!$N$6),Amortización!F56*0.16,0),"") -> 0 | K56: 27477.86279 | L56: 2759802.092 | M56: 0 | N56: 0 | O56: 0 | P56: 0 | Q56: =IF(OR(L55=0,L55=""),"",IF(E56>=D56,0,$E$17*10%)) -> 5000 | R56: 0.098 | T56: 36 | U56: 32356.69997 | V56: 32356.69997 | X56: 1.038361 | Y56: 0 | AB56: 878.4304855 | AG56: 0 | AH56: 0 | AI56: 0 | AK56: ExclusivaPremier100.085 | AL56: 11.53 | AO56: 14 | AP56: =AP57-0.25% -> 0.11 | AQ56: 140.11 | AR56: 10.66 | BC56: =IFERROR(IF(OR($E$11=Resumen!$N$6,$E$8=Resumen!$N$6),Amortización!AY56*0.16,0),"") -> 0
C57: 37 | D57: 2759802.092 | E57: 3325.564761 | F57: 22538.38375 | G57: =IF(D57="","",L56*Resumen!$L$86/1000) -> 1214.312921 | H57: 875.9611841 | I57: =IF($E$16=$V$1,0,IF(D57="","",Amortización!$AE$14)) -> 0 | J57: =IFERROR(IF(OR($E$11=Resumen!$N$6,$E$8=Resumen!$N$6),Amortización!F57*0.16,0),"") -> 0 | K57: 27954.22262 | L57: 2756476.527 | M57: 0 | N57: 0 | O57: 0 | P57: 0 | R57: 0.098 | T57: 37 | U57: 27833.40039 | V57: 27833.40039 | X57: 1.058089859 | Y57: 0 | AB57: 875.9611841 | AG57: 0 | AH57: 0 | AI57: 0 | AK57: ExclusivaPremier100.085 | AL57: 11.53 | AO57: 15 | AP57: =AP58 -> 0.1125 | AQ57: 150.1125 | AR57: 10.46 | BC57: =IFERROR(IF(OR($E$11=Resumen!$N$6,$E$8=Resumen!$N$6),Amortización!AY57*0.16,0),"") -> 0
C58: 38 | D58: 2756476.527 | E58: 3352.723539 | F58: 22511.22497 | G58: =IF(D58="","",L57*Resumen!$L$86/1000) -> 1212.849672 | H58: 874.9056498 | I58: =IF($E$16=$V$1,0,IF(D58="","",Amortización!$AE$14)) -> 0 | J58: =IFERROR(IF(OR($E$11=Resumen!$N$6,$E$8=Resumen!$N$6),Amortización!F58*0.16,0),"") -> 0 | K58: 27951.70384 | L58: 2748123.804 | M58: 0 | N58: 0 | O58: 0 | P58: 0 | Q58: =IF(OR(L57=0,L57=""),"",IF(E58>=D58,0,$E$17*10%)) -> 5000 | R58: 0.098 | T58: 38 | U58: 32831.02719 | V58: 32831.02719 | X58: 1.058089859 | Y58: 0 | AB58: 874.9056498 | AG58: 0 | AH58: 0 | AI58: 0 | AK58: ExclusivaPremier100.085 | AL58: 11.53 | AO58: 16 | AP58: 0.1125 | AQ58: 160.1125 | AR58: 10.17 | BC58: =IFERROR(IF(OR($E$11=Resumen!$N$6,$E$8=Resumen!$N$6),Amortización!AY58*0.16,0),"") -> 0
C59: 39 | D59: 2748123.804 | E59: 3420.937448 | F59: 22443.01107 | G59: =IF(D59="","",L58*Resumen!$L$86/1000) -> 1209.174474 | H59: 872.2544954 | I59: =IF($E$16=$V$1,0,IF(D59="","",Amortización!$AE$14)) -> 0 | J59: =IFERROR(IF(OR($E$11=Resumen!$N$6,$E$8=Resumen!$N$6),Amortización!F59*0.16,0),"") -> 0 | K59: 27945.37748 | L59: 2744702.866 | M59: 0 | N59: 0 | O59: 0 | P59: 0 | R59: 0.098 | T59: 39 | U59: 27825.06652 | V59: 27825.06652 | X59: 1.058089859 | Y59: 0 | AB59: 872.2544954 | AG59: 0 | AH59: 0 | AI59: 0 | AK59: ExclusivaPremier150.0875 | AL59: 9 | AO59: 17 | AP59: 0.1125 | AQ59: 170.1125 | AR59: 9.91 | BC59: =IFERROR(IF(OR($E$11=Resumen!$N$6,$E$8=Resumen!$N$6),Amortización!AY59*0.16,0),"") -> 0
C60: 40 | D60: 2744702.866 | E60: 3448.875104 | F60: 22415.07341 | G60: =IF(D60="","",L59*Resumen!$L$86/1000) -> 1207.669261 | H60: 871.1686898 | I60: =IF($E$16=$V$1,0,IF(D60="","",Amortización!$AE$14)) -> 0 | J60: =IFERROR(IF(OR($E$11=Resumen!$N$6,$E$8=Resumen!$N$6),Amortización!F60*0.16,0),"") -> 0 | K60: 27942.78646 | L60: 2736253.991 | M60: 0 | N60: 0 | O60: 0 | P60: 0 | Q60: =IF(OR(L59=0,L59=""),"",IF(E60>=D60,0,$E$17*10%)) -> 5000 | R60: 0.098 | T60: 40 | U60: 32822.62527 | V60: 32822.62527 | X60: 1.058089859 | Y60: 0 | AB60: 871.1686898 | AG60: 0 | AH60: 0 | AI60: 0 | AK60: ExclusivaPremier150.0875 | AL60: 9 | AO60: 18 | AP60: 0.1125 | AQ60: 180.1125 | AR60: 9.69 | BC60: =IFERROR(IF(OR($E$11=Resumen!$N$6,$E$8=Resumen!$N$6),Amortización!AY60*0.16,0),"") -> 0
C61: 41 | D61: 2736253.991 | E61: 3517.874251 | F61: 22346.07426 | G61: =IF(D61="","",L60*Resumen!$L$86/1000) -> 1203.951756 | H61: 868.4870169 | I61: =IF($E$16=$V$1,0,IF(D61="","",Amortización!$AE$14)) -> 0 | J61: =IFERROR(IF(OR($E$11=Resumen!$N$6,$E$8=Resumen!$N$6),Amortización!F61*0.16,0),"") -> 0 | K61: 27936.38729 | L61: 2732736.117 | M61: 0 | N61: 0 | O61: 0 | P61: 0 | R61: 0.098 | T61: 41 | U61: 27816.59597 | V61: 27816.59597 | X61: 1.058089859 | Y61: 0 | AB61: 868.4870169 | AG61: 0 | AH61: 0 | AI61: 0 | AK61: ExclusivaPremier150.0875 | AL61: 9 | AO61: 19 | AP61: =AP62 -> 0.1125 | AQ61: 190.1125 | AR61: 9.49 | BC61: =IFERROR(IF(OR($E$11=Resumen!$N$6,$E$8=Resumen!$N$6),Amortización!AY61*0.16,0),"") -> 0
C62: 42 | D62: 2732736.117 | E62: 3546.603557 | F62: 22317.34496 | G62: =IF(D62="","",L61*Resumen!$L$86/1000) -> 1202.403892 | H62: 867.3704436 | I62: =IF($E$16=$V$1,0,IF(D62="","",Amortización!$AE$14)) -> 0 | J62: =IFERROR(IF(OR($E$11=Resumen!$N$6,$E$8=Resumen!$N$6),Amortización!F62*0.16,0),"") -> 0 | K62: 27933.72285 | L62: 2724189.514 | M62: 0 | N62: 0 | O62: 0 | P62: 0 | Q62: =IF(OR(L61=0,L61=""),"",IF(E62>=D62,0,$E$17*10%)) -> 5000 | R62: 0.098 | T62: 42 | U62: 32814.08555 | V62: 32814.08555 | X62: 1.058089859 | Y62: 0 | AB62: 867.3704436 | AG62: 0 | AH62: 0 | AI62: 0 | AK62: ExclusivaPremier200.0875 | AL62: 7.75 | AO62: 20 | AP62: 0.1125 | AQ62: 200.1125 | AR62: 9.43 | BC62: =IFERROR(IF(OR($E$11=Resumen!$N$6,$E$8=Resumen!$N$6),Amortización!AY62*0.16,0),"") -> 0
C63: 43 | D63: 2724189.514 | E63: 3616.40082 | F63: 22247.54769 | G63: =IF(D63="","",L62*Resumen!$L$86/1000) -> 1198.643386 | H63: 864.6577516 | I63: =IF($E$16=$V$1,0,IF(D63="","",Amortización!$AE$14)) -> 0 | J63: =IFERROR(IF(OR($E$11=Resumen!$N$6,$E$8=Resumen!$N$6),Amortización!F63*0.16,0),"") -> 0 | K63: 27927.24965 | L63: 2720573.113 | M63: 0 | N63: 0 | O63: 0 | P63: 0 | R63: 0.098 | T63: 43 | U63: 27807.98651 | V63: 27807.98651 | X63: 1.058089859 | Y63: 0 | AB63: 864.6577516 | AG63: 0 | AH63: 0 | AI63: 0 | AK63: ExclusivaPremier200.0875 | AL63: 7.75 | AO63: 25 | AP63: 0.111 | AQ63: 250.111 | AR63: 9.31 | BC63: =IFERROR(IF(OR($E$11=Resumen!$N$6,$E$8=Resumen!$N$6),Amortización!AY63*0.16,0),"") -> 0
C64: 44 | D64: 2720573.113 | E64: 3645.93476 | F64: 22218.01375 | G64: =IF(D64="","",L63*Resumen!$L$86/1000) -> 1197.05217 | H64: 863.509906 | I64: =IF($E$16=$V$1,0,IF(D64="","",Amortización!$AE$14)) -> 0 | J64: =IFERROR(IF(OR($E$11=Resumen!$N$6,$E$8=Resumen!$N$6),Amortización!F64*0.16,0),"") -> 0 | K64: 27924.51059 | L64: 2711927.178 | M64: 0 | N64: 0 | O64: 0 | P64: 0 | Q64: =IF(OR(L63=0,L63=""),"",IF(E64>=D64,0,$E$17*10%)) -> 5000 | R64: 0.098 | T64: 44 | U64: 32805.40577 | V64: 32805.40577 | X64: 1.058089859 | Y64: 0 | AB64: 863.509906 | AG64: 0 | AH64: 0 | AI64: 0 | AK64: ExclusivaPremier200.0875 | AL64: 7.75 | AO64: 20 | AP64: 0.111 | AQ64: 200.111 | AR64: 9.31 | BC64: =IFERROR(IF(OR($E$11=Resumen!$N$6,$E$8=Resumen!$N$6),Amortización!AY64*0.16,0),"") -> 0
C65: 45 | D65: 2711927.178 | E65: 3716.543227 | F65: 22147.40529 | G65: =IF(D65="","",L64*Resumen!$L$86/1000) -> 1193.247958 | H65: 860.7656863 | I65: =IF($E$16=$V$1,0,IF(D65="","",Amortización!$AE$14)) -> 0 | J65: =IFERROR(IF(OR($E$11=Resumen!$N$6,$E$8=Resumen!$N$6),Amortización!F65*0.16,0),"") -> 0 | K65: 27917.96216 | L65: 2708210.635 | M65: 0 | N65: 0 | O65: 0 | P65: 0 | R65: 0.098 | T65: 45 | U65: 27799.23586 | V65: 27799.23586 | X65: 1.058089859 | Y65: 0 | AB65: 860.7656863 | AG65: 0 | AH65: 0 | AI65: 0 | AK65: Pago de HipotecaPremier50.0805 | AL65: 19.61 | AO65: 15 | AP65: =AP64 -> 0.111 | AQ65: 150.111 | AR65: 10.37 | BC65: =IFERROR(IF(OR($E$11=Resumen!$N$6,$E$8=Resumen!$N$6),Amortización!AY65*0.16,0),"") -> 0
C66: 46 | D66: 2708210.635 | E66: 3746.894996 | F66: 22117.05352 | G66: =IF(D66="","",L65*Resumen!$L$86/1000) -> 1191.612679 | H66: 859.5860555 | I66: =IF($E$16=$V$1,0,IF(D66="","",Amortización!$AE$14)) -> 0 | J66: =IFERROR(IF(OR($E$11=Resumen!$N$6,$E$8=Resumen!$N$6),Amortización!F66*0.16,0),"") -> 0 | K66: 27915.14725 | L66: 2699463.74 | M66: 0 | N66: 0 | O66: 0 | P66: 0 | Q66: =IF(OR(L65=0,L65=""),"",IF(E66>=D66,0,$E$17*10%)) -> 5000 | R66: 0.098 | T66: 46 | U66: 32796.58365 | V66: 32796.58365 | X66: 1.058089859 | Y66: 0 | AB66: 859.5860555 | AG66: 0 | AH66: 0 | AI66: 0 | AK66: Pago de HipotecaPremier100.083 | AL66: 11.43 | AO66: 10 | AP66: =AP65-0.25% -> 0.1085 | AQ66: 100.1085 | AR66: 12.77 | BC66: =IFERROR(IF(OR($E$11=Resumen!$N$6,$E$8=Resumen!$N$6),Amortización!AY66*0.16,0),"") -> 0
C67: 47 | D67: 2699463.74 | E67: 3818.327972 | F67: 22045.62054 | G67: =IF(D67="","",L66*Resumen!$L$86/1000) -> 1187.764045 | H67: 856.809791 | I67: =IF($E$16=$V$1,0,IF(D67="","",Amortización!$AE$14)) -> 0 | J67: =IFERROR(IF(OR($E$11=Resumen!$N$6,$E$8=Resumen!$N$6),Amortización!F67*0.16,0),"") -> 0 | K67: 27908.52235 | L67: 2695645.412 | M67: 0 | N67: 0 | O67: 0 | P67: 0 | R67: 0.098 | T67: 47 | U67: 27790.34169 | V67: 27790.34169 | X67: 1.058089859 | Y67: 0 | AB67: 856.809791 | AG67: 0 | AH67: 0 | AI67: 0 | AK67: Pago de HipotecaPremier150.0855 | AL67: 8.89 | AO67: 5 | AP67: =AP66-0.25% -> 0.106 | AQ67: 50.106 | AR67: 20.83 | BC67: =IFERROR(IF(OR($E$11=Resumen!$N$6,$E$8=Resumen!$N$6),Amortización!AY67*0.16,0),"") -> 0
C68: 48 | D68: 2695645.412 | E68: 3849.510984 | F68: 22014.43753 | G68: =IF(D68="","",L67*Resumen!$L$86/1000) -> 1186.083981 | H68: 855.5978537 | I68: =IF($E$16=$V$1,0,IF(D68="","",Amortización!$AE$14)) -> 0 | J68: =IFERROR(IF(OR($E$11=Resumen!$N$6,$E$8=Resumen!$N$6),Amortización!F68*0.16,0),"") -> 0 | K68: 27905.63035 | L68: 2686795.901 | M68: 0 | N68: 0 | O68: 0 | P68: 0 | Q68: =IF(OR(L67=0,L67=""),"",IF(E68>=D68,0,$E$17*10%)) -> 5000 | R68: 0.098 | T68: 48 | U68: 32787.61685 | V68: 32787.61685 | X68: 1.058089859 | Y68: 0 | AB68: 855.5978537 | AG68: 0 | AH68: 0 | AI68: 0 | AK68: Pago de HipotecaPremier200.0855 | AL68: 7.63 | AO68: 25 | AP68: 0.0975 | AQ68: 250.0975 | AR68: 8.18 | BC68: =IFERROR(IF(OR($E$11=Resumen!$N$6,$E$8=Resumen!$N$6),Amortización!AY68*0.16,0),"") -> 0
C69: 49 | D69: 2686795.901 | E69: 4413.197012 | F69: 21942.16652 | G69: =IF(D69="","",L68*Resumen!$L$86/1000) -> 1182.190196 | H69: 852.7890189 | I69: =IF($E$16=$V$1,0,IF(D69="","",Amortización!$AE$14)) -> 0 | J69: =IFERROR(IF(OR($E$11=Resumen!$N$6,$E$8=Resumen!$N$6),Amortización!F69*0.16,0),"") -> 0 | K69: 28390.34275 | L69: 2682382.704 | M69: 0 | N69: 0 | O69: 0 | P69: 0 | R69: 0.098 | T69: 49 | U69: 28272.71668 | V69: 28272.71668 | X69: 1.078193566 | Y69: 0 | AB69: 852.7890189 | AG69: 0 | AH69: 0 | AI69: 0 | AK69: AdquisicionPremier50.0805 | AL69: 19.61 | AO69: 20 | AP69: 0.0975 | AQ69: =AO69&AP69 -> 200.0975 | AR69: 8.36 | BC69: =IFERROR(IF(OR($E$11=Resumen!$N$6,$E$8=Resumen!$N$6),Amortización!AY69*0.16,0),"") -> 0
C70: 50 | D70: 2682382.704 | E70: 4449.238121 | F70: 21906.12541 | G70: =IF(D70="","",L69*Resumen!$L$86/1000) -> 1180.24839 | H70: 851.3882702 | I70: =IF($E$16=$V$1,0,IF(D70="","",Amortización!$AE$14)) -> 0 | J70: =IFERROR(IF(OR($E$11=Resumen!$N$6,$E$8=Resumen!$N$6),Amortización!F70*0.16,0),"") -> 0 | K70: 28387.00019 | L70: 2672933.466 | M70: 0 | N70: 0 | O70: 0 | P70: 0 | Q70: =IF(OR(L69=0,L69=""),"",IF(E70>=D70,0,$E$17*10%)) -> 5000 | R70: 0.098 | T70: 50 | U70: 33269.56733 | V70: 33269.56733 | X70: 1.078193566 | Y70: 0 | AB70: 851.3882702 | AG70: 0 | AH70: 0 | AI70: 0 | AK70: AdquisicionPremier100.083 | AL70: 11.43 | AO70: 15 | AP70: =AP69 -> 0.0975 | AQ70: 150.0975 | AR70: 9.57 | BC70: =IFERROR(IF(OR($E$11=Resumen!$N$6,$E$8=Resumen!$N$6),Amortización!AY70*0.16,0),"") -> 0
C71: 51 | D71: 2672933.466 | E71: 4526.406899 | F71: 21828.95664 | G71: =IF(D71="","",L70*Resumen!$L$86/1000) -> 1176.090725 | H71: 848.389082 | I71: =IF($E$16=$V$1,0,IF(D71="","",Amortización!$AE$14)) -> 0 | J71: =IFERROR(IF(OR($E$11=Resumen!$N$6,$E$8=Resumen!$N$6),Amortización!F71*0.16,0),"") -> 0 | K71: 28379.84334 | L71: 2668407.059 | M71: 0 | N71: 0 | O71: 0 | P71: 0 | R71: 0.098 | T71: 51 | U71: 28262.82416 | V71: 28262.82416 | X71: 1.078193566 | Y71: 0 | AB71: 848.389082 | AG71: 0 | AH71: 0 | AI71: 0 | AK71: AdquisicionPremier150.0855 | AL71: 8.89 | AO71: 10 | AP71: =AP70-0.25% -> 0.095 | AQ71: 100.095 | AR71: 12.05 | BC71: =IFERROR(IF(OR($E$11=Resumen!$N$6,$E$8=Resumen!$N$6),Amortización!AY71*0.16,0),"") -> 0
C72: 52 | D72: 2668407.059 | E72: 4563.372555 | F72: 21791.99098 | G72: =IF(D72="","",L71*Resumen!$L$86/1000) -> 1174.099106 | H72: 846.9524004 | I72: =IF($E$16=$V$1,0,IF(D72="","",Amortización!$AE$14)) -> 0 | J72: =IFERROR(IF(OR($E$11=Resumen!$N$6,$E$8=Resumen!$N$6),Amortización!F72*0.16,0),"") -> 0 | K72: 28376.41504 | L72: 2658843.686 | M72: 0 | N72: 0 | O72: 0 | P72: 0 | Q72: =IF(OR(L71=0,L71=""),"",IF(E72>=D72,0,$E$17*10%)) -> 5000 | R72: 0.098 | T72: 52 | U72: 33259.59402 | V72: 33259.59402 | X72: 1.078193566 | Y72: 0 | AB72: 846.9524004 | AG72: 0 | AH72: 0 | AI72: 0 | AK72: AdquisicionPremier200.0855 | AL72: 7.63 | AO72: 5 | AP72: =AP71-0.25% -> 0.0925 | AQ72: 50.0925 | AR72: 20.18 | BC72: =IFERROR(IF(OR($E$11=Resumen!$N$6,$E$8=Resumen!$N$6),Amortización!AY72*0.16,0),"") -> 0
C73: 53 | D73: 2658843.686 | E73: 4641.473431 | F73: 21713.8901 | G73: =IF(D73="","",L72*Resumen!$L$86/1000) -> 1169.891222 | H73: 843.916986 | I73: =IF($E$16=$V$1,0,IF(D73="","",Amortización!$AE$14)) -> 0 | J73: =IFERROR(IF(OR($E$11=Resumen!$N$6,$E$8=Resumen!$N$6),Amortización!F73*0.16,0),"") -> 0 | K73: 28369.17174 | L73: 2654202.213 | M73: 0 | N73: 0 | O73: 0 | P73: 0 | R73: 0.098 | T73: 53 | U73: 28252.7694 | V73: 28252.7694 | X73: 1.078193566 | Y73: 0 | AB73: 843.916986 | AG73: 0 | AH73: 0 | AI73: 0 | AK73: AdquisicionPremier50.0745 | AL73: 19.33 | AO73: 25 | AP73: 0.098 | AQ73: 250.098 | AR73: 8.24 | BC73: =IFERROR(IF(OR($E$11=Resumen!$N$6,$E$8=Resumen!$N$6),Amortización!AY73*0.16,0),"") -> 0
C74: 54 | D74: 2654202.213 | E74: 4679.378798 | F74: 21675.98474 | G74: =IF(D74="","",L73*Resumen!$L$86/1000) -> 1167.848974 | H74: 842.4437823 | I74: =IF($E$16=$V$1,0,IF(D74="","",Amortización!$AE$14)) -> 0 | J74: =IFERROR(IF(OR($E$11=Resumen!$N$6,$E$8=Resumen!$N$6),Amortización!F74*0.16,0),"") -> 0 | K74: 28365.65629 | L74: 2644522.834 | M74: 0 | N74: 0 | O74: 0 | P74: 0 | Q74: =IF(OR(L73=0,L73=""),"",IF(E74>=D74,0,$E$17*10%)) -> 5000 | R74: 0.098 | T74: 54 | U74: 33249.45715 | V74: 33249.45715 | X74: 1.078193566 | Y74: 0 | AB74: 842.4437823 | AG74: 0 | AH74: 0 | AI74: 0 | AK74: AdquisicionPremier100.077 | AL74: 11.12 | AO74: 20 | AP74: 0.098 | AQ74: 200.098 | AR74: 8.4 | BC74: =IFERROR(IF(OR($E$11=Resumen!$N$6,$E$8=Resumen!$N$6),Amortización!AY74*0.16,0),"") -> 0
C75: 55 | D75: 2644522.834 | E75: 4758.427058 | F75: 21596.93648 | G75: =IF(D75="","",L74*Resumen!$L$86/1000) -> 1163.590047 | H75: 839.3715475 | I75: =IF($E$16=$V$1,0,IF(D75="","",Amortización!$AE$14)) -> 0 | J75: =IFERROR(IF(OR($E$11=Resumen!$N$6,$E$8=Resumen!$N$6),Amortización!F75*0.16,0),"") -> 0 | K75: 28358.32513 | L75: 2639764.407 | M75: 0 | N75: 0 | O75: 0 | P75: 0 | R75: 0.098 | T75: 55 | U75: 28242.54974 | V75: 28242.54974 | X75: 1.078193566 | Y75: 0 | AB75: 839.3715475 | AG75: 0 | AH75: 0 | AI75: 0 | AK75: AdquisicionPremier150.0795 | AL75: 8.56 | AO75: 15 | AP75: 0.098 | AQ75: 150.098 | AR75: 9.62 | BC75: =IFERROR(IF(OR($E$11=Resumen!$N$6,$E$8=Resumen!$N$6),Amortización!AY75*0.16,0),"") -> 0
C76: 56 | D76: 2639764.407 | E76: 4797.287545 | F76: 21558.07599 | G76: =IF(D76="","",L75*Resumen!$L$86/1000) -> 1161.496339 | H76: 837.8612227 | I76: =IF($E$16=$V$1,0,IF(D76="","",Amortización!$AE$14)) -> 0 | J76: =IFERROR(IF(OR($E$11=Resumen!$N$6,$E$8=Resumen!$N$6),Amortización!F76*0.16,0),"") -> 0 | K76: 28354.7211 | L76: 2629967.119 | M76: 0 | N76: 0 | O76: 0 | P76: 0 | Q76: =IF(OR(L75=0,L75=""),"",IF(E76>=D76,0,$E$17*10%)) -> 5000 | R76: 0.098 | T76: 56 | U76: 33239.15403 | V76: 33239.15403 | X76: 1.078193566 | Y76: 0 | AB76: 837.8612227 | AG76: 0 | AH76: 0 | AI76: 0 | AK76: AdquisicionPremier200.0795 | AL76: 7.28 | AO76: 10 | AP76: 0.098 | AQ76: 100.098 | AR76: 12.21 | BC76: =IFERROR(IF(OR($E$11=Resumen!$N$6,$E$8=Resumen!$N$6),Amortización!AY76*0.16,0),"") -> 0
C77: 57 | D77: 2629967.119 | E77: 4877.298727 | F77: 21478.06481 | G77: =IF(D77="","",L76*Resumen!$L$86/1000) -> 1157.185533 | H77: 834.7515637 | I77: =IF($E$16=$V$1,0,IF(D77="","",Amortización!$AE$14)) -> 0 | J77: =IFERROR(IF(OR($E$11=Resumen!$N$6,$E$8=Resumen!$N$6),Amortización!F77*0.16,0),"") -> 0 | K77: 28347.30063 | L77: 2625089.821 | M77: 0 | N77: 0 | O77: 0 | P77: 0 | R77: 0.098 | T77: 57 | U77: 28232.16248 | V77: 28232.16248 | X77: 1.078193566 | Y77: 0 | AB77: 834.7515637 | AG77: 0 | AH77: 0 | AI77: 0 | AK77: Pago de HipotecaPremier50.0745 | AL77: 19.33 | AO77: 5 | AP77: 0.098 | AQ77: 50.098 | AR77: 20.48 | BC77: =IFERROR(IF(OR($E$11=Resumen!$N$6,$E$8=Resumen!$N$6),Amortización!AY77*0.16,0),"") -> 0
C78: 58 | D78: 2625089.821 | E78: 4917.13 | F78: 21438.23354 | G78: =IF(D78="","",L77*Resumen!$L$86/1000) -> 1155.039521 | H78: 833.2035091 | I78: =IF($E$16=$V$1,0,IF(D78="","",Amortización!$AE$14)) -> 0 | J78: =IFERROR(IF(OR($E$11=Resumen!$N$6,$E$8=Resumen!$N$6),Amortización!F78*0.16,0),"") -> 0 | K78: 28343.60657 | L78: 2615172.691 | M78: 0 | N78: 0 | O78: 0 | P78: 0 | Q78: =IF(OR(L77=0,L77=""),"",IF(E78>=D78,0,$E$17*10%)) -> 5000 | R78: 0.098 | T78: 58 | U78: 33228.68194 | V78: 33228.68194 | X78: 1.078193566 | Y78: 0 | AB78: 833.2035091 | AG78: 0 | AH78: 0 | AI78: 0 | AK78: Pago de HipotecaPremier100.077 | AL78: 11.12 | BC78: =IFERROR(IF(OR($E$11=Resumen!$N$6,$E$8=Resumen!$N$6),Amortización!AY78*0.16,0),"") -> 0
C79: 59 | D79: 2615172.691 | E79: 4998.119895 | F79: 21357.24364 | G79: =IF(D79="","",L78*Resumen!$L$86/1000) -> 1150.675984 | H79: 830.055812 | I79: =IF($E$16=$V$1,0,IF(D79="","",Amortización!$AE$14)) -> 0 | J79: =IFERROR(IF(OR($E$11=Resumen!$N$6,$E$8=Resumen!$N$6),Amortización!F79*0.16,0),"") -> 0 | K79: 28336.09533 | L79: 2610174.571 | M79: 0 | N79: 0 | O79: 0 | P79: 0 | R79: 0.098 | T79: 59 | U79: 28221.60487 | V79: 28221.60487 | X79: 1.078193566 | Y79: 0 | AB79: 830.055812 | AG79: 0 | AH79: 0 | AI79: 0 | AK79: Pago de HipotecaPremier150.0795 | AL79: 8.56 | BC79: =IFERROR(IF(OR($E$11=Resumen!$N$6,$E$8=Resumen!$N$6),Amortización!AY79*0.16,0),"") -> 0
C80: 60 | D80: 2610174.571 | E80: 5038.937874 | F80: 21316.42566 | G80: =IF(D80="","",L79*Resumen!$L$86/1000) -> 1148.476811 | H80: 828.4694087 | I80: =IF($E$16=$V$1,0,IF(D80="","",Amortización!$AE$14)) -> 0 | J80: =IFERROR(IF(OR($E$11=Resumen!$N$6,$E$8=Resumen!$N$6),Amortización!F80*0.16,0),"") -> 0 | K80: 28332.30976 | L80: 2600135.633 | M80: 0 | N80: 0 | O80: 0 | P80: 0 | Q80: =IF(OR(L79=0,L79=""),"",IF(E80>=D80,0,$E$17*10%)) -> 5000 | R80: 0.098 | T80: 60 | U80: 33218.03811 | V80: 33218.03811 | X80: 1.078193566 | Y80: 0 | AB80: 828.4694087 | AG80: 0 | AH80: 0 | AI80: 0 | AK80: Pago de HipotecaPremier200.0795 | AL80: 7.28 | BC80: =IFERROR(IF(OR($E$11=Resumen!$N$6,$E$8=Resumen!$N$6),Amortización!AY80*0.16,0),"") -> 0
C81: 61 | D81: 2600135.633 | E81: 5621.674441 | F81: 21234.441 | G81: =IF(D81="","",L80*Resumen!$L$86/1000) -> 1144.059678 | H81: 825.2830499 | I81: =IF($E$16=$V$1,0,IF(D81="","",Amortización!$AE$14)) -> 0 | J81: =IFERROR(IF(OR($E$11=Resumen!$N$6,$E$8=Resumen!$N$6),Amortización!F81*0.16,0),"") -> 0 | K81: 28825.45817 | L81: 2594513.958 | M81: 0 | N81: 0 | O81: 0 | P81: 0 | R81: 0.098 | T81: 61 | U81: 28711.62603 | V81: 28711.62603 | X81: 1.098679244 | Y81: 0 | AB81: 825.2830499 | AG81: 0 | AH81: 0 | AI81: 0 | BC81: =IFERROR(IF(OR($E$11=Resumen!$N$6,$E$8=Resumen!$N$6),Amortización!AY81*0.16,0),"") -> 0
C82: 62 | D82: 2594513.958 | E82: 5667.584782 | F82: 21188.53066 | G82: =IF(D82="","",L81*Resumen!$L$86/1000) -> 1141.586142 | H82: 823.4987304 | I82: =IF($E$16=$V$1,0,IF(D82="","",Amortización!$AE$14)) -> 0 | J82: =IFERROR(IF(OR($E$11=Resumen!$N$6,$E$8=Resumen!$N$6),Amortización!F82*0.16,0),"") -> 0 | K82: 28821.20031 | L82: 2583846.374 | M82: 0 | N82: 0 | O82: 0 | P82: 0 | Q82: =IF(OR(L81=0,L81=""),"",IF(E82>=D82,0,$E$17*10%)) -> 5000 | R82: 0.098 | T82: 62 | U82: 33707.61428 | V82: 33707.61428 | X82: 1.098679244 | Y82: 0 | AB82: 823.4987304 | AG82: 0 | AH82: 0 | AI82: 0 | BC82: =IFERROR(IF(OR($E$11=Resumen!$N$6,$E$8=Resumen!$N$6),Amortización!AY82*0.16,0),"") -> 0
C83: 63 | D83: 2583846.374 | E83: 5754.703391 | F83: 21101.41205 | G83: =IF(D83="","",L82*Resumen!$L$86/1000) -> 1136.892404 | H83: 820.112839 | I83: =IF($E$16=$V$1,0,IF(D83="","",Amortización!$AE$14)) -> 0 | J83: =IFERROR(IF(OR($E$11=Resumen!$N$6,$E$8=Resumen!$N$6),Amortización!F83*0.16,0),"") -> 0 | K83: 28813.12069 | L83: 2578091.67 | M83: 0 | N83: 0 | O83: 0 | P83: 0 | R83: 0.098 | T83: 63 | U83: 28700.00167 | V83: 28700.00167 | X83: 1.098679244 | Y83: 0 | AB83: 820.112839 | AG83: 0 | AH83: 0 | AI83: 0 | BC83: =IFERROR(IF(OR($E$11=Resumen!$N$6,$E$8=Resumen!$N$6),Amortización!AY83*0.16,0),"") -> 0
C84: 64 | D84: 2578091.67 | E84: 5801.700135 | F84: 21054.41531 | G84: =IF(D84="","",L83*Resumen!$L$86/1000) -> 1134.360335 | H84: 818.2862961 | I84: =IF($E$16=$V$1,0,IF(D84="","",Amortización!$AE$14)) -> 0 | J84: =IFERROR(IF(OR($E$11=Resumen!$N$6,$E$8=Resumen!$N$6),Amortización!F84*0.16,0),"") -> 0 | K84: 28808.76207 | L84: 2567289.97 | M84: 0 | N84: 0 | O84: 0 | P84: 0 | Q84: =IF(OR(L83=0,L83=""),"",IF(E84>=D84,0,$E$17*10%)) -> 5000 | R84: 0.098 | T84: 64 | U84: 33695.895 | V84: 33695.895 | X84: 1.098679244 | Y84: 0 | AB84: 818.2862961 | AG84: 0 | AH84: 0 | AI84: 0 | BC84: =IFERROR(IF(OR($E$11=Resumen!$N$6,$E$8=Resumen!$N$6),Amortización!AY84*0.16,0),"") -> 0
C85: 65 | D85: 2567289.97 | E85: 5889.91402 | F85: 20966.20142 | G85: =IF(D85="","",L84*Resumen!$L$86/1000) -> 1129.607587 | H85: 814.8578365 | I85: =IF($E$16=$V$1,0,IF(D85="","",Amortización!$AE$14)) -> 0 | J85: =IFERROR(IF(OR($E$11=Resumen!$N$6,$E$8=Resumen!$N$6),Amortización!F85*0.16,0),"") -> 0 | K85: 28800.58087 | L85: 2561400.056 | M85: =IF(OR(L84=0,L84=""),"",0) -> 0 | N85: 0 | O85: 0 | P85: 0 | R85: 0.098 | T85: 65 | U85: 28688.18668 | V85: 28688.18668 | X85: 1.098679244 | Y85: 0 | AB85: 814.8578365 | AG85: 0 | AH85: 0 | AI85: 0 | BC85: =IFERROR(IF(OR($E$11=Resumen!$N$6,$E$8=Resumen!$N$6),Amortización!AY85*0.16,0),"") -> 0 | BE85: =IFERROR(IF(AW85="","",IF((AW85-AX85-BY85)<1,0,AW85-AX85-BY85)),0) ->  | BF85: =IF(OR(BE84=0,BE84=""),"",0) -> 
C86: 66 | D86: 2561400.056 | E86: 5938.014984 | F86: 20918.10046 | G86: =IF(D86="","",L85*Resumen!$L$86/1000) -> 1127.016025 | H86: =IF($E$16=$V$1,0,IF(D86="","",IF($E$11="Liquidez","0",AB86))) -> 812.9883778 | I86: =IF($E$16=$V$1,0,IF(D86="","",Amortización!$AE$14)) -> 0 | J86: =IFERROR(IF(OR($E$11=Resumen!$N$6,$E$8=Resumen!$N$6),Amortización!F86*0.16,0),"") -> 0 | K86: =IFERROR(IF(D86="","",E86+F86+G86+H86+I86+Y86+J86),0) -> 28796.11984 | L86: =IFERROR(IF(D86="","",IF((D86-E86-AI86-Q86)<1,0,D86-E86-AI86-Q86)),0) -> 2550462.041 | M86: 0 | N86: =IF(OR(O86="",O86=0),M86,M86-O86-P86) -> 0 | O86: =IF(M86="","",IF(AND($H$12="Comisión pago anticipado",C86<37),M86-(M86/(1+$K$12)),0)) -> 0 | P86: =IF(O86="","",IF(O86=0,0,O86*0.16)) -> 0 | Q86: =IF(OR(L85=0,L85=""),"",IF(E86>=D86,0,$E$17*10%)) -> 5000 | R86: 0.098 | T86: 66 | U86: =IF(D86="","",E86+F86+G86+H86/1.16+I86+Q86) -> 33683.98352 | V86: =IF($E$16=$V$1,AI86,IF(ISNUMBER(T86),IF($E$14="Pago Fijo",PMT(R86/12,$K$11,-$K$9),X86*$K$15*$K$9/1000)+G86+AI86+Q86+H86/1.16+$AE$14,0)) -> 33683.98352 | X86: 1.098679244 | Y86: 0 | AB86: =IF((($K$8*0.7)*($AE$13))>L85*($AE$13),($K$8*0.7)*($AE$13),($AE$13)*L85) -> 812.9883778 | AG86: =IF($AH$20=0,0,IF(N86>AH85,MAX(0,N86-AH85),N86)) -> 0 | AH86: =IFERROR(MAX(0,AH85-N86),0) -> 0 | AI86: =IF($E$16="no",N86,IF(AH86>0,0,AG86)) -> 0 | AV86: =IF(OR(BE85="",BE85=0),"",IF(AV85+1>$K$11+$X$2,"",AV85+1)) ->  | AW86: =IF(IF(AW85="","",AW85-AX85-BM85-BY85)<0.01,"",IF(AW85="","",BE85)) ->  | AX86: =IF($E$16=$V$1,0,IF(AW86="","",PMT($AY$10/12,$AY$11,-$AW$21)-AY86)) ->  | AZ86: =IF($E$16=$V$1,0,IF(AW86="","",BE85*0/1000)) ->  | BA86: =IF($E$16=$V$1,0,IF(AW86="","",IF($E$11="Liquidez","0",0))) ->  | BB86: =IF($E$16=$V$1,0,IF(AW86="","",AW86*$AY$13/12)) ->  | BC86: =IFERROR(IF(OR($E$11=Resumen!$N$6,$E$8=Resumen!$N$6),Amortización!AY86*0.16,0),"") -> 0 | BD86: =IFERROR(IF(AW86="","",AX86+AY86+AZ86+BA86+BB86+BC86),0) ->  | BJ86: =AV86 ->  | BK86: =IF(AW86="","",AX86+AY86+AZ86+BA86/1.16+BB86/1.16) -> 
C87: =IF(OR(L86="",L86=0),"",IF(C86+1>$K$11+$X$2,"",C86+1)) -> 67 | D87: =IF(IF(D86="","",D86-E86-Q86-AI86)<0.01,"",IF(D86="","",L86)) -> 2550462.041 | E87: 6027.342107 | F87: 20828.77334 | G87: =IF(D87="","",L86*Resumen!$L$86/1000) -> 1122.203298 | H87: 809.5166518 | I87: =IF($E$16=$V$1,0,IF(D87="","",Amortización!$AE$14)) -> 0 | J87: =IFERROR(IF(OR($E$11=Resumen!$N$6,$E$8=Resumen!$N$6),Amortización!F87*0.16,0),"") -> 0 | K87: 28787.83539 | L87: 2544434.699 | M87: 0 | N87: 0 | O87: 0 | P87: 0 | R87: =IF(D87="","",R86) -> 0.098 | T87: =C87 -> 67 | U87: 28676.17792 | V87: 28676.17792 | X87: 1.098679244 | Y87: 0 | AB87: 809.5166518 | AG87: 0 | AH87: 0 | AI87: 0 | BC87: =IFERROR(IF(OR($E$11=Resumen!$N$6,$E$8=Resumen!$N$6),Amortización!AY87*0.16,0),"") -> 0
C88: 68 | D88: 2544434.699 | E88: 6076.565401 | F88: 20779.55004 | G88: =IF(D88="","",L87*Resumen!$L$86/1000) -> 1119.551268 | H88: 807.6035735 | I88: =IF($E$16=$V$1,0,IF(D88="","",Amortización!$AE$14)) -> 0 | J88: =IFERROR(IF(OR($E$11=Resumen!$N$6,$E$8=Resumen!$N$6),Amortización!F88*0.16,0),"") -> 0 | K88: 28783.27028 | L88: 2533358.134 | M88: 0 | N88: 0 | O88: 0 | P88: 0 | Q88: =IF(OR(L87=0,L87=""),"",IF(E88>=D88,0,$E$17*10%)) -> 5000 | R88: 0.098 | T88: 68 | U88: 33671.87669 | V88: 33671.87669 | X88: 1.098679244 | Y88: 0 | AB88: 807.6035735 | AG88: 0 | AH88: 0 | AI88: 0 | AY88: =IF(AW88="","",AW88*(BH88/12)) ->  | BC88: =IFERROR(IF(OR($E$11=Resumen!$N$6,$E$8=Resumen!$N$6),Amortización!AY88*0.16,0),"") -> 0
C89: 69 | D89: 2533358.134 | E89: =IFERROR(IF($E$14&$E$16=$X$4,PMT(R89/12,$K$11,-$K$9)-F89,IF(D89="","",IF($E$14="Pago Fijo",MIN(IF($E$15="Mensualidad",-PMT(R89/12,$K$11-C88,D89)-F89,-PMT(R89/12,$K$11,$K$9)-F89),D89),MIN(X89*$K$9*$K$15/1000-F89,D89)))),0) -> 6167.024018 | F89: 20689.09142 | G89: =IF(D89="","",L88*Resumen!$L$86/1000) -> 1114.677579 | H89: 804.0878716 | I89: =IF($E$16=$V$1,0,IF(D89="","",Amortización!$AE$14)) -> 0 | J89: =IFERROR(IF(OR($E$11=Resumen!$N$6,$E$8=Resumen!$N$6),Amortización!F89*0.16,0),"") -> 0 | K89: 28774.88089 | L89: 2527191.11 | M89: 0 | N89: 0 | O89: 0 | P89: 0 | R89: 0.098 | T89: 69 | U89: 28663.97222 | V89: 28663.97222 | X89: 1.098679244 | Y89: 0 | AB89: 804.0878716 | AG89: 0 | AH89: 0 | AI89: 0 | BC89: =IFERROR(IF(OR($E$11=Resumen!$N$6,$E$8=Resumen!$N$6),Amortización!AY89*0.16,0),"") -> 0
C90: 70 | D90: 2527191.11 | E90: 6217.388047 | F90: =IF(D90="","",D90*(R90/12)) -> 20638.72739 | G90: =IF(D90="","",L89*Resumen!$L$86/1000) -> 1111.964088 | H90: 802.1304582 | I90: =IF($E$16=$V$1,0,IF(D90="","",Amortización!$AE$14)) -> 0 | J90: =IFERROR(IF(OR($E$11=Resumen!$N$6,$E$8=Resumen!$N$6),Amortización!F90*0.16,0),"") -> 0 | K90: 28770.20999 | L90: 2515973.722 | M90: 0 | N90: 0 | O90: 0 | P90: 0 | Q90: =IF(OR(L89=0,L89=""),"",IF(E90>=D90,0,$E$17*10%)) -> 5000 | R90: 0.098 | T90: 70 | U90: 33659.5713 | V90: 33659.5713 | X90: 1.098679244 | Y90: 0 | AB90: 802.1304582 | AG90: 0 | AH90: 0 | AI90: 0 | BC90: =IFERROR(IF(OR($E$11=Resumen!$N$6,$E$8=Resumen!$N$6),Amortización!AY90*0.16,0),"") -> 0
C91: 71 | D91: 2515973.722 | E91: 6308.996716 | F91: 20547.11873 | G91: =IF(D91="","",L90*Resumen!$L$86/1000) -> 1107.028437 | H91: 798.5700592 | I91: =IF($E$16=$V$1,0,IF(D91="","",Amortización!$AE$14)) -> 0 | J91: =IFERROR(IF(OR($E$11=Resumen!$N$6,$E$8=Resumen!$N$6),Amortización!F91*0.16,0),"") -> 0 | K91: 28761.71394 | L91: 2509664.725 | M91: 0 | N91: 0 | O91: 0 | P91: 0 | R91: 0.098 | T91: 71 | U91: 28651.56634 | V91: 28651.56634 | X91: 1.098679244 | Y91: 0 | AB91: 798.5700592 | AG91: 0 | AH91: 0 | AI91: 0 | BC91: =IFERROR(IF(OR($E$11=Resumen!$N$6,$E$8=Resumen!$N$6),Amortización!AY91*0.16,0),"") -> 0
C92: 72 | D92: 2509664.725 | E92: 6360.52019 | F92: 20495.59525 | G92: =IF(D92="","",L91*Resumen!$L$86/1000) -> 1104.252479 | H92: 796.5675837 | I92: =IF($E$16=$V$1,0,IF(D92="","",Amortización!$AE$14)) -> 0 | J92: =IFERROR(IF(OR($E$11=Resumen!$N$6,$E$8=Resumen!$N$6),Amortización!F92*0.16,0),"") -> 0 | K92: 28756.9355 | L92: 2498304.205 | M92: 0 | N92: 0 | O92: 0 | P92: 0 | Q92: =IF(OR(L91=0,L91=""),"",IF(E92>=D92,0,$E$17*10%)) -> 5000 | R92: 0.098 | T92: 72 | U92: 33647.06411 | V92: 33647.06411 | X92: 1.098679244 | Y92: 0 | AB92: 796.5675837 | AG92: 0 | AH92: 0 | AI92: 0 | BC92: =IFERROR(IF(OR($E$11=Resumen!$N$6,$E$8=Resumen!$N$6),Amortización!AY92*0.16,0),"") -> 0
C93: 73 | D93: 2498304.205 | E93: 6963.563965 | F93: 20402.81767 | G93: =IF(D93="","",L92*Resumen!$L$86/1000) -> 1099.25385 | H93: 792.9617545 | I93: =IF($E$16=$V$1,0,IF(D93="","",Amortización!$AE$14)) -> 0 | J93: =IFERROR(IF(OR($E$11=Resumen!$N$6,$E$8=Resumen!$N$6),Amortización!F93*0.16,0),"") -> 0 | K93: 29258.59724 | L93: 2491340.641 | M93: 0 | N93: 0 | O93: 0 | P93: 0 | R93: 0.098 | T93: 73 | U93: 29149.22321 | V93: 29149.22321 | X93: 1.11955415 | Y93: 0 | AB93: 792.9617545 | AG93: 0 | AH93: 0 | AI93: 0 | BC93: =IFERROR(IF(OR($E$11=Resumen!$N$6,$E$8=Resumen!$N$6),Amortización!AY93*0.16,0),"") -> 0
C94: 74 | D94: 2491340.641 | E94: 7020.43307 | F94: 20345.94857 | G94: =IF(D94="","",L93*Resumen!$L$86/1000) -> 1096.189882 | H94: 790.7515193 | I94: =IF($E$16=$V$1,0,IF(D94="","",Amortización!$AE$14)) -> 0 | J94: =IFERROR(IF(OR($E$11=Resumen!$N$6,$E$8=Resumen!$N$6),Amortización!F94*0.16,0),"") -> 0 | K94: 29253.32304 | L94: 2479320.208 | M94: 0 | N94: 0 | O94: 0 | P94: 0 | Q94: =IF(OR(L93=0,L93=""),"",IF(E94>=D94,0,$E$17*10%)) -> 5000 | R94: 0.098 | T94: 74 | U94: 34144.25386 | V94: 34144.25386 | X94: 1.11955415 | Y94: 0 | AB94: 790.7515193 | AG94: 0 | AH94: 0 | AI94: 0 | BC94: =IFERROR(IF(OR($E$11=Resumen!$N$6,$E$8=Resumen!$N$6),Amortización!AY94*0.16,0),"") -> 0
C95: 75 | D95: 2479320.208 | E95: 7118.59994 | F95: 20247.7817 | G95: =IF(D95="","",L94*Resumen!$L$86/1000) -> 1090.900891 | H95: 786.9362339 | I95: =IF($E$16=$V$1,0,IF(D95="","",Amortización!$AE$14)) -> 0 | J95: =IFERROR(IF(OR($E$11=Resumen!$N$6,$E$8=Resumen!$N$6),Amortización!F95*0.16,0),"") -> 0 | K95: 29244.21876 | L95: 2472201.608 | M95: 0 | N95: 0 | O95: 0 | P95: 0 | R95: 0.098 | T95: 75 | U95: 29135.67583 | V95: 29135.67583 | X95: 1.11955415 | Y95: 0 | AB95: 786.9362339 | AG95: 0 | AH95: 0 | AI95: 0 | BC95: =IFERROR(IF(OR($E$11=Resumen!$N$6,$E$8=Resumen!$N$6),Amortización!AY95*0.16,0),"") -> 0
C96: 76 | D96: 2472201.608 | E96: 7176.735173 | F96: 20189.64646 | G96: =IF(D96="","",L95*Resumen!$L$86/1000) -> 1087.768707 | H96: 784.6767903 | I96: =IF($E$16=$V$1,0,IF(D96="","",Amortización!$AE$14)) -> 0 | J96: =IFERROR(IF(OR($E$11=Resumen!$N$6,$E$8=Resumen!$N$6),Amortización!F96*0.16,0),"") -> 0 | K96: 29238.82713 | L96: 2460024.872 | M96: 0 | N96: 0 | O96: 0 | P96: 0 | Q96: =IF(OR(L95=0,L95=""),"",IF(E96>=D96,0,$E$17*10%)) -> 5000 | R96: 0.098 | T96: 76 | U96: 34130.59585 | V96: 34130.59585 | X96: 1.11955415 | Y96: 0 | AB96: 784.6767903 | AG96: 0 | AH96: 0 | AI96: 0 | BC96: =IFERROR(IF(OR($E$11=Resumen!$N$6,$E$8=Resumen!$N$6),Amortización!AY96*0.16,0),"") -> 0
C97: 77 | D97: 2460024.872 | E97: 7276.178511 | F97: 20090.20313 | G97: =IF(D97="","",L96*Resumen!$L$86/1000) -> 1082.410944 | H97: 780.8118945 | I97: =IF($E$16=$V$1,0,IF(D97="","",Amortización!$AE$14)) -> 0 | J97: =IFERROR(IF(OR($E$11=Resumen!$N$6,$E$8=Resumen!$N$6),Amortización!F97*0.16,0),"") -> 0 | K97: 29229.60447 | L97: 2452748.694 | M97: 0 | N97: 0 | O97: 0 | P97: 0 | R97: 0.098 | T97: 77 | U97: 29121.90628 | V97: 29121.90628 | X97: 1.11955415 | Y97: 0 | AB97: 780.8118945 | AG97: 0 | AH97: 0 | AI97: 0 | BC97: =IFERROR(IF(OR($E$11=Resumen!$N$6,$E$8=Resumen!$N$6),Amortización!AY97*0.16,0),"") -> 0
C98: 78 | D98: 2452748.694 | E98: 7335.600635 | F98: 20030.781 | G98: =IF(D98="","",L97*Resumen!$L$86/1000) -> 1079.209425 | H98: 778.5024355 | I98: =IF($E$16=$V$1,0,IF(D98="","",Amortización!$AE$14)) -> 0 | J98: =IFERROR(IF(OR($E$11=Resumen!$N$6,$E$8=Resumen!$N$6),Amortización!F98*0.16,0),"") -> 0 | K98: 29224.0935 | L98: 2440413.093 | M98: 0 | N98: 0 | O98: 0 | P98: 0 | Q98: =IF(OR(L97=0,L97=""),"",IF(E98>=D98,0,$E$17*10%)) -> 5000 | R98: 0.098 | T98: 78 | U98: 34116.71385 | V98: 34116.71385 | X98: 1.11955415 | Y98: 0 | AB98: 778.5024355 | AG98: 0 | AH98: 0 | AI98: 0 | BC98: =IFERROR(IF(OR($E$11=Resumen!$N$6,$E$8=Resumen!$N$6),Amortización!AY98*0.16,0),"") -> 0
C99: 79 | D99: 2440413.093 | E99: 7436.341374 | F99: 19930.04026 | G99: =IF(D99="","",L98*Resumen!$L$86/1000) -> 1073.781761 | H99: 774.5871158 | I99: =IF($E$16=$V$1,0,IF(D99="","",Amortización!$AE$14)) -> 0 | J99: =IFERROR(IF(OR($E$11=Resumen!$N$6,$E$8=Resumen!$N$6),Amortización!F99*0.16,0),"") -> 0 | K99: 29214.75051 | L99: 2432976.752 | M99: 0 | N99: 0 | O99: 0 | P99: 0 | R99: 0.098 | T99: 79 | U99: 29107.91091 | V99: 29107.91091 | X99: 1.11955415 | Y99: 0 | AB99: 774.5871158 | AG99: 0 | AH99: 0 | AI99: 0 | BC99: =IFERROR(IF(OR($E$11=Resumen!$N$6,$E$8=Resumen!$N$6),Amortización!AY99*0.16,0),"") -> 0
C100: 80 | D100: 2432976.752 | E100: 7497.071495 | F100: 19869.31014 | G100: =IF(D100="","",L99*Resumen!$L$86/1000) -> 1070.509771 | H100: 772.2268211 | I100: =IF($E$16=$V$1,0,IF(D100="","",Amortización!$AE$14)) -> 0 | J100: =IFERROR(IF(OR($E$11=Resumen!$N$6,$E$8=Resumen!$N$6),Amortización!F100*0.16,0),"") -> 0 | K100: 29209.11823 | L100: 2420479.68 | M100: 0 | N100: 0 | O100: 0 | P100: 0 | Q100: =IF(OR(L99=0,L99=""),"",IF(E100>=D100,0,$E$17*10%)) -> 5000 | R100: 0.098 | T100: 80 | U100: 34102.60418 | V100: 34102.60418 | X100: 1.11955415 | Y100: 0 | AB100: 772.2268211 | AG100: 0 | AH100: 0 | AI100: 0 | BC100: =IFERROR(IF(OR($E$11=Resumen!$N$6,$E$8=Resumen!$N$6),Amortización!AY100*0.16,0),"") -> 0
C101: 81 | D101: 2420479.68 | E101: 7599.130912 | F101: 19767.25072 | G101: =IF(D101="","",L100*Resumen!$L$86/1000) -> 1065.011059 | H101: 768.2602506 | I101: =IF($E$16=$V$1,0,IF(D101="","",Amortización!$AE$14)) -> 0 | J101: =IFERROR(IF(OR($E$11=Resumen!$N$6,$E$8=Resumen!$N$6),Amortización!F101*0.16,0),"") -> 0 | K101: 29199.65295 | L101: 2412880.55 | M101: 0 | N101: 0 | O101: 0 | P101: 0 | R101: 0.098 | T101: 81 | U101: 29093.68601 | V101: 29093.68601 | X101: =IF(OR(AND($E$8="Adquisicion",$E$9="Premier"),AND($E$8="Exclusiva",$E$9="Premier"),AND($E$8="Nomina Especial",$E$9="Premier")),X89*1.019,IF(OR(AND($E$8="Adquisicion",$E$9="No Premier"),AND($E$8="Exclusiva",$E$9="No Premier"),AND($E$8="Nomina Especial",$E$9="No Premier")),X89*1.019,IF($E$8="Pago de Hipoteca",X89*1.019))) -> 1.11955415 | Y101: 0 | AB101: 768.2602506 | AG101: 0 | AH101: 0 | AI101: 0 | BC101: =IFERROR(IF(OR($E$11=Resumen!$N$6,$E$8=Resumen!$N$6),Amortización!AY101*0.16,0),"") -> 0
C102: 82 | D102: 2412880.55 | E102: 7661.190481 | F102: 19705.19115 | G102: =IF(D102="","",L101*Resumen!$L$86/1000) -> 1061.667442 | H102: 765.8482864 | I102: =IF($E$16=$V$1,0,IF(D102="","",Amortización!$AE$14)) -> 0 | J102: =IFERROR(IF(OR($E$11=Resumen!$N$6,$E$8=Resumen!$N$6),Amortización!F102*0.16,0),"") -> 0 | K102: 29193.89736 | L102: 2400219.359 | M102: 0 | N102: 0 | O102: 0 | P102: 0 | Q102: =IF(OR(L101=0,L101=""),"",IF(E102>=D102,0,$E$17*10%)) -> 5000 | R102: 0.098 | T102: 82 | U102: 34088.26312 | V102: 34088.26312 | X102: 1.11955415 | Y102: 0 | AB102: 765.8482864 | AG102: 0 | AH102: 0 | AI102: 0 | BC102: =IFERROR(IF(OR($E$11=Resumen!$N$6,$E$8=Resumen!$N$6),Amortización!AY102*0.16,0),"") -> 0
C103: 83 | D103: 2400219.359 | E103: 7764.590203 | F103: 19601.79143 | G103: =IF(D103="","",L102*Resumen!$L$86/1000) -> 1056.096518 | H103: 761.8296246 | I103: =IF($E$16=$V$1,0,IF(D103="","",Amortización!$AE$14)) -> 0 | J103: =IFERROR(IF(OR($E$11=Resumen!$N$6,$E$8=Resumen!$N$6),Amortización!F103*0.16,0),"") -> 0 | K103: 29184.30778 | L103: 2392454.769 | M103: 0 | N103: 0 | O103: 0 | P103: 0 | R103: 0.098 | T103: 83 | U103: 29079.22783 | V103: 29079.22783 | X103: 1.11955415 | Y103: 0 | AB103: 761.8296246 | AG103: 0 | AH103: 0 | AI103: 0 | BC103: =IFERROR(IF(OR($E$11=Resumen!$N$6,$E$8=Resumen!$N$6),Amortización!AY103*0.16,0),"") -> 0
C104: 84 | D104: 2392454.769 | E104: 7828.001023 | F104: 19538.38061 | G104: =IF(D104="","",L103*Resumen!$L$86/1000) -> 1052.680098 | H104: 759.3651436 | I104: =IF($E$16=$V$1,0,IF(D104="","",Amortización!$AE$14)) -> 0 | J104: =IFERROR(IF(OR($E$11=Resumen!$N$6,$E$8=Resumen!$N$6),Amortización!F104*0.16,0),"") -> 0 | K104: 29178.42688 | L104: 2379626.768 | M104: 0 | N104: 0 | O104: 0 | P104: 0 | Q104: =IF(OR(L103=0,L103=""),"",IF(E104>=D104,0,$E$17*10%)) -> 5000 | R104: 0.098 | T104: 84 | U104: 34073.68686 | V104: 34073.68686 | X104: 1.11955415 | Y104: 0 | AB104: 759.3651436 | AG104: 0 | AH104: 0 | AI104: 0 | BC104: =IFERROR(IF(OR($E$11=Resumen!$N$6,$E$8=Resumen!$N$6),Amortización!AY104*0.16,0),"") -> 0
C105: 85 | D105: 2379626.768 | E105: 8452.724283 | F105: 19433.6186 | G105: =IF(D105="","",L104*Resumen!$L$86/1000) -> 1047.035778 | H105: 755.2935361 | I105: =IF($E$16=$V$1,0,IF(D105="","",Amortización!$AE$14)) -> 0 | J105: =IFERROR(IF(OR($E$11=Resumen!$N$6,$E$8=Resumen!$N$6),Amortización!F105*0.16,0),"") -> 0 | K105: 29688.6722 | L105: 2371174.044 | M105: 0 | N105: 0 | O105: 0 | P105: 0 | R105: 0.098 | T105: 85 | U105: 29584.49378 | V105: 29584.49378 | X105: 1.140825679 | Y105: 0 | AB105: 755.2935361 | AG105: 0 | AH105: 0 | AI105: 0 | BC105: =IFERROR(IF(OR($E$11=Resumen!$N$6,$E$8=Resumen!$N$6),Amortización!AY105*0.16,0),"") -> 0
C106: 86 | D106: 2371174.044 | E106: 8521.754864 | F106: 19364.58802 | G106: =IF(D106="","",L105*Resumen!$L$86/1000) -> 1043.316579 | H106: 752.6106414 | I106: =IF($E$16=$V$1,0,IF(D106="","",Amortización!$AE$14)) -> 0 | J106: =IFERROR(IF(OR($E$11=Resumen!$N$6,$E$8=Resumen!$N$6),Amortización!F106*0.16,0),"") -> 0 | K106: 29682.27011 | L106: 2357652.289 | M106: 0 | N106: 0 | O106: 0 | P106: 0 | Q106: =IF(OR(L105=0,L105=""),"",IF(E106>=D106,0,$E$17*10%)) -> 5000 | R106: 0.098 | T106: 86 | U106: 34578.46174 | V106: 34578.46174 | X106: 1.140825679 | Y106: 0 | AB106: 752.6106414 | AG106: 0 | AH106: 0 | AI106: 0 | BC106: =IFERROR(IF(OR($E$11=Resumen!$N$6,$E$8=Resumen!$N$6),Amortización!AY106*0.16,0),"") -> 0
C107: 87 | D107: 2357652.289 | E107: 8632.182529 | F107: 19254.16036 | G107: =IF(D107="","",L106*Resumen!$L$86/1000) -> 1037.367007 | H107: 748.3188364 | I107: =IF($E$16=$V$1,0,IF(D107="","",Amortización!$AE$14)) -> 0 | J107: =IFERROR(IF(OR($E$11=Resumen!$N$6,$E$8=Resumen!$N$6),Amortización!F107*0.16,0),"") -> 0 | K107: 29672.02873 | L107: 2349020.106 | M107: 0 | N107: 0 | O107: 0 | P107: 0 | R107: 0.098 | T107: 87 | U107: 29568.81234 | V107: 29568.81234 | X107: 1.140825679 | Y107: 0 | AB107: 748.3188364 | AG107: 0 | AH107: 0 | AI107: 0 | BC107: =IFERROR(IF(OR($E$11=Resumen!$N$6,$E$8=Resumen!$N$6),Amortización!AY107*0.16,0),"") -> 0
C108: 88 | D108: 2349020.106 | E108: 8702.678686 | F108: 19183.6642 | G108: =IF(D108="","",L107*Resumen!$L$86/1000) -> 1033.568847 | H108: 745.5789817 | I108: =IF($E$16=$V$1,0,IF(D108="","",Amortización!$AE$14)) -> 0 | J108: =IFERROR(IF(OR($E$11=Resumen!$N$6,$E$8=Resumen!$N$6),Amortización!F108*0.16,0),"") -> 0 | K108: 29665.49072 | L108: 2335317.427 | M108: 0 | N108: 0 | O108: 0 | P108: 0 | Q108: =IF(OR(L107=0,L107=""),"",IF(E108>=D108,0,$E$17*10%)) -> 5000 | R108: 0.098 | T108: 88 | U108: 34562.65223 | V108: 34562.65223 | X108: 1.140825679 | Y108: 0 | AB108: 745.5789817 | AG108: 0 | AH108: 0 | AI108: 0 | BC108: =IFERROR(IF(OR($E$11=Resumen!$N$6,$E$8=Resumen!$N$6),Amortización!AY108*0.16,0),"") -> 0
C109: 89 | D109: 2335317.427 | E109: 8814.583896 | F109: 19071.75899 | G109: =IF(D109="","",L108*Resumen!$L$86/1000) -> 1027.539668 | H109: 741.2297515 | I109: =IF($E$16=$V$1,0,IF(D109="","",Amortización!$AE$14)) -> 0 | J109: =IFERROR(IF(OR($E$11=Resumen!$N$6,$E$8=Resumen!$N$6),Amortización!F109*0.16,0),"") -> 0 | K109: 29655.11231 | L109: 2326502.844 | M109: 0 | N109: 0 | O109: 0 | P109: 0 | R109: 0.098 | T109: 89 | U109: 29552.87372 | V109: 29552.87372 | X109: 1.140825679 | Y109: 0 | AB109: 741.2297515 | AG109: 0 | AH109: 0 | AI109: 0 | BC109: =IFERROR(IF(OR($E$11=Resumen!$N$6,$E$8=Resumen!$N$6),Amortización!AY109*0.16,0),"") -> 0
C110: 90 | D110: 2326502.844 | E110: 8886.569664 | F110: 18999.77322 | G110: =IF(D110="","",L109*Resumen!$L$86/1000) -> 1023.661251 | H110: 738.4320026 | I110: =IF($E$16=$V$1,0,IF(D110="","",Amortización!$AE$14)) -> 0 | J110: =IFERROR(IF(OR($E$11=Resumen!$N$6,$E$8=Resumen!$N$6),Amortización!F110*0.16,0),"") -> 0 | K110: 29648.43614 | L110: 2312616.274 | M110: 0 | N110: 0 | O110: 0 | P110: 0 | Q110: =IF(OR(L109=0,L109=""),"",IF(E110>=D110,0,$E$17*10%)) -> 5000 | R110: 0.098 | T110: 90 | U110: 34546.58345 | V110: 34546.58345 | X110: 1.140825679 | Y110: 0 | AB110: 738.4320026 | AG110: 0 | AH110: 0 | AI110: 0 | BC110: =IFERROR(IF(OR($E$11=Resumen!$N$6,$E$8=Resumen!$N$6),Amortización!AY110*0.16,0),"") -> 0 | BH110: =IF(AW110="","",BH109) -> 
C111: 91 | D111: 2312616.274 | E111: 8999.97665 | F111: 18886.36624 | G111: =IF(D111="","",L110*Resumen!$L$86/1000) -> 1017.551161 | H111: 734.0244053 | I111: =IF($E$16=$V$1,0,IF(D111="","",Amortización!$AE$14)) -> 0 | J111: =IFERROR(IF(OR($E$11=Resumen!$N$6,$E$8=Resumen!$N$6),Amortización!F111*0.16,0),"") -> 0 | K111: 29637.91845 | L111: 2303616.297 | M111: 0 | N111: 0 | O111: 0 | P111: 0 | R111: 0.098 | T111: 91 | U111: 29536.67371 | V111: 29536.67371 | X111: 1.140825679 | Y111: 0 | AB111: 734.0244053 | AG111: 0 | AH111: 0 | AI111: 0 | BC111: =IFERROR(IF(OR($E$11=Resumen!$N$6,$E$8=Resumen!$N$6),Amortización!AY111*0.16,0),"") -> 0
C112: 92 | D112: 2303616.297 | E112: 9073.476459 | F112: 18812.86643 | G112: =IF(D112="","",L111*Resumen!$L$86/1000) -> 1013.591171 | H112: 731.1678128 | I112: =IF($E$16=$V$1,0,IF(D112="","",Amortización!$AE$14)) -> 0 | J112: =IFERROR(IF(OR($E$11=Resumen!$N$6,$E$8=Resumen!$N$6),Amortización!F112*0.16,0),"") -> 0 | K112: 29631.10187 | L112: 2289542.821 | M112: 0 | N112: 0 | O112: 0 | P112: 0 | Q112: =IF(OR(L111=0,L111=""),"",IF(E112>=D112,0,$E$17*10%)) -> 5000 | R112: 0.098 | T112: 92 | U112: 34530.25114 | V112: 34530.25114 | X112: 1.140825679 | Y112: 0 | AB112: 731.1678128 | AG112: 0 | AH112: 0 | AI112: 0 | BC112: =IFERROR(IF(OR($E$11=Resumen!$N$6,$E$8=Resumen!$N$6),Amortización!AY112*0.16,0),"") -> 0
C113: 93 | D113: 2289542.821 | E113: 9188.40985 | F113: 18697.93304 | G113: =IF(D113="","",L112*Resumen!$L$86/1000) -> 1007.398841 | H113: 726.7008913 | I113: =IF($E$16=$V$1,0,IF(D113="","",Amortización!$AE$14)) -> 0 | J113: =IFERROR(IF(OR($E$11=Resumen!$N$6,$E$8=Resumen!$N$6),Amortización!F113*0.16,0),"") -> 0 | K113: 29620.44262 | L113: 2280354.411 | M113: 0 | N113: 0 | O113: 0 | P113: 0 | R113: 0.098 | T113: 93 | U113: 29520.20801 | V113: 29520.20801 | X113: 1.140825679 | Y113: 0 | AB113: 726.7008913 | AG113: 0 | AH113: 0 | AI113: 0 | BC113: =IFERROR(IF(OR($E$11=Resumen!$N$6,$E$8=Resumen!$N$6),Amortización!AY113*0.16,0),"") -> 0
C114: 94 | D114: 2280354.411 | E114: 9263.448531 | F114: 18622.89436 | G114: =IF(D114="","",L113*Resumen!$L$86/1000) -> 1003.355941 | H114: 723.78449 | I114: =IF($E$16=$V$1,0,IF(D114="","",Amortización!$AE$14)) -> 0 | J114: =IFERROR(IF(OR($E$11=Resumen!$N$6,$E$8=Resumen!$N$6),Amortización!F114*0.16,0),"") -> 0 | K114: 29613.48332 | L114: 2266090.962 | M114: 0 | N114: 0 | O114: 0 | P114: 0 | Q114: =IF(OR(L113=0,L113=""),"",IF(E114>=D114,0,$E$17*10%)) -> 5000 | R114: 0.098 | T114: 94 | U114: 34513.65097 | V114: 34513.65097 | X114: 1.140825679 | Y114: 0 | AB114: 723.78449 | AG114: 0 | AH114: 0 | AI114: 0 | BC114: =IFERROR(IF(OR($E$11=Resumen!$N$6,$E$8=Resumen!$N$6),Amortización!AY114*0.16,0),"") -> 0
C115: 95 | D115: 2266090.962 | E115: 9379.93336 | F115: 18506.40953 | G115: =IF(D115="","",L114*Resumen!$L$86/1000) -> 997.0800235 | H115: 719.2572715 | I115: =IF($E$16=$V$1,0,IF(D115="","",Amortización!$AE$14)) -> 0 | J115: =IFERROR(IF(OR($E$11=Resumen!$N$6,$E$8=Resumen!$N$6),Amortización!F115*0.16,0),"") -> 0 | K115: 29602.68018 | L115: 2256711.029 | M115: 0 | N115: 0 | O115: 0 | P115: 0 | R115: 0.098 | T115: 95 | U115: 29503.47228 | V115: 29503.47228 | X115: 1.140825679 | Y115: 0 | AB115: 719.2572715 | AG115: 0 | AH115: 0 | AI115: 0 | BC115: =IFERROR(IF(OR($E$11=Resumen!$N$6,$E$8=Resumen!$N$6),Amortización!AY115*0.16,0),"") -> 0
C116: 96 | D116: 2256711.029 | E116: 9456.536149 | F116: 18429.80674 | G116: =IF(D116="","",L115*Resumen!$L$86/1000) -> 992.9528528 | H116: 716.2800806 | I116: =IF($E$16=$V$1,0,IF(D116="","",Amortización!$AE$14)) -> 0 | J116: =IFERROR(IF(OR($E$11=Resumen!$N$6,$E$8=Resumen!$N$6),Amortización!F116*0.16,0),"") -> 0 | K116: 29595.57582 | L116: 2242254.493 | M116: 0 | N116: 0 | O116: 0 | P116: 0 | Q116: =IF(OR(L115=0,L115=""),"",IF(E116>=D116,0,$E$17*10%)) -> 5000 | R116: 0.098 | T116: 96 | U116: 34496.77857 | V116: 34496.77857 | X116: 1.140825679 | Y116: 0 | AB116: 716.2800806 | AG116: 0 | AH116: 0 | AI116: 0 | BC116: =IFERROR(IF(OR($E$11=Resumen!$N$6,$E$8=Resumen!$N$6),Amortización!AY116*0.16,0),"") -> 0
C117: 97 | D117: 2242254.493 | E117: 10104.43838 | F117: 18311.74503 | G117: =IF(D117="","",L116*Resumen!$L$86/1000) -> 986.5919769 | H117: 711.6915761 | I117: =IF($E$16=$V$1,0,IF(D117="","",Amortización!$AE$14)) -> 0 | J117: =IFERROR(IF(OR($E$11=Resumen!$N$6,$E$8=Resumen!$N$6),Amortización!F117*0.16,0),"") -> 0 | K117: 30114.46695 | L117: 2232150.055 | M117: 0 | N117: 0 | O117: 0 | P117: 0 | R117: 0.098 | T117: 97 | U117: 30016.3026 | V117: 30016.3026 | X117: 1.162501366 | Y117: 0 | AB117: 711.6915761 | AG117: 0 | AH117: 0 | AI117: 0 | BC117: =IFERROR(IF(OR($E$11=Resumen!$N$6,$E$8=Resumen!$N$6),Amortización!AY117*0.16,0),"") -> 0
C118: 98 | D118: 2232150.055 | E118: 10186.95796 | F118: 18229.22545 | G118: =IF(D118="","",L117*Resumen!$L$86/1000) -> 982.146024 | H118: 708.4844273 | I118: =IF($E$16=$V$1,0,IF(D118="","",Amortización!$AE$14)) -> 0 | J118: =IFERROR(IF(OR($E$11=Resumen!$N$6,$E$8=Resumen!$N$6),Amortización!F118*0.16,0),"") -> 0 | K118: 30106.81385 | L118: 2216963.097 | M118: 0 | N118: 0 | O118: 0 | P118: 0 | Q118: =IF(OR(L117=0,L117=""),"",IF(E118>=D118,0,$E$17*10%)) -> 5000 | R118: 0.098 | T118: 98 | U118: 35009.09186 | V118: 35009.09186 | X118: 1.162501366 | Y118: 0 | AB118: 708.4844273 | AG118: 0 | AH118: 0 | AI118: 0 | BC118: =IFERROR(IF(OR($E$11=Resumen!$N$6,$E$8=Resumen!$N$6),Amortización!AY118*0.16,0),"") -> 0
C119: 99 | D119: 2216963.097 | E119: 10310.98478 | F119: 18105.19862 | G119: =IF(D119="","",L118*Resumen!$L$86/1000) -> 975.4637625 | H119: 703.6640869 | I119: =IF($E$16=$V$1,0,IF(D119="","",Amortización!$AE$14)) -> 0 | J119: =IFERROR(IF(OR($E$11=Resumen!$N$6,$E$8=Resumen!$N$6),Amortización!F119*0.16,0),"") -> 0 | K119: 30095.31125 | L119: 2206652.112 | M119: 0 | N119: 0 | O119: 0 | P119: 0 | R119: 0.098 | T119: 99 | U119: 29998.25414 | V119: 29998.25414 | X119: 1.162501366 | Y119: 0 | AB119: 703.6640869 | AG119: 0 | AH119: 0 | AI119: 0 | BC119: =IFERROR(IF(OR($E$11=Resumen!$N$6,$E$8=Resumen!$N$6),Amortización!AY119*0.16,0),"") -> 0
C120: 100 | D120: 2206652.112 | E120: 10395.19116 | F120: 18020.99225 | G120: =IF(D120="","",L119*Resumen!$L$86/1000) -> 970.9269292 | H120: 700.3913803 | I120: =IF($E$16=$V$1,0,IF(D120="","",Amortización!$AE$14)) -> 0 | J120: =IFERROR(IF(OR($E$11=Resumen!$N$6,$E$8=Resumen!$N$6),Amortización!F120*0.16,0),"") -> 0 | K120: 30087.50171 | L120: 2191256.921 | M120: 0 | N120: 0 | O120: 0 | P120: 0 | Q120: =IF(OR(L119=0,L119=""),"",IF(E120>=D120,0,$E$17*10%)) -> 5000 | R120: 0.098 | T120: 100 | U120: 34990.896 | V120: 34990.896 | X120: 1.162501366 | Y120: 0 | AB120: 700.3913803 | AG120: 0 | AH120: 0 | AI120: 0 | BC120: =IFERROR(IF(OR($E$11=Resumen!$N$6,$E$8=Resumen!$N$6),Amortización!AY120*0.16,0),"") -> 0
C121: 101 | D121: 2191256.921 | E121: 10520.91855 | F121: 17895.26485 | G121: =IF(D121="","",L120*Resumen!$L$86/1000) -> 964.1530451 | H121: 695.5049466 | I121: =IF($E$16=$V$1,0,IF(D121="","",Amortización!$AE$14)) -> 0 | J121: =IFERROR(IF(OR($E$11=Resumen!$N$6,$E$8=Resumen!$N$6),Amortización!F121*0.16,0),"") -> 0 | K121: 30075.84139 | L121: 2180736.002 | M121: 0 | N121: 0 | O121: 0 | P121: 0 | R121: 0.098 | T121: 101 | U121: 29979.90968 | V121: 29979.90968 | X121: 1.162501366 | Y121: 0 | AB121: 695.5049466 | AG121: 0 | AH121: 0 | AI121: 0 | BC121: =IFERROR(IF(OR($E$11=Resumen!$N$6,$E$8=Resumen!$N$6),Amortización!AY121*0.16,0),"") -> 0
C122: 102 | D122: 2180736.002 | E122: 10606.83938 | F122: 17809.34402 | G122: =IF(D122="","",L121*Resumen!$L$86/1000) -> 959.5238409 | H122: 692.1656071 | I122: =IF($E$16=$V$1,0,IF(D122="","",Amortización!$AE$14)) -> 0 | J122: =IFERROR(IF(OR($E$11=Resumen!$N$6,$E$8=Resumen!$N$6),Amortización!F122*0.16,0),"") -> 0 | K122: 30067.87285 | L122: 2165129.163 | M122: 0 | N122: 0 | O122: 0 | P122: 0 | Q122: =IF(OR(L121=0,L121=""),"",IF(E122>=D122,0,$E$17*10%)) -> 5000 | R122: 0.098 | T122: 102 | U122: 34972.40173 | V122: 34972.40173 | X122: 1.162501366 | Y122: 0 | AB122: 692.1656071 | AG122: 0 | AH122: 0 | AI122: 0 | BC122: =IFERROR(IF(OR($E$11=Resumen!$N$6,$E$8=Resumen!$N$6),Amortización!AY122*0.16,0),"") -> 0
C123: 103 | D123: 2165129.163 | E123: 10734.29524 | F123: 17681.88816 | G123: =IF(D123="","",L122*Resumen!$L$86/1000) -> 952.6568316 | H123: 687.2119962 | I123: =IF($E$16=$V$1,0,IF(D123="","",Amortización!$AE$14)) -> 0 | J123: =IFERROR(IF(OR($E$11=Resumen!$N$6,$E$8=Resumen!$N$6),Amortización!F123*0.16,0),"") -> 0 | K123: 30056.05223 | L123: 2154394.867 | M123: 0 | N123: 0 | O123: 0 | P123: 0 | R123: 0.098 | T123: 103 | U123: 29961.26437 | V123: 29961.26437 | X123: 1.162501366 | Y123: 0 | AB123: 687.2119962 | AG123: 0 | AH123: 0 | AI123: 0 | BC123: =IFERROR(IF(OR($E$11=Resumen!$N$6,$E$8=Resumen!$N$6),Amortización!AY123*0.16,0),"") -> 0
C124: 104 | D124: 2154394.867 | E124: 10821.95865 | F124: 17594.22475 | G124: =IF(D124="","",L123*Resumen!$L$86/1000) -> 947.9337417 | H124: 683.8049309 | I124: =IF($E$16=$V$1,0,IF(D124="","",Amortización!$AE$14)) -> 0 | J124: =IFERROR(IF(OR($E$11=Resumen!$N$6,$E$8=Resumen!$N$6),Amortización!F124*0.16,0),"") -> 0 | K124: 30047.92207 | L124: 2138572.909 | M124: 0 | N124: 0 | O124: 0 | P124: 0 | Q124: =IF(OR(L123=0,L123=""),"",IF(E124>=D124,0,$E$17*10%)) -> 5000 | R124: 0.098 | T124: 104 | U124: 34953.60415 | V124: 34953.60415 | X124: 1.162501366 | Y124: 0 | AB124: 683.8049309 | AG124: 0 | AH124: 0 | AI124: 0 | BC124: =IFERROR(IF(OR($E$11=Resumen!$N$6,$E$8=Resumen!$N$6),Amortización!AY124*0.16,0),"") -> 0
C125: 105 | D125: 2138572.909 | E125: 10951.17131 | F125: 17465.01209 | G125: =IF(D125="","",L124*Resumen!$L$86/1000) -> 940.9720799 | H125: 678.7830413 | I125: =IF($E$16=$V$1,0,IF(D125="","",Amortización!$AE$14)) -> 0 | J125: =IFERROR(IF(OR($E$11=Resumen!$N$6,$E$8=Resumen!$N$6),Amortización!F125*0.16,0),"") -> 0 | K125: 30035.93852 | L125: 2127621.738 | M125: 0 | N125: 0 | O125: 0 | P125: 0 | R125: 0.098 | T125: 105 | U125: 29942.31328 | V125: 29942.31328 | X125: 1.162501366 | Y125: 0 | AB125: 678.7830413 | AG125: 0 | AH125: 0 | AI125: 0 | BC125: =IFERROR(IF(OR($E$11=Resumen!$N$6,$E$8=Resumen!$N$6),Amortización!AY125*0.16,0),"") -> 0
C126: 106 | D126: 2127621.738 | E126: 11040.60588 | F126: 17375.57752 | G126: =IF(D126="","",L125*Resumen!$L$86/1000) -> 936.1535645 | H126: 675.3071395 | I126: =IF($E$16=$V$1,0,IF(D126="","",Amortización!$AE$14)) -> 0 | J126: =IFERROR(IF(OR($E$11=Resumen!$N$6,$E$8=Resumen!$N$6),Amortización!F126*0.16,0),"") -> 0 | K126: 30027.64411 | L126: 2111581.132 | M126: 0 | N126: 0 | O126: 0 | P126: 0 | Q126: =IF(OR(L125=0,L125=""),"",IF(E126>=D126,0,$E$17*10%)) -> 5000 | R126: 0.098 | T126: 106 | U126: 34934.49829 | V126: 34934.49829 | X126: 1.162501366 | Y126: 0 | AB126: 675.3071395 | AG126: 0 | AH126: 0 | AI126: 0 | BC126: =IFERROR(IF(OR($E$11=Resumen!$N$6,$E$8=Resumen!$N$6),Amortización!AY126*0.16,0),"") -> 0
C127: 107 | D127: 2111581.132 | E127: 11171.60416 | F127: 17244.57924 | G127: =IF(D127="","",L126*Resumen!$L$86/1000) -> 929.0956979 | H127: 670.2158512 | I127: =IF($E$16=$V$1,0,IF(D127="","",Amortización!$AE$14)) -> 0 | J127: =IFERROR(IF(OR($E$11=Resumen!$N$6,$E$8=Resumen!$N$6),Amortización!F127*0.16,0),"") -> 0 | K127: 30015.49495 | L127: 2100409.527 | M127: 0 | N127: 0 | O127: 0 | P127: 0 | R127: 0.098 | T127: 107 | U127: 29923.05139 | V127: 29923.05139 | X127: 1.162501366 | Y127: 0 | AB127: 670.2158512 | AG127: 0 | AH127: 0 | AI127: 0 | BC127: =IFERROR(IF(OR($E$11=Resumen!$N$6,$E$8=Resumen!$N$6),Amortización!AY127*0.16,0),"") -> 0
C128: 108 | D128: 2100409.527 | E128: 11262.83893 | F128: 17153.34447 | G128: =IF(D128="","",L127*Resumen!$L$86/1000) -> 924.1801921 | H128: 666.669984 | I128: =IF($E$16=$V$1,0,IF(D128="","",Amortización!$AE$14)) -> 0 | J128: =IFERROR(IF(OR($E$11=Resumen!$N$6,$E$8=Resumen!$N$6),Amortización!F128*0.16,0),"") -> 0 | K128: 30007.03358 | L128: 2084146.689 | M128: 0 | N128: 0 | O128: 0 | P128: 0 | Q128: =IF(OR(L127=0,L127=""),"",IF(E128>=D128,0,$E$17*10%)) -> 5000 | R128: 0.098 | T128: 108 | U128: 34915.0791 | V128: 34915.0791 | X128: 1.162501366 | Y128: 0 | AB128: 666.669984 | AG128: 0 | AH128: 0 | AI128: 0 | BC128: =IFERROR(IF(OR($E$11=Resumen!$N$6,$E$8=Resumen!$N$6),Amortización!AY128*0.16,0),"") -> 0
C129: 109 | D129: 2084146.689 | E129: 11935.5596 | F129: 17020.53129 | G129: =IF(D129="","",L128*Resumen!$L$86/1000) -> 917.024543 | H129: 666.54 | I129: =IF($E$16=$V$1,0,IF(D129="","",Amortización!$AE$14)) -> 0 | J129: =IFERROR(IF(OR($E$11=Resumen!$N$6,$E$8=Resumen!$N$6),Amortización!F129*0.16,0),"") -> 0 | K129: 30539.65543 | L129: 2072211.129 | M129: 0 | N129: 0 | O129: 0 | P129: 0 | R129: 0.098 | T129: 109 | U129: 30447.71888 | V129: 30447.71888 | X129: 1.184588892 | Y129: 0 | AB129: 666.54 | AG129: 0 | AH129: 0 | AI129: 0 | BC129: =IFERROR(IF(OR($E$11=Resumen!$N$6,$E$8=Resumen!$N$6),Amortización!AY129*0.16,0),"") -> 0
C130: 110 | D130: 2072211.129 | E130: 12033.03333 | F130: 16923.05755 | G130: =IF(D130="","",L129*Resumen!$L$86/1000) -> 911.7728967 | H130: 666.54 | I130: =IF($E$16=$V$1,0,IF(D130="","",Amortización!$AE$14)) -> 0 | J130: =IFERROR(IF(OR($E$11=Resumen!$N$6,$E$8=Resumen!$N$6),Amortización!F130*0.16,0),"") -> 0 | K130: 30534.40378 | L130: 2055178.096 | M130: 0 | N130: 0 | O130: 0 | P130: 0 | Q130: =IF(OR(L129=0,L129=""),"",IF(E130>=D130,0,$E$17*10%)) -> 5000 | R130: 0.098 | T130: 110 | U130: 35442.46723 | V130: 35442.46723 | X130: 1.184588892 | Y130: 0 | AB130: 666.54 | AG130: 0 | AH130: 0 | AI130: 0 | BC130: =IFERROR(IF(OR($E$11=Resumen!$N$6,$E$8=Resumen!$N$6),Amortización!AY130*0.16,0),"") -> 0
C131: 111 | D131: 2055178.096 | E131: 12172.13644 | F131: 16783.95445 | G131: =IF(D131="","",L130*Resumen!$L$86/1000) -> 904.2783621 | H131: 666.54 | I131: =IF($E$16=$V$1,0,IF(D131="","",Amortización!$AE$14)) -> 0 | J131: =IFERROR(IF(OR($E$11=Resumen!$N$6,$E$8=Resumen!$N$6),Amortización!F131*0.16,0),"") -> 0 | K131: 30526.90925 | L131: 2043005.959 | M131: 0 | N131: 0 | O131: 0 | P131: 0 | R131: 0.098 | T131: 111 | U131: 30434.9727 | V131: 30434.9727 | X131: 1.184588892 | Y131: 0 | AB131: 666.54 | AG131: 0 | AH131: 0 | AI131: 0 | BC131: =IFERROR(IF(OR($E$11=Resumen!$N$6,$E$8=Resumen!$N$6),Amortización!AY131*0.16,0),"") -> 0
C132: 112 | D132: 2043005.959 | E132: 12271.54222 | F132: 16684.54867 | G132: =IF(D132="","",L131*Resumen!$L$86/1000) -> 898.922622 | H132: 666.54 | I132: =IF($E$16=$V$1,0,IF(D132="","",Amortización!$AE$14)) -> 0 | J132: =IFERROR(IF(OR($E$11=Resumen!$N$6,$E$8=Resumen!$N$6),Amortización!F132*0.16,0),"") -> 0 | K132: 30521.55351 | L132: 2025734.417 | M132: 0 | N132: 0 | O132: 0 | P132: 0 | Q132: =IF(OR(L131=0,L131=""),"",IF(E132>=D132,0,$E$17*10%)) -> 5000 | R132: 0.098 | T132: 112 | U132: 35429.61696 | V132: 35429.61696 | X132: 1.184588892 | Y132: 0 | AB132: 666.54 | AG132: 0 | AH132: 0 | AI132: 0 | BC132: =IFERROR(IF(OR($E$11=Resumen!$N$6,$E$8=Resumen!$N$6),Amortización!AY132*0.16,0),"") -> 0
C133: 113 | D133: 2025734.417 | E133: 12412.59315 | F133: 16543.49774 | G133: =IF(D133="","",L132*Resumen!$L$86/1000) -> 891.3231435 | H133: 666.54 | I133: =IF($E$16=$V$1,0,IF(D133="","",Amortización!$AE$14)) -> 0 | J133: =IFERROR(IF(OR($E$11=Resumen!$N$6,$E$8=Resumen!$N$6),Amortización!F133*0.16,0),"") -> 0 | K133: 30513.95403 | L133: 2013321.824 | M133: 0 | N133: 0 | O133: 0 | P133: 0 | R133: 0.098 | T133: 113 | U133: 30422.01748 | V133: 30422.01748 | X133: 1.184588892 | Y133: 0 | AB133: 666.54 | AG133: 0 | AH133: 0 | AI133: 0 | BC133: =IFERROR(IF(OR($E$11=Resumen!$N$6,$E$8=Resumen!$N$6),Amortización!AY133*0.16,0),"") -> 0
C134: 114 | D134: 2013321.824 | E134: 12513.96266 | F134: 16442.12823 | G134: =IF(D134="","",L133*Resumen!$L$86/1000) -> 885.8616025 | H134: 666.54 | I134: =IF($E$16=$V$1,0,IF(D134="","",Amortización!$AE$14)) -> 0 | J134: =IFERROR(IF(OR($E$11=Resumen!$N$6,$E$8=Resumen!$N$6),Amortización!F134*0.16,0),"") -> 0 | K134: 30508.49249 | L134: 1995807.861 | M134: 0 | N134: 0 | O134: 0 | P134: 0 | Q134: =IF(OR(L133=0,L133=""),"",IF(E134>=D134,0,$E$17*10%)) -> 5000 | R134: 0.098 | T134: 114 | U134: 35416.55594 | V134: 35416.55594 | X134: 1.184588892 | Y134: 0 | AB134: 666.54 | AG134: 0 | AH134: 0 | AI134: 0 | BC134: =IFERROR(IF(OR($E$11=Resumen!$N$6,$E$8=Resumen!$N$6),Amortización!AY134*0.16,0),"") -> 0
C135: 115 | D135: 1995807.861 | E135: 12656.99335 | F135: 16299.09753 | G135: =IF(D135="","",L134*Resumen!$L$86/1000) -> 878.1554589 | H135: 666.54 | I135: =IF($E$16=$V$1,0,IF(D135="","",Amortización!$AE$14)) -> 0 | J135: =IFERROR(IF(OR($E$11=Resumen!$N$6,$E$8=Resumen!$N$6),Amortización!F135*0.16,0),"") -> 0 | K135: 30500.78635 | L135: 1983150.868 | M135: 0 | N135: 0 | O135: 0 | P135: 0 | R135: 0.098 | T135: 115 | U135: 30408.84979 | V135: 30408.84979 | X135: 1.184588892 | Y135: 0 | AB135: 666.54 | AG135: 0 | AH135: 0 | AI135: 0 | BC135: =IFERROR(IF(OR($E$11=Resumen!$N$6,$E$8=Resumen!$N$6),Amortización!AY135*0.16,0),"") -> 0
C136: 116 | D136: 1983150.868 | E136: 12760.3588 | F136: 16195.73209 | G136: =IF(D136="","",L135*Resumen!$L$86/1000) -> 872.5863818 | H136: 666.54 | I136: =IF($E$16=$V$1,0,IF(D136="","",Amortización!$AE$14)) -> 0 | J136: =IFERROR(IF(OR($E$11=Resumen!$N$6,$E$8=Resumen!$N$6),Amortización!F136*0.16,0),"") -> 0 | K136: 30495.21727 | L136: 1965390.509 | M136: 0 | N136: 0 | O136: 0 | P136: 0 | Q136: =IF(OR(L135=0,L135=""),"",IF(E136>=D136,0,$E$17*10%)) -> 5000 | R136: 0.098 | T136: 116 | U136: 35403.28072 | V136: 35403.28072 | X136: 1.184588892 | Y136: 0 | AB136: 666.54 | AG136: 0 | AH136: 0 | AI136: 0 | BC136: =IFERROR(IF(OR($E$11=Resumen!$N$6,$E$8=Resumen!$N$6),Amortización!AY136*0.16,0),"") -> 0
C137: 117 | D137: 1965390.509 | E137: 12905.40173 | F137: 16050.68916 | G137: =IF(D137="","",L136*Resumen!$L$86/1000) -> 864.771824 | H137: 666.54 | I137: =IF($E$16=$V$1,0,IF(D137="","",Amortización!$AE$14)) -> 0 | J137: =IFERROR(IF(OR($E$11=Resumen!$N$6,$E$8=Resumen!$N$6),Amortización!F137*0.16,0),"") -> 0 | K137: 30487.40271 | L137: 1952485.107 | M137: 0 | N137: 0 | O137: 0 | P137: 0 | R137: 0.098 | T137: 117 | U137: 30395.46616 | V137: 30395.46616 | X137: 1.184588892 | Y137: 0 | AB137: 666.54 | AG137: 0 | AH137: 0 | AI137: 0 | BC137: =IFERROR(IF(OR($E$11=Resumen!$N$6,$E$8=Resumen!$N$6),Amortización!AY137*0.16,0),"") -> 0
C138: 118 | D138: 1952485.107 | E138: 13010.79584 | F138: 15945.29504 | G138: =IF(D138="","",L137*Resumen!$L$86/1000) -> 859.0934472 | H138: 666.54 | I138: =IF($E$16=$V$1,0,IF(D138="","",Amortización!$AE$14)) -> 0 | J138: =IFERROR(IF(OR($E$11=Resumen!$N$6,$E$8=Resumen!$N$6),Amortización!F138*0.16,0),"") -> 0 | K138: 30481.72433 | L138: 1934474.311 | M138: 0 | N138: 0 | O138: 0 | P138: 0 | Q138: =IF(OR(L137=0,L137=""),"",IF(E138>=D138,0,$E$17*10%)) -> 5000 | R138: 0.098 | T138: 118 | U138: 35389.78778 | V138: 35389.78778 | X138: 1.184588892 | Y138: 0 | AB138: 666.54 | AG138: 0 | AH138: 0 | AI138: 0 | BC138: =IFERROR(IF(OR($E$11=Resumen!$N$6,$E$8=Resumen!$N$6),Amortización!AY138*0.16,0),"") -> 0
C139: 119 | D139: 1934474.311 | E139: 13157.88401 | F139: 15798.20688 | G139: =IF(D139="","",L138*Resumen!$L$86/1000) -> 851.168697 | H139: 666.54 | I139: =IF($E$16=$V$1,0,IF(D139="","",Amortización!$AE$14)) -> 0 | J139: =IFERROR(IF(OR($E$11=Resumen!$N$6,$E$8=Resumen!$N$6),Amortización!F139*0.16,0),"") -> 0 | K139: 30473.79958 | L139: 1921316.427 | M139: 0 | N139: 0 | O139: 0 | P139: 0 | R139: 0.098 | T139: 119 | U139: 30381.86303 | V139: 30381.86303 | X139: 1.184588892 | Y139: 0 | AB139: 666.54 | AG139: 0 | AH139: 0 | AI139: 0 | BC139: =IFERROR(IF(OR($E$11=Resumen!$N$6,$E$8=Resumen!$N$6),Amortización!AY139*0.16,0),"") -> 0
C140: 120 | D140: 1921316.427 | E140: 13265.34006 | F140: 15690.75082 | G140: =IF(D140="","",L139*Resumen!$L$86/1000) -> 845.3792281 | H140: 666.54 | I140: =IF($E$16=$V$1,0,IF(D140="","",Amortización!$AE$14)) -> 0 | J140: =IFERROR(IF(OR($E$11=Resumen!$N$6,$E$8=Resumen!$N$6),Amortización!F140*0.16,0),"") -> 0 | K140: 30468.01011 | L140: 1903051.087 | M140: 0 | N140: 0 | O140: 0 | P140: 0 | Q140: =IF(OR(L139=0,L139=""),"",IF(E140>=D140,0,$E$17*10%)) -> 5000 | R140: 0.098 | T140: 120 | U140: 35376.07356 | V140: 35376.07356 | X140: 1.184588892 | Y140: 0 | AB140: 666.54 | AG140: 0 | AH140: 0 | AI140: 0 | BC140: =IFERROR(IF(OR($E$11=Resumen!$N$6,$E$8=Resumen!$N$6),Amortización!AY140*0.16,0),"") -> 0
C141: 121 | D141: 1903051.087 | E141: 13964.67273 | F141: 15541.58388 | G141: =IF(D141="","",L140*Resumen!$L$86/1000) -> 837.3424784 | H141: 666.54 | I141: =IF($E$16=$V$1,0,IF(D141="","",Amortización!$AE$14)) -> 0 | J141: =IFERROR(IF(OR($E$11=Resumen!$N$6,$E$8=Resumen!$N$6),Amortización!F141*0.16,0),"") -> 0 | K141: 31010.13909 | L141: 1889086.415 | M141: 0 | N141: 0 | O141: 0 | P141: 0 | R141: 0.098 | T141: 121 | U141: 30918.20254 | V141: 30918.20254 | X141: 1.207096081 | Y141: 0 | AB141: 666.54 | AG141: 0 | AH141: 0 | AI141: 0 | BC141: =IFERROR(IF(OR($E$11=Resumen!$N$6,$E$8=Resumen!$N$6),Amortización!AY141*0.16,0),"") -> 0
C142: 122 | D142: 1889086.415 | E142: 14078.71756 | F142: 15427.53905 | G142: =IF(D142="","",L141*Resumen!$L$86/1000) -> 831.1980224 | H142: 666.54 | I142: =IF($E$16=$V$1,0,IF(D142="","",Amortización!$AE$14)) -> 0 | J142: =IFERROR(IF(OR($E$11=Resumen!$N$6,$E$8=Resumen!$N$6),Amortización!F142*0.16,0),"") -> 0 | K142: 31003.99464 | L142: 1870007.697 | M142: 0 | N142: 0 | O142: 0 | P142: 0 | Q142: =IF(OR(L141=0,L141=""),"",IF(E142>=D142,0,$E$17*10%)) -> 5000 | R142: 0.098 | T142: 122 | U142: 35912.05808 | V142: 35912.05808 | X142: 1.207096081 | Y142: 0 | AB142: 666.54 | AG142: 0 | AH142: 0 | AI142: 0 | BC142: =IFERROR(IF(OR($E$11=Resumen!$N$6,$E$8=Resumen!$N$6),Amortización!AY142*0.16,0),"") -> 0
C143: 123 | D143: 1870007.697 | E143: 14234.52709 | F143: 15271.72953 | G143: =IF(D143="","",L142*Resumen!$L$86/1000) -> 822.8033867 | H143: 666.54 | I143: =IF($E$16=$V$1,0,IF(D143="","",Amortización!$AE$14)) -> 0 | J143: =IFERROR(IF(OR($E$11=Resumen!$N$6,$E$8=Resumen!$N$6),Amortización!F143*0.16,0),"") -> 0 | K143: 30995.6 | L143: 1855773.17 | M143: 0 | N143: 0 | O143: 0 | P143: 0 | R143: 0.098 | T143: 123 | U143: 30903.66345 | V143: 30903.66345 | X143: 1.207096081 | Y143: 0 | AB143: 666.54 | AG143: 0 | AH143: 0 | AI143: 0 | BC143: =IFERROR(IF(OR($E$11=Resumen!$N$6,$E$8=Resumen!$N$6),Amortización!AY143*0.16,0),"") -> 0
C144: 124 | D144: 1855773.17 | E144: 14350.77572 | F144: 15155.48089 | G144: =IF(D144="","",L143*Resumen!$L$86/1000) -> 816.5401948 | H144: 666.54 | I144: =IF($E$16=$V$1,0,IF(D144="","",Amortización!$AE$14)) -> 0 | J144: =IFERROR(IF(OR($E$11=Resumen!$N$6,$E$8=Resumen!$N$6),Amortización!F144*0.16,0),"") -> 0 | K144: 30989.33681 | L144: 1836422.394 | M144: 0 | N144: 0 | O144: 0 | P144: 0 | Q144: =IF(OR(L143=0,L143=""),"",IF(E144>=D144,0,$E$17*10%)) -> 5000 | R144: 0.098 | T144: 124 | U144: 35897.40026 | V144: 35897.40026 | X144: 1.207096081 | Y144: 0 | AB144: 666.54 | AG144: 0 | AH144: 0 | AI144: 0 | BC144: =IFERROR(IF(OR($E$11=Resumen!$N$6,$E$8=Resumen!$N$6),Amortización!AY144*0.16,0),"") -> 0
C145: 125 | D145: 1836422.394 | E145: 14508.80706 | F145: 14997.44955 | G145: =IF(D145="","",L144*Resumen!$L$86/1000) -> 808.0258535 | H145: 666.54 | I145: =IF($E$16=$V$1,0,IF(D145="","",Amortización!$AE$14)) -> 0 | J145: =IFERROR(IF(OR($E$11=Resumen!$N$6,$E$8=Resumen!$N$6),Amortización!F145*0.16,0),"") -> 0 | K145: 30980.82247 | L145: 1821913.587 | M145: 0 | N145: 0 | O145: 0 | P145: 0 | R145: 0.098 | T145: 125 | U145: 30888.88591 | V145: 30888.88591 | X145: 1.207096081 | Y145: 0 | AB145: 666.54 | AG145: 0 | AH145: 0 | AI145: 0 | BC145: =IFERROR(IF(OR($E$11=Resumen!$N$6,$E$8=Resumen!$N$6),Amortización!AY145*0.16,0),"") -> 0
C146: 126 | D146: 1821913.587 | E146: 14627.29565 | F146: 14878.96096 | G146: =IF(D146="","",L145*Resumen!$L$86/1000) -> 801.6419784 | H146: 666.54 | I146: =IF($E$16=$V$1,0,IF(D146="","",Amortización!$AE$14)) -> 0 | J146: =IFERROR(IF(OR($E$11=Resumen!$N$6,$E$8=Resumen!$N$6),Amortización!F146*0.16,0),"") -> 0 | K146: 30974.43859 | L146: 1802286.292 | M146: 0 | N146: 0 | O146: 0 | P146: 0 | Q146: =IF(OR(L145=0,L145=""),"",IF(E146>=D146,0,$E$17*10%)) -> 5000 | R146: 0.098 | T146: 126 | U146: 35882.50204 | V146: 35882.50204 | X146: 1.207096081 | Y146: 0 | AB146: 666.54 | AG146: 0 | AH146: 0 | AI146: 0 | BC146: =IFERROR(IF(OR($E$11=Resumen!$N$6,$E$8=Resumen!$N$6),Amortización!AY146*0.16,0),"") -> 0
C147: 127 | D147: 1802286.292 | E147: 14787.58523 | F147: 14718.67138 | G147: =IF(D147="","",L146*Resumen!$L$86/1000) -> 793.0059683 | H147: 666.54 | I147: =IF($E$16=$V$1,0,IF(D147="","",Amortización!$AE$14)) -> 0 | J147: =IFERROR(IF(OR($E$11=Resumen!$N$6,$E$8=Resumen!$N$6),Amortización!F147*0.16,0),"") -> 0 | K147: 30965.80258 | L147: 1787498.706 | M147: 0 | N147: 0 | O147: 0 | P147: 0 | R147: 0.098 | T147: 127 | U147: 30873.86603 | V147: 30873.86603 | X147: 1.207096081 | Y147: 0 | AB147: 666.54 | AG147: 0 | AH147: 0 | AI147: 0 | BC147: =IFERROR(IF(OR($E$11=Resumen!$N$6,$E$8=Resumen!$N$6),Amortización!AY147*0.16,0),"") -> 0
C148: 128 | D148: 1787498.706 | E148: 14908.35051 | F148: 14597.9061 | G148: =IF(D148="","",L147*Resumen!$L$86/1000) -> 786.4994308 | H148: 666.54 | I148: =IF($E$16=$V$1,0,IF(D148="","",Amortización!$AE$14)) -> 0 | J148: =IFERROR(IF(OR($E$11=Resumen!$N$6,$E$8=Resumen!$N$6),Amortización!F148*0.16,0),"") -> 0 | K148: 30959.29604 | L148: 1767590.356 | M148: 0 | N148: 0 | O148: 0 | P148: 0 | Q148: =IF(OR(L147=0,L147=""),"",IF(E148>=D148,0,$E$17*10%)) -> 5000 | R148: 0.098 | T148: 128 | U148: 35867.35949 | V148: 35867.35949 | X148: 1.207096081 | Y148: 0 | AB148: 666.54 | AG148: 0 | AH148: 0 | AI148: 0 | BC148: =IFERROR(IF(OR($E$11=Resumen!$N$6,$E$8=Resumen!$N$6),Amortización!AY148*0.16,0),"") -> 0
C149: 129 | D149: 1767590.356 | E149: 15070.93537 | F149: 14435.32124 | G149: =IF(D149="","",L148*Resumen!$L$86/1000) -> 777.7397566 | H149: 666.54 | I149: =IF($E$16=$V$1,0,IF(D149="","",Amortización!$AE$14)) -> 0 | J149: =IFERROR(IF(OR($E$11=Resumen!$N$6,$E$8=Resumen!$N$6),Amortización!F149*0.16,0),"") -> 0 | K149: 30950.53637 | L149: 1752519.42 | M149: =IF(OR(L148=0,L148=""),"",0) -> 0 | N149: 0 | O149: 0 | P149: 0 | R149: 0.098 | T149: 129 | U149: 30858.59982 | V149: 30858.59982 | X149: 1.207096081 | Y149: 0 | AB149: 666.54 | AG149: 0 | AH149: 0 | AI149: 0 | BC149: =IFERROR(IF(OR($E$11=Resumen!$N$6,$E$8=Resumen!$N$6),Amortización!AY149*0.16,0),"") -> 0 | BE149: =IFERROR(IF(AW149="","",IF((AW149-AX149-BY149)<1,0,AW149-AX149-BY149)),0) ->  | BF149: =IF(OR(BE148=0,BE148=""),"",0) -> 
C150: 130 | D150: 1752519.42 | E150: 15194.01468 | F150: 14312.24193 | G150: =IF(D150="","",L149*Resumen!$L$86/1000) -> 771.108545 | H150: =IF($E$16=$V$1,0,IF(D150="","",IF($E$11="Liquidez","0",AB150))) -> 666.54 | I150: =IF($E$16=$V$1,0,IF(D150="","",Amortización!$AE$14)) -> 0 | J150: =IFERROR(IF(OR($E$11=Resumen!$N$6,$E$8=Resumen!$N$6),Amortización!F150*0.16,0),"") -> 0 | K150: =IFERROR(IF(D150="","",E150+F150+G150+H150+I150+Y150+J150),0) -> 30943.90516 | L150: =IFERROR(IF(D150="","",IF((D150-E150-AI150-Q150)<1,0,D150-E150-AI150-Q150)),0) -> 1732325.406 | M150: 0 | N150: =IF(OR(O150="",O150=0),M150,M150-O150-P150) -> 0 | O150: =IF(M150="","",IF(AND($H$12="Comisión pago anticipado",C150<37),M150-(M150/(1+$K$12)),0)) -> 0 | P150: =IF(O150="","",IF(O150=0,0,O150*0.16)) -> 0 | Q150: =IF(OR(L149=0,L149=""),"",IF(E150>=D150,0,$E$17*10%)) -> 5000 | R150: 0.098 | T150: 130 | U150: =IF(D150="","",E150+F150+G150+H150/1.16+I150+Q150) -> 35851.96861 | V150: =IF($E$16=$V$1,AI150,IF(ISNUMBER(T150),IF($E$14="Pago Fijo",PMT(R150/12,$K$11,-$K$9),X150*$K$15*$K$9/1000)+G150+AI150+Q150+H150/1.16+$AE$14,0)) -> 35851.96861 | X150: 1.207096081 | Y150: 0 | AB150: =IF((($K$8*0.7)*($AE$13))>L149*($AE$13),($K$8*0.7)*($AE$13),($AE$13)*L149) -> 666.54 | AG150: =IF($AH$20=0,0,IF(N150>AH149,MAX(0,N150-AH149),N150)) -> 0 | AH150: =IFERROR(MAX(0,AH149-N150),0) -> 0 | AI150: =IF($E$16="no",N150,IF(AH150>0,0,AG150)) -> 0 | AV150: =IF(OR(BE149="",BE149=0),"",IF(AV149+1>$K$11+$X$2,"",AV149+1)) ->  | AW150: =IF(IF(AW149="","",AW149-AX149-BM149-BY149)<0.01,"",IF(AW149="","",BE149)) ->  | AX150: =IF($E$16=$V$1,0,IF(AW150="","",PMT($AY$10/12,$AY$11,-$AW$21)-AY150)) ->  | AZ150: =IF($E$16=$V$1,0,IF(AW150="","",BE149*0/1000)) ->  | BA150: =IF($E$16=$V$1,0,IF(AW150="","",IF($E$11="Liquidez","0",0))) ->  | BB150: =IF($E$16=$V$1,0,IF(AW150="","",AW150*$AY$13/12)) ->  | BC150: =IFERROR(IF(OR($E$11=Resumen!$N$6,$E$8=Resumen!$N$6),Amortización!AY150*0.16,0),"") -> 0 | BD150: =IFERROR(IF(AW150="","",AX150+AY150+AZ150+BA150+BB150+BC150),0) ->  | BJ150: =AV150 ->  | BK150: =IF(AW150="","",AX150+AY150+AZ150+BA150/1.16+BB150/1.16) -> 
C151: =IF(OR(L150="",L150=0),"",IF(C150+1>$K$11+$X$2,"",C150+1)) -> 131 | D151: =IF(IF(D150="","",D150-E150-Q150-AI150)<0.01,"",IF(D150="","",L150)) -> 1732325.406 | E151: 15358.93247 | F151: 14147.32415 | G151: =IF(D151="","",L150*Resumen!$L$86/1000) -> 762.2231785 | H151: 666.54 | I151: =IF($E$16=$V$1,0,IF(D151="","",Amortización!$AE$14)) -> 0 | J151: =IFERROR(IF(OR($E$11=Resumen!$N$6,$E$8=Resumen!$N$6),Amortización!F151*0.16,0),"") -> 0 | K151: 30935.01979 | L151: 1716966.473 | M151: 0 | N151: 0 | O151: 0 | P151: 0 | R151: =IF(D151="","",R150) -> 0.098 | T151: =C151 -> 131 | U151: 30843.08324 | V151: 30843.08324 | X151: 1.207096081 | Y151: 0 | AB151: 666.54 | AG151: 0 | AH151: 0 | AI151: 0 | BC151: =IFERROR(IF(OR($E$11=Resumen!$N$6,$E$8=Resumen!$N$6),Amortización!AY151*0.16,0),"") -> 0
C152: 132 | D152: 1716966.473 | E152: 15484.36375 | F152: 14021.89287 | G152: =IF(D152="","",L151*Resumen!$L$86/1000) -> 755.4652482 | H152: 666.54 | I152: =IF($E$16=$V$1,0,IF(D152="","",Amortización!$AE$14)) -> 0 | J152: =IFERROR(IF(OR($E$11=Resumen!$N$6,$E$8=Resumen!$N$6),Amortización!F152*0.16,0),"") -> 0 | K152: 30928.26186 | L152: 1696482.11 | M152: 0 | N152: 0 | O152: 0 | P152: 0 | Q152: =IF(OR(L151=0,L151=""),"",IF(E152>=D152,0,$E$17*10%)) -> 5000 | R152: 0.098 | T152: 132 | U152: 35836.32531 | V152: 35836.32531 | X152: 1.207096081 | Y152: 0 | AB152: 666.54 | AG152: 0 | AH152: 0 | AI152: 0 | AY152: =IF(AW152="","",AW152*(BH152/12)) ->  | BC152: =IFERROR(IF(OR($E$11=Resumen!$N$6,$E$8=Resumen!$N$6),Amortización!AY152*0.16,0),"") -> 0
C153: 133 | D153: 1696482.11 | E153: =IFERROR(IF($E$14&$E$16=$X$4,PMT(R153/12,$K$11,-$K$9)-F153,IF(D153="","",IF($E$14="Pago Fijo",MIN(IF($E$15="Mensualidad",-PMT(R153/12,$K$11-C152,D153)-F153,-PMT(R153/12,$K$11,$K$9)-F153),D153),MIN(X153*$K$9*$K$15/1000-F153,D153)))),0) -> 16212.27159 | F153: 13854.60389 | G153: =IF(D153="","",L152*Resumen!$L$86/1000) -> 746.4521282 | H153: 666.54 | I153: =IF($E$16=$V$1,0,IF(D153="","",Amortización!$AE$14)) -> 0 | J153: =IFERROR(IF(OR($E$11=Resumen!$N$6,$E$8=Resumen!$N$6),Amortización!F153*0.16,0),"") -> 0 | K153: 31479.86762 | L153: 1680269.838 | M153: 0 | N153: 0 | O153: 0 | P153: 0 | R153: 0.098 | T153: 133 | U153: 31387.93107 | V153: 31387.93107 | X153: 1.230030907 | Y153: 0 | AB153: 666.54 | AG153: 0 | AH153: 0 | AI153: 0 | BC153: =IFERROR(IF(OR($E$11=Resumen!$N$6,$E$8=Resumen!$N$6),Amortización!AY153*0.16,0),"") -> 0
C154: 134 | D154: 1680269.838 | E154: 16344.67181 | F154: =IF(D154="","",D154*(R154/12)) -> 13722.20368 | G154: =IF(D154="","",L153*Resumen!$L$86/1000) -> 739.3187287 | H154: 666.54 | I154: =IF($E$16=$V$1,0,IF(D154="","",Amortización!$AE$14)) -> 0 | J154: =IFERROR(IF(OR($E$11=Resumen!$N$6,$E$8=Resumen!$N$6),Amortización!F154*0.16,0),"") -> 0 | K154: 31472.73422 | L154: 1658925.166 | M154: 0 | N154: 0 | O154: 0 | P154: 0 | Q154: =IF(OR(L153=0,L153=""),"",IF(E154>=D154,0,$E$17*10%)) -> 5000 | R154: 0.098 | T154: 134 | U154: 36380.79767 | V154: 36380.79767 | X154: 1.230030907 | Y154: 0 | AB154: 666.54 | AG154: 0 | AH154: 0 | AI154: 0 | BC154: =IFERROR(IF(OR($E$11=Resumen!$N$6,$E$8=Resumen!$N$6),Amortización!AY154*0.16,0),"") -> 0
C155: 135 | D155: 1658925.166 | E155: 16518.98663 | F155: 13547.88886 | G155: =IF(D155="","",L154*Resumen!$L$86/1000) -> 729.9270731 | H155: 666.54 | I155: =IF($E$16=$V$1,0,IF(D155="","",Amortización!$AE$14)) -> 0 | J155: =IFERROR(IF(OR($E$11=Resumen!$N$6,$E$8=Resumen!$N$6),Amortización!F155*0.16,0),"") -> 0 | K155: 31463.34256 | L155: 1642406.179 | M155: 0 | N155: 0 | O155: 0 | P155: 0 | R155: 0.098 | T155: 135 | U155: 31371.40601 | V155: 31371.40601 | X155: 1.230030907 | Y155: 0 | AB155: 666.54 | AG155: 0 | AH155: 0 | AI155: 0 | BC155: =IFERROR(IF(OR($E$11=Resumen!$N$6,$E$8=Resumen!$N$6),Amortización!AY155*0.16,0),"") -> 0
C156: 136 | D156: 1642406.179 | E156: 16653.89169 | F156: 13412.9838 | G156: =IF(D156="","",L155*Resumen!$L$86/1000) -> 722.658719 | H156: 666.54 | I156: =IF($E$16=$V$1,0,IF(D156="","",Amortización!$AE$14)) -> 0 | J156: =IFERROR(IF(OR($E$11=Resumen!$N$6,$E$8=Resumen!$N$6),Amortización!F156*0.16,0),"") -> 0 | K156: 31456.07421 | L156: 1620752.288 | M156: 0 | N156: 0 | O156: 0 | P156: 0 | Q156: =IF(OR(L155=0,L155=""),"",IF(E156>=D156,0,$E$17*10%)) -> 5000 | R156: 0.098 | T156: 136 | U156: 36364.13766 | V156: 36364.13766 | X156: 1.230030907 | Y156: 0 | AB156: 666.54 | AG156: 0 | AH156: 0 | AI156: 0 | BC156: =IFERROR(IF(OR($E$11=Resumen!$N$6,$E$8=Resumen!$N$6),Amortización!AY156*0.16,0),"") -> 0
C157: 137 | D157: 1620752.288 | E157: 16830.73181 | F157: 13236.14368 | G157: =IF(D157="","",L156*Resumen!$L$86/1000) -> 713.1310066 | H157: 666.54 | I157: =IF($E$16=$V$1,0,IF(D157="","",Amortización!$AE$14)) -> 0 | J157: =IFERROR(IF(OR($E$11=Resumen!$N$6,$E$8=Resumen!$N$6),Amortización!F157*0.16,0),"") -> 0 | K157: 31446.5465 | L157: 1603921.556 | M157: 0 | N157: 0 | O157: 0 | P157: 0 | R157: 0.098 | T157: 137 | U157: 31354.60994 | V157: 31354.60994 | X157: 1.230030907 | Y157: 0 | AB157: 666.54 | AG157: 0 | AH157: 0 | AI157: 0 | BC157: =IFERROR(IF(OR($E$11=Resumen!$N$6,$E$8=Resumen!$N$6),Amortización!AY157*0.16,0),"") -> 0
C158: 138 | D158: 1603921.556 | E158: 16968.18278 | F158: 13098.69271 | G158: =IF(D158="","",L157*Resumen!$L$86/1000) -> 705.7254846 | H158: 666.54 | I158: =IF($E$16=$V$1,0,IF(D158="","",Amortización!$AE$14)) -> 0 | J158: =IFERROR(IF(OR($E$11=Resumen!$N$6,$E$8=Resumen!$N$6),Amortización!F158*0.16,0),"") -> 0 | K158: 31439.14097 | L158: 1581953.373 | M158: 0 | N158: 0 | O158: 0 | P158: 0 | Q158: =IF(OR(L157=0,L157=""),"",IF(E158>=D158,0,$E$17*10%)) -> 5000 | R158: 0.098 | T158: 138 | U158: 36347.20442 | V158: 36347.20442 | X158: 1.230030907 | Y158: 0 | AB158: 666.54 | AG158: 0 | AH158: 0 | AI158: 0 | BC158: =IFERROR(IF(OR($E$11=Resumen!$N$6,$E$8=Resumen!$N$6),Amortización!AY158*0.16,0),"") -> 0
C159: 139 | D159: 1581953.373 | E159: 17147.58961 | F159: 12919.28588 | G159: =IF(D159="","",L158*Resumen!$L$86/1000) -> 696.0594842 | H159: 666.54 | I159: =IF($E$16=$V$1,0,IF(D159="","",Amortización!$AE$14)) -> 0 | J159: =IFERROR(IF(OR($E$11=Resumen!$N$6,$E$8=Resumen!$N$6),Amortización!F159*0.16,0),"") -> 0 | K159: 31429.47497 | L159: 1564805.784 | M159: 0 | N159: 0 | O159: 0 | P159: 0 | R159: 0.098 | T159: 139 | U159: 31337.53842 | V159: 31337.53842 | X159: 1.230030907 | Y159: 0 | AB159: 666.54 | AG159: 0 | AH159: 0 | AI159: 0 | BC159: =IFERROR(IF(OR($E$11=Resumen!$N$6,$E$8=Resumen!$N$6),Amortización!AY159*0.16,0),"") -> 0
C160: 140 | D160: 1564805.784 | E160: 17287.62826 | F160: 12779.24723 | G160: =IF(D160="","",L159*Resumen!$L$86/1000) -> 688.5145448 | H160: 666.54 | I160: =IF($E$16=$V$1,0,IF(D160="","",Amortización!$AE$14)) -> 0 | J160: =IFERROR(IF(OR($E$11=Resumen!$N$6,$E$8=Resumen!$N$6),Amortización!F160*0.16,0),"") -> 0 | K160: 31421.93003 | L160: 1542518.155 | M160: 0 | N160: 0 | O160: 0 | P160: 0 | Q160: =IF(OR(L159=0,L159=""),"",IF(E160>=D160,0,$E$17*10%)) -> 5000 | R160: 0.098 | T160: 140 | U160: 36329.99348 | V160: 36329.99348 | X160: 1.230030907 | Y160: 0 | AB160: 666.54 | AG160: 0 | AH160: 0 | AI160: 0 | BC160: =IFERROR(IF(OR($E$11=Resumen!$N$6,$E$8=Resumen!$N$6),Amortización!AY160*0.16,0),"") -> 0
C161: 141 | D161: 1542518.155 | E161: 17469.64389 | F161: 12597.2316 | G161: =IF(D161="","",L160*Resumen!$L$86/1000) -> 678.7079884 | H161: 666.54 | I161: =IF($E$16=$V$1,0,IF(D161="","",Amortización!$AE$14)) -> 0 | J161: =IFERROR(IF(OR($E$11=Resumen!$N$6,$E$8=Resumen!$N$6),Amortización!F161*0.16,0),"") -> 0 | K161: 31412.12348 | L161: 1525048.511 | M161: 0 | N161: 0 | O161: 0 | P161: 0 | R161: 0.098 | T161: 141 | U161: 31320.18693 | V161: 31320.18693 | X161: 1.230030907 | Y161: 0 | AB161: 666.54 | AG161: 0 | AH161: 0 | AI161: 0 | BC161: =IFERROR(IF(OR($E$11=Resumen!$N$6,$E$8=Resumen!$N$6),Amortización!AY161*0.16,0),"") -> 0
C162: 142 | D162: 1525048.511 | E162: 17612.31265 | F162: 12454.56284 | G162: =IF(D162="","",L161*Resumen!$L$86/1000) -> 671.021345 | H162: 666.54 | I162: =IF($E$16=$V$1,0,IF(D162="","",Amortización!$AE$14)) -> 0 | J162: =IFERROR(IF(OR($E$11=Resumen!$N$6,$E$8=Resumen!$N$6),Amortización!F162*0.16,0),"") -> 0 | K162: 31404.43683 | L162: 1502436.199 | M162: 0 | N162: 0 | O162: 0 | P162: 0 | Q162: =IF(OR(L161=0,L161=""),"",IF(E162>=D162,0,$E$17*10%)) -> 5000 | R162: 0.098 | T162: 142 | U162: 36312.50028 | V162: 36312.50028 | X162: 1.230030907 | Y162: 0 | AB162: 666.54 | AG162: 0 | AH162: 0 | AI162: 0 | BC162: =IFERROR(IF(OR($E$11=Resumen!$N$6,$E$8=Resumen!$N$6),Amortización!AY162*0.16,0),"") -> 0
C163: 143 | D163: 1502436.199 | E163: 17796.97987 | F163: 12269.89562 | G163: =IF(D163="","",L162*Resumen!$L$86/1000) -> 661.0719275 | H163: 666.54 | I163: =IF($E$16=$V$1,0,IF(D163="","",Amortización!$AE$14)) -> 0 | J163: =IFERROR(IF(OR($E$11=Resumen!$N$6,$E$8=Resumen!$N$6),Amortización!F163*0.16,0),"") -> 0 | K163: 31394.48742 | L163: 1484639.219 | M163: 0 | N163: 0 | O163: 0 | P163: 0 | R163: 0.098 | T163: 143 | U163: 31302.55086 | V163: 31302.55086 | X163: 1.230030907 | Y163: 0 | AB163: 666.54 | AG163: 0 | AH163: 0 | AI163: 0 | BC163: =IFERROR(IF(OR($E$11=Resumen!$N$6,$E$8=Resumen!$N$6),Amortización!AY163*0.16,0),"") -> 0
C164: 144 | D164: 1484639.219 | E164: 17942.32187 | F164: 12124.55362 | G164: =IF(D164="","",L163*Resumen!$L$86/1000) -> 653.2412563 | H164: 666.54 | I164: =IF($E$16=$V$1,0,IF(D164="","",Amortización!$AE$14)) -> 0 | J164: =IFERROR(IF(OR($E$11=Resumen!$N$6,$E$8=Resumen!$N$6),Amortización!F164*0.16,0),"") -> 0 | K164: 31386.65675 | L164: 1461696.897 | M164: 0 | N164: 0 | O164: 0 | P164: 0 | Q164: =IF(OR(L163=0,L163=""),"",IF(E164>=D164,0,$E$17*10%)) -> 5000 | R164: 0.098 | T164: 144 | U164: 36294.72019 | V164: 36294.72019 | X164: 1.230030907 | Y164: 0 | AB164: 666.54 | AG164: 0 | AH164: 0 | AI164: 0 | BC164: =IFERROR(IF(OR($E$11=Resumen!$N$6,$E$8=Resumen!$N$6),Amortización!AY164*0.16,0),"") -> 0
C165: 145 | D165: 1461696.897 | E165: 18700.9548 | F165: 11937.19133 | G165: =IF(D165="","",L164*Resumen!$L$86/1000) -> 643.1466347 | H165: 666.54 | I165: =IF($E$16=$V$1,0,IF(D165="","",Amortización!$AE$14)) -> 0 | J165: =IFERROR(IF(OR($E$11=Resumen!$N$6,$E$8=Resumen!$N$6),Amortización!F165*0.16,0),"") -> 0 | K165: 31947.83276 | L165: 1442995.942 | M165: 0 | N165: 0 | O165: 0 | P165: 0 | R165: 0.098 | T165: 145 | U165: 31855.89621 | V165: 31855.89621 | X165: =IF(OR(AND($E$8="Adquisicion",$E$9="Premier"),AND($E$8="Exclusiva",$E$9="Premier"),AND($E$8="Nomina Especial",$E$9="Premier")),X153*1.019,IF(OR(AND($E$8="Adquisicion",$E$9="No Premier"),AND($E$8="Exclusiva",$E$9="No Premier"),AND($E$8="Nomina Especial",$E$9="No Premier")),X153*1.019,IF($E$8="Pago de Hipoteca",X153*1.019))) -> 1.253401494 | Y165: 0 | AB165: 666.54 | AG165: 0 | AH165: 0 | AI165: 0 | BC165: =IFERROR(IF(OR($E$11=Resumen!$N$6,$E$8=Resumen!$N$6),Amortización!AY165*0.16,0),"") -> 0
C166: 146 | D166: 1442995.942 | E166: 18853.67926 | F166: 11784.46686 | G166: =IF(D166="","",L165*Resumen!$L$86/1000) -> 634.9182146 | H166: 666.54 | I166: =IF($E$16=$V$1,0,IF(D166="","",Amortización!$AE$14)) -> 0 | J166: =IFERROR(IF(OR($E$11=Resumen!$N$6,$E$8=Resumen!$N$6),Amortización!F166*0.16,0),"") -> 0 | K166: 31939.60434 | L166: 1419142.263 | M166: 0 | N166: 0 | O166: 0 | P166: 0 | Q166: =IF(OR(L165=0,L165=""),"",IF(E166>=D166,0,$E$17*10%)) -> 5000 | R166: 0.098 | T166: 146 | U166: 36847.66779 | V166: 36847.66779 | X166: 1.253401494 | Y166: 0 | AB166: 666.54 | AG166: 0 | AH166: 0 | AI166: 0 | BC166: =IFERROR(IF(OR($E$11=Resumen!$N$6,$E$8=Resumen!$N$6),Amortización!AY166*0.16,0),"") -> 0
C167: 147 | D167: 1419142.263 | E167: 19048.48431 | F167: 11589.66181 | G167: =IF(D167="","",L166*Resumen!$L$86/1000) -> 624.4225957 | H167: 666.54 | I167: =IF($E$16=$V$1,0,IF(D167="","",Amortización!$AE$14)) -> 0 | J167: =IFERROR(IF(OR($E$11=Resumen!$N$6,$E$8=Resumen!$N$6),Amortización!F167*0.16,0),"") -> 0 | K167: 31929.10872 | L167: 1400093.779 | M167: 0 | N167: 0 | O167: 0 | P167: 0 | R167: 0.098 | T167: 147 | U167: 31837.17217 | V167: 31837.17217 | X167: 1.253401494 | Y167: 0 | AB167: 666.54 | AG167: 0 | AH167: 0 | AI167: 0 | BC167: =IFERROR(IF(OR($E$11=Resumen!$N$6,$E$8=Resumen!$N$6),Amortización!AY167*0.16,0),"") -> 0
C168: 148 | D168: 1400093.779 | E168: 19204.04693 | F168: 11434.09919 | G168: =IF(D168="","",L167*Resumen!$L$86/1000) -> 616.0412626 | H168: 666.54 | I168: =IF($E$16=$V$1,0,IF(D168="","",Amortización!$AE$14)) -> 0 | J168: =IFERROR(IF(OR($E$11=Resumen!$N$6,$E$8=Resumen!$N$6),Amortización!F168*0.16,0),"") -> 0 | K168: 31920.72739 | L168: 1375889.732 | M168: 0 | N168: 0 | O168: 0 | P168: 0 | Q168: =IF(OR(L167=0,L167=""),"",IF(E168>=D168,0,$E$17*10%)) -> 5000 | R168: 0.098 | T168: 148 | U168: 36828.79083 | V168: 36828.79083 | X168: 1.253401494 | Y168: 0 | AB168: 666.54 | AG168: 0 | AH168: 0 | AI168: 0 | BC168: =IFERROR(IF(OR($E$11=Resumen!$N$6,$E$8=Resumen!$N$6),Amortización!AY168*0.16,0),"") -> 0
C169: 149 | D169: 1375889.732 | E169: 19401.71331 | F169: 11236.43281 | G169: =IF(D169="","",L168*Resumen!$L$86/1000) -> 605.391482 | H169: 666.54 | I169: =IF($E$16=$V$1,0,IF(D169="","",Amortización!$AE$14)) -> 0 | J169: =IFERROR(IF(OR($E$11=Resumen!$N$6,$E$8=Resumen!$N$6),Amortización!F169*0.16,0),"") -> 0 | K169: 31910.07761 | L169: 1356488.018 | M169: 0 | N169: 0 | O169: 0 | P169: 0 | R169: 0.098 | T169: 149 | U169: 31818.14105 | V169: 31818.14105 | X169: 1.253401494 | Y169: 0 | AB169: 666.54 | AG169: 0 | AH169: 0 | AI169: 0 | BC169: =IFERROR(IF(OR($E$11=Resumen!$N$6,$E$8=Resumen!$N$6),Amortización!AY169*0.16,0),"") -> 0
C170: 150 | D170: 1356488.018 | E170: 19560.16064 | F170: 11077.98548 | G170: =IF(D170="","",L169*Resumen!$L$86/1000) -> 596.8547281 | H170: 666.54 | I170: =IF($E$16=$V$1,0,IF(D170="","",Amortización!$AE$14)) -> 0 | J170: =IFERROR(IF(OR($E$11=Resumen!$N$6,$E$8=Resumen!$N$6),Amortización!F170*0.16,0),"") -> 0 | K170: 31901.54085 | L170: 1331927.858 | M170: 0 | N170: 0 | O170: 0 | P170: 0 | Q170: =IF(OR(L169=0,L169=""),"",IF(E170>=D170,0,$E$17*10%)) -> 5000 | R170: 0.098 | T170: 150 | U170: 36809.6043 | V170: 36809.6043 | X170: 1.253401494 | Y170: 0 | AB170: 666.54 | AG170: 0 | AH170: 0 | AI170: 0 | BC170: =IFERROR(IF(OR($E$11=Resumen!$N$6,$E$8=Resumen!$N$6),Amortización!AY170*0.16,0),"") -> 0
C171: 151 | D171: 1331927.858 | E171: 19760.73528 | F171: 10877.41084 | G171: =IF(D171="","",L170*Resumen!$L$86/1000) -> 586.0482574 | H171: 666.54 | I171: =IF($E$16=$V$1,0,IF(D171="","",Amortización!$AE$14)) -> 0 | J171: =IFERROR(IF(OR($E$11=Resumen!$N$6,$E$8=Resumen!$N$6),Amortización!F171*0.16,0),"") -> 0 | K171: 31890.73438 | L171: 1312167.123 | M171: 0 | N171: 0 | O171: 0 | P171: 0 | R171: 0.098 | T171: 151 | U171: 31798.79783 | V171: 31798.79783 | X171: 1.253401494 | Y171: 0 | AB171: 666.54 | AG171: 0 | AH171: 0 | AI171: 0 | BC171: =IFERROR(IF(OR($E$11=Resumen!$N$6,$E$8=Resumen!$N$6),Amortización!AY171*0.16,0),"") -> 0
C172: 152 | D172: 1312167.123 | E172: 19922.11462 | F172: 10716.0315 | G172: =IF(D172="","",L171*Resumen!$L$86/1000) -> 577.3535339 | H172: 666.54 | I172: =IF($E$16=$V$1,0,IF(D172="","",Amortización!$AE$14)) -> 0 | J172: =IFERROR(IF(OR($E$11=Resumen!$N$6,$E$8=Resumen!$N$6),Amortización!F172*0.16,0),"") -> 0 | K172: 31882.03966 | L172: 1287245.008 | M172: 0 | N172: 0 | O172: 0 | P172: 0 | Q172: =IF(OR(L171=0,L171=""),"",IF(E172>=D172,0,$E$17*10%)) -> 5000 | R172: 0.098 | T172: 152 | U172: 36790.10311 | V172: 36790.10311 | X172: 1.253401494 | Y172: 0 | AB172: 666.54 | AG172: 0 | AH172: 0 | AI172: 0 | BC172: =IFERROR(IF(OR($E$11=Resumen!$N$6,$E$8=Resumen!$N$6),Amortización!AY172*0.16,0),"") -> 0
C173: 153 | D173: 1287245.008 | E173: 20125.64522 | F173: 10512.5009 | G173: =IF(D173="","",L172*Resumen!$L$86/1000) -> 566.3878035 | H173: 666.54 | I173: =IF($E$16=$V$1,0,IF(D173="","",Amortización!$AE$14)) -> 0 | J173: =IFERROR(IF(OR($E$11=Resumen!$N$6,$E$8=Resumen!$N$6),Amortización!F173*0.16,0),"") -> 0 | K173: 31871.07393 | L173: 1267119.363 | M173: 0 | N173: 0 | O173: 0 | P173: 0 | R173: 0.098 | T173: 153 | U173: 31779.13737 | V173: 31779.13737 | X173: 1.253401494 | Y173: 0 | AB173: 666.54 | AG173: 0 | AH173: 0 | AI173: 0 | BC173: =IFERROR(IF(OR($E$11=Resumen!$N$6,$E$8=Resumen!$N$6),Amortización!AY173*0.16,0),"") -> 0
C174: 154 | D174: 1267119.363 | E174: 20290.00466 | F174: 10348.14146 | G174: =IF(D174="","",L173*Resumen!$L$86/1000) -> 557.5325196 | H174: 666.54 | I174: =IF($E$16=$V$1,0,IF(D174="","",Amortización!$AE$14)) -> 0 | J174: =IFERROR(IF(OR($E$11=Resumen!$N$6,$E$8=Resumen!$N$6),Amortización!F174*0.16,0),"") -> 0 | K174: 31862.21864 | L174: 1241829.358 | M174: 0 | N174: 0 | O174: 0 | P174: 0 | Q174: =IF(OR(L173=0,L173=""),"",IF(E174>=D174,0,$E$17*10%)) -> 5000 | R174: 0.098 | T174: 154 | U174: 36770.28209 | V174: 36770.28209 | X174: 1.253401494 | Y174: 0 | AB174: 666.54 | AG174: 0 | AH174: 0 | AI174: 0 | BC174: =IFERROR(IF(OR($E$11=Resumen!$N$6,$E$8=Resumen!$N$6),Amortización!AY174*0.16,0),"") -> 0 | BH174: =IF(AW174="","",BH173) -> 
C175: 155 | D175: 1241829.358 | E175: 20496.5397 | F175: 10141.60642 | G175: =IF(D175="","",L174*Resumen!$L$86/1000) -> 546.4049175 | H175: 666.54 | I175: =IF($E$16=$V$1,0,IF(D175="","",Amortización!$AE$14)) -> 0 | J175: =IFERROR(IF(OR($E$11=Resumen!$N$6,$E$8=Resumen!$N$6),Amortización!F175*0.16,0),"") -> 0 | K175: 31851.09104 | L175: 1221332.818 | M175: 0 | N175: 0 | O175: 0 | P175: 0 | R175: 0.098 | T175: 155 | U175: 31759.15449 | V175: 31759.15449 | X175: 1.253401494 | Y175: 0 | AB175: 666.54 | AG175: 0 | AH175: 0 | AI175: 0 | BC175: =IFERROR(IF(OR($E$11=Resumen!$N$6,$E$8=Resumen!$N$6),Amortización!AY175*0.16,0),"") -> 0
C176: 156 | D176: 1221332.818 | E176: 20663.92811 | F176: 9974.218017 | G176: =IF(D176="","",L175*Resumen!$L$86/1000) -> 537.3864401 | H176: 666.54 | I176: =IF($E$16=$V$1,0,IF(D176="","",Amortización!$AE$14)) -> 0 | J176: =IFERROR(IF(OR($E$11=Resumen!$N$6,$E$8=Resumen!$N$6),Amortización!F176*0.16,0),"") -> 0 | K176: 31842.07256 | L176: 1195668.89 | M176: 0 | N176: 0 | O176: 0 | P176: 0 | Q176: =IF(OR(L175=0,L175=""),"",IF(E176>=D176,0,$E$17*10%)) -> 5000 | R176: 0.098 | T176: 156 | U176: 36750.13601 | V176: 36750.13601 | X176: 1.253401494 | Y176: 0 | AB176: 666.54 | AG176: 0 | AH176: 0 | AI176: 0 | BC176: =IFERROR(IF(OR($E$11=Resumen!$N$6,$E$8=Resumen!$N$6),Amortización!AY176*0.16,0),"") -> 0
C177: 157 | D177: 1195668.89 | E177: 21455.64163 | F177: 9764.62927 | G177: =IF(D177="","",L176*Resumen!$L$86/1000) -> 526.0943117 | H177: 666.54 | I177: =IF($E$16=$V$1,0,IF(D177="","",Amortización!$AE$14)) -> 0 | J177: =IFERROR(IF(OR($E$11=Resumen!$N$6,$E$8=Resumen!$N$6),Amortización!F177*0.16,0),"") -> 0 | K177: 32412.90521 | L177: 1174213.249 | M177: 0 | N177: 0 | O177: 0 | P177: 0 | R177: 0.098 | T177: 157 | U177: 32320.96866 | V177: 32320.96866 | X177: 1.277216123 | Y177: 0 | AB177: 666.54 | AG177: 0 | AH177: 0 | AI177: 0 | BC177: =IFERROR(IF(OR($E$11=Resumen!$N$6,$E$8=Resumen!$N$6),Amortización!AY177*0.16,0),"") -> 0
C178: 158 | D178: 1174213.249 | E178: 21630.8627 | F178: 9589.408197 | G178: =IF(D178="","",L177*Resumen!$L$86/1000) -> 516.6538294 | H178: 666.54 | I178: =IF($E$16=$V$1,0,IF(D178="","",Amortización!$AE$14)) -> 0 | J178: =IFERROR(IF(OR($E$11=Resumen!$N$6,$E$8=Resumen!$N$6),Amortización!F178*0.16,0),"") -> 0 | K178: 32403.46473 | L178: 1147582.386 | M178: 0 | N178: 0 | O178: 0 | P178: 0 | Q178: =IF(OR(L177=0,L177=""),"",IF(E178>=D178,0,$E$17*10%)) -> 5000 | R178: 0.098 | T178: 158 | U178: 37311.52818 | V178: 37311.52818 | X178: 1.277216123 | Y178: 0 | AB178: 666.54 | AG178: 0 | AH178: 0 | AI178: 0 | BC178: =IFERROR(IF(OR($E$11=Resumen!$N$6,$E$8=Resumen!$N$6),Amortización!AY178*0.16,0),"") -> 0
C179: 159 | D179: 1147582.386 | E179: 21848.34808 | F179: 9371.922818 | G179: =IF(D179="","",L178*Resumen!$L$86/1000) -> 504.9362498 | H179: 666.54 | I179: =IF($E$16=$V$1,0,IF(D179="","",Amortización!$AE$14)) -> 0 | J179: =IFERROR(IF(OR($E$11=Resumen!$N$6,$E$8=Resumen!$N$6),Amortización!F179*0.16,0),"") -> 0 | K179: 32391.74715 | L179: 1125734.038 | M179: 0 | N179: 0 | O179: 0 | P179: 0 | R179: 0.098 | T179: 159 | U179: 32299.8106 | V179: 32299.8106 | X179: 1.277216123 | Y179: 0 | AB179: 666.54 | AG179: 0 | AH179: 0 | AI179: 0 | BC179: =IFERROR(IF(OR($E$11=Resumen!$N$6,$E$8=Resumen!$N$6),Amortización!AY179*0.16,0),"") -> 0
C180: 160 | D180: 1125734.038 | E180: 22026.77626 | F180: 9193.494642 | G180: =IF(D180="","",L179*Resumen!$L$86/1000) -> 495.3229766 | H180: 666.54 | I180: =IF($E$16=$V$1,0,IF(D180="","",Amortización!$AE$14)) -> 0 | J180: =IFERROR(IF(OR($E$11=Resumen!$N$6,$E$8=Resumen!$N$6),Amortización!F180*0.16,0),"") -> 0 | K180: 32382.13388 | L180: 1098707.262 | M180: 0 | N180: 0 | O180: 0 | P180: 0 | Q180: =IF(OR(L179=0,L179=""),"",IF(E180>=D180,0,$E$17*10%)) -> 5000 | R180: 0.098 | T180: 160 | U180: 37290.19732 | V180: 37290.19732 | X180: 1.277216123 | Y180: 0 | AB180: 666.54 | AG180: 0 | AH180: 0 | AI180: 0 | BC180: =IFERROR(IF(OR($E$11=Resumen!$N$6,$E$8=Resumen!$N$6),Amortización!AY180*0.16,0),"") -> 0
C181: 161 | D181: 1098707.262 | E181: 22247.49493 | F181: 8972.775969 | G181: =IF(D181="","",L180*Resumen!$L$86/1000) -> 483.4311951 | H181: 666.54 | I181: =IF($E$16=$V$1,0,IF(D181="","",Amortización!$AE$14)) -> 0 | J181: =IFERROR(IF(OR($E$11=Resumen!$N$6,$E$8=Resumen!$N$6),Amortización!F181*0.16,0),"") -> 0 | K181: 32370.24209 | L181: 1076459.767 | M181: 0 | N181: 0 | O181: 0 | P181: 0 | R181: 0.098 | T181: 161 | U181: 32278.30554 | V181: 32278.30554 | X181: 1.277216123 | Y181: 0 | AB181: 666.54 | AG181: 0 | AH181: 0 | AI181: 0 | BC181: =IFERROR(IF(OR($E$11=Resumen!$N$6,$E$8=Resumen!$N$6),Amortización!AY181*0.16,0),"") -> 0
C182: 162 | D182: 1076459.767 | E182: 22429.18281 | F182: 8791.088094 | G182: =IF(D182="","",L181*Resumen!$L$86/1000) -> 473.6422973 | H182: 666.54 | I182: =IF($E$16=$V$1,0,IF(D182="","",Amortización!$AE$14)) -> 0 | J182: =IFERROR(IF(OR($E$11=Resumen!$N$6,$E$8=Resumen!$N$6),Amortización!F182*0.16,0),"") -> 0 | K182: 32360.4532 | L182: 1049030.584 | M182: 0 | N182: 0 | O182: 0 | P182: 0 | Q182: =IF(OR(L181=0,L181=""),"",IF(E182>=D182,0,$E$17*10%)) -> 5000 | R182: 0.098 | T182: 162 | U182: 37268.51664 | V182: 37268.51664 | X182: 1.277216123 | Y182: 0 | AB182: 666.54 | AG182: 0 | AH182: 0 | AI182: 0 | BC182: =IFERROR(IF(OR($E$11=Resumen!$N$6,$E$8=Resumen!$N$6),Amortización!AY182*0.16,0),"") -> 0
C183: 163 | D183: 1049030.584 | E183: 22653.1878 | F183: 8567.083101 | G183: =IF(D183="","",L182*Resumen!$L$86/1000) -> 461.5734569 | H183: 666.54 | I183: =IF($E$16=$V$1,0,IF(D183="","",Amortización!$AE$14)) -> 0 | J183: =IFERROR(IF(OR($E$11=Resumen!$N$6,$E$8=Resumen!$N$6),Amortización!F183*0.16,0),"") -> 0 | K183: 32348.38436 | L183: 1026377.396 | M183: 0 | N183: 0 | O183: 0 | P183: 0 | R183: 0.098 | T183: 163 | U183: 32256.4478 | V183: 32256.4478 | X183: 1.277216123 | Y183: 0 | AB183: 666.54 | AG183: 0 | AH183: 0 | AI183: 0 | BC183: =IFERROR(IF(OR($E$11=Resumen!$N$6,$E$8=Resumen!$N$6),Amortización!AY183*0.16,0),"") -> 0
C184: 164 | D184: 1026377.396 | E184: 22838.18883 | F184: 8382.082068 | G184: =IF(D184="","",L183*Resumen!$L$86/1000) -> 451.6060543 | H184: 666.54 | I184: =IF($E$16=$V$1,0,IF(D184="","",Amortización!$AE$14)) -> 0 | J184: =IFERROR(IF(OR($E$11=Resumen!$N$6,$E$8=Resumen!$N$6),Amortización!F184*0.16,0),"") -> 0 | K184: 32338.41695 | L184: 998539.2072 | M184: 0 | N184: 0 | O184: 0 | P184: 0 | Q184: =IF(OR(L183=0,L183=""),"",IF(E184>=D184,0,$E$17*10%)) -> 5000 | R184: 0.098 | T184: 164 | U184: 37246.4804 | V184: 37246.4804 | X184: 1.277216123 | Y184: 0 | AB184: 666.54 | AG184: 0 | AH184: 0 | AI184: 0 | BC184: =IFERROR(IF(OR($E$11=Resumen!$N$6,$E$8=Resumen!$N$6),Amortización!AY184*0.16,0),"") -> 0
C185: 165 | D185: 998539.2072 | E185: 23065.53404 | F185: 8154.736859 | G185: =IF(D185="","",L184*Resumen!$L$86/1000) -> 439.3572512 | H185: 666.54 | I185: =IF($E$16=$V$1,0,IF(D185="","",Amortización!$AE$14)) -> 0 | J185: =IFERROR(IF(OR($E$11=Resumen!$N$6,$E$8=Resumen!$N$6),Amortización!F185*0.16,0),"") -> 0 | K185: 32326.16815 | L185: 975473.6732 | M185: 0 | N185: 0 | O185: 0 | P185: 0 | R185: 0.098 | T185: 165 | U185: 32234.2316 | V185: 32234.2316 | X185: 1.277216123 | Y185: 0 | AB185: 666.54 | AG185: 0 | AH185: 0 | AI185: 0 | BC185: =IFERROR(IF(OR($E$11=Resumen!$N$6,$E$8=Resumen!$N$6),Amortización!AY185*0.16,0),"") -> 0
C186: 166 | D186: 975473.6732 | E186: 23253.90257 | F186: 7966.368331 | G186: =IF(D186="","",L185*Resumen!$L$86/1000) -> 429.2084162 | H186: 666.54 | I186: =IF($E$16=$V$1,0,IF(D186="","",Amortización!$AE$14)) -> 0 | J186: =IFERROR(IF(OR($E$11=Resumen!$N$6,$E$8=Resumen!$N$6),Amortización!F186*0.16,0),"") -> 0 | K186: 32316.01932 | L186: 947219.7706 | M186: 0 | N186: 0 | O186: 0 | P186: 0 | Q186: =IF(OR(L185=0,L185=""),"",IF(E186>=D186,0,$E$17*10%)) -> 5000 | R186: 0.098 | T186: 166 | U186: 37224.08276 | V186: 37224.08276 | X186: 1.277216123 | Y186: 0 | AB186: 666.54 | AG186: 0 | AH186: 0 | AI186: 0 | BC186: =IFERROR(IF(OR($E$11=Resumen!$N$6,$E$8=Resumen!$N$6),Amortización!AY186*0.16,0),"") -> 0
C187: 167 | D187: 947219.7706 | E187: 23484.64277 | F187: 7735.628127 | G187: =IF(D187="","",L186*Resumen!$L$86/1000) -> 416.7766991 | H187: 666.54 | I187: =IF($E$16=$V$1,0,IF(D187="","",Amortización!$AE$14)) -> 0 | J187: =IFERROR(IF(OR($E$11=Resumen!$N$6,$E$8=Resumen!$N$6),Amortización!F187*0.16,0),"") -> 0 | K187: 32303.5876 | L187: 923735.1278 | M187: 0 | N187: 0 | O187: 0 | P187: 0 | R187: 0.098 | T187: 167 | U187: 32211.65105 | V187: 32211.65105 | X187: 1.277216123 | Y187: 0 | AB187: 666.54 | AG187: 0 | AH187: 0 | AI187: 0 | BC187: =IFERROR(IF(OR($E$11=Resumen!$N$6,$E$8=Resumen!$N$6),Amortización!AY187*0.16,0),"") -> 0
C188: 168 | D188: 923735.1278 | E188: 23676.43402 | F188: 7543.836877 | G188: =IF(D188="","",L187*Resumen!$L$86/1000) -> 406.4434562 | H188: 666.54 | I188: =IF($E$16=$V$1,0,IF(D188="","",Amortización!$AE$14)) -> 0 | J188: =IFERROR(IF(OR($E$11=Resumen!$N$6,$E$8=Resumen!$N$6),Amortización!F188*0.16,0),"") -> 0 | K188: 32293.25436 | L188: 895058.6938 | M188: 0 | N188: 0 | O188: 0 | P188: 0 | Q188: =IF(OR(L187=0,L187=""),"",IF(E188>=D188,0,$E$17*10%)) -> 5000 | R188: 0.098 | T188: 168 | U188: 37201.3178 | V188: 37201.3178 | X188: 1.277216123 | Y188: 0 | AB188: 666.54 | AG188: 0 | AH188: 0 | AI188: 0 | BC188: =IFERROR(IF(OR($E$11=Resumen!$N$6,$E$8=Resumen!$N$6),Amortización!AY188*0.16,0),"") -> 0
C189: 169 | D189: 895058.6938 | E189: 24503.81005 | F189: 7309.645999 | G189: =IF(D189="","",L188*Resumen!$L$86/1000) -> 393.8258253 | H189: 666.54 | I189: =IF($E$16=$V$1,0,IF(D189="","",Amortización!$AE$14)) -> 0 | J189: =IFERROR(IF(OR($E$11=Resumen!$N$6,$E$8=Resumen!$N$6),Amortización!F189*0.16,0),"") -> 0 | K189: 32873.82187 | L189: 870554.8838 | M189: 0 | N189: 0 | O189: 0 | P189: 0 | R189: 0.098 | T189: 169 | U189: 32781.88532 | V189: 32781.88532 | X189: 1.301483229 | Y189: 0 | AB189: 666.54 | AG189: 0 | AH189: 0 | AI189: 0 | BC189: =IFERROR(IF(OR($E$11=Resumen!$N$6,$E$8=Resumen!$N$6),Amortización!AY189*0.16,0),"") -> 0
C190: 170 | D190: 870554.8838 | E190: 24703.9245 | F190: 7109.531551 | G190: =IF(D190="","",L189*Resumen!$L$86/1000) -> 383.0441489 | H190: 666.54 | I190: =IF($E$16=$V$1,0,IF(D190="","",Amortización!$AE$14)) -> 0 | J190: =IFERROR(IF(OR($E$11=Resumen!$N$6,$E$8=Resumen!$N$6),Amortización!F190*0.16,0),"") -> 0 | K190: 32863.0402 | L190: 840850.9593 | M190: 0 | N190: 0 | O190: 0 | P190: 0 | Q190: =IF(OR(L189=0,L189=""),"",IF(E190>=D190,0,$E$17*10%)) -> 5000 | R190: 0.098 | T190: 170 | U190: 37771.10364 | V190: 37771.10364 | X190: 1.301483229 | Y190: 0 | AB190: 666.54 | AG190: 0 | AH190: 0 | AI190: 0 | BC190: =IFERROR(IF(OR($E$11=Resumen!$N$6,$E$8=Resumen!$N$6),Amortización!AY190*0.16,0),"") -> 0
C191: 171 | D191: 840850.9593 | E191: 24946.50655 | F191: 6866.949501 | G191: =IF(D191="","",L190*Resumen!$L$86/1000) -> 369.9744221 | H191: 666.54 | I191: =IF($E$16=$V$1,0,IF(D191="","",Amortización!$AE$14)) -> 0 | J191: =IFERROR(IF(OR($E$11=Resumen!$N$6,$E$8=Resumen!$N$6),Amortización!F191*0.16,0),"") -> 0 | K191: 32849.97047 | L191: 815904.4527 | M191: 0 | N191: 0 | O191: 0 | P191: 0 | R191: 0.098 | T191: 171 | U191: 32758.03392 | V191: 32758.03392 | X191: 1.301483229 | Y191: 0 | AB191: 666.54 | AG191: 0 | AH191: 0 | AI191: 0 | BC191: =IFERROR(IF(OR($E$11=Resumen!$N$6,$E$8=Resumen!$N$6),Amortización!AY191*0.16,0),"") -> 0
C192: 172 | D192: 815904.4527 | E192: 25150.23635 | F192: 6663.219697 | G192: =IF(D192="","",L191*Resumen!$L$86/1000) -> 358.9979592 | H192: 666.54 | I192: =IF($E$16=$V$1,0,IF(D192="","",Amortización!$AE$14)) -> 0 | J192: =IFERROR(IF(OR($E$11=Resumen!$N$6,$E$8=Resumen!$N$6),Amortización!F192*0.16,0),"") -> 0 | K192: 32838.99401 | L192: 785754.2164 | M192: 0 | N192: 0 | O192: 0 | P192: 0 | Q192: =IF(OR(L191=0,L191=""),"",IF(E192>=D192,0,$E$17*10%)) -> 5000 | R192: 0.098 | T192: 172 | U192: 37747.05745 | V192: 37747.05745 | X192: 1.301483229 | Y192: 0 | AB192: 666.54 | AG192: 0 | AH192: 0 | AI192: 0 | BC192: =IFERROR(IF(OR($E$11=Resumen!$N$6,$E$8=Resumen!$N$6),Amortización!AY192*0.16,0),"") -> 0
C193: 173 | D193: 785754.2164 | E193: 25396.46328 | F193: 6416.992767 | G193: =IF(D193="","",L192*Resumen!$L$86/1000) -> 345.7318552 | H193: 666.54 | I193: =IF($E$16=$V$1,0,IF(D193="","",Amortización!$AE$14)) -> 0 | J193: =IFERROR(IF(OR($E$11=Resumen!$N$6,$E$8=Resumen!$N$6),Amortización!F193*0.16,0),"") -> 0 | K193: 32825.7279 | L193: 760357.7531 | M193: 0 | N193: 0 | O193: 0 | P193: 0 | R193: 0.098 | T193: 173 | U193: 32733.79135 | V193: 32733.79135 | X193: 1.301483229 | Y193: 0 | AB193: 666.54 | AG193: 0 | AH193: 0 | AI193: 0 | BC193: =IFERROR(IF(OR($E$11=Resumen!$N$6,$E$8=Resumen!$N$6),Amortización!AY193*0.16,0),"") -> 0
C194: 174 | D194: 760357.7531 | E194: 25603.86773 | F194: 6209.588317 | G194: =IF(D194="","",L193*Resumen!$L$86/1000) -> 334.5574114 | H194: 666.54 | I194: =IF($E$16=$V$1,0,IF(D194="","",Amortización!$AE$14)) -> 0 | J194: =IFERROR(IF(OR($E$11=Resumen!$N$6,$E$8=Resumen!$N$6),Amortización!F194*0.16,0),"") -> 0 | K194: 32814.55346 | L194: 729753.8854 | M194: 0 | N194: 0 | O194: 0 | P194: 0 | Q194: =IF(OR(L193=0,L193=""),"",IF(E194>=D194,0,$E$17*10%)) -> 5000 | R194: 0.098 | T194: 174 | U194: 37722.61691 | V194: 37722.61691 | X194: 1.301483229 | Y194: 0 | AB194: 666.54 | AG194: 0 | AH194: 0 | AI194: 0 | BC194: =IFERROR(IF(OR($E$11=Resumen!$N$6,$E$8=Resumen!$N$6),Amortización!AY194*0.16,0),"") -> 0
C195: 175 | D195: 729753.8854 | E195: 25853.79932 | F195: 5959.65673 | G195: =IF(D195="","",L194*Resumen!$L$86/1000) -> 321.0917096 | H195: 666.54 | I195: =IF($E$16=$V$1,0,IF(D195="","",Amortización!$AE$14)) -> 0 | J195: =IFERROR(IF(OR($E$11=Resumen!$N$6,$E$8=Resumen!$N$6),Amortización!F195*0.16,0),"") -> 0 | K195: 32801.08776 | L195: 703900.086 | M195: 0 | N195: 0 | O195: 0 | P195: 0 | R195: 0.098 | T195: 175 | U195: 32709.1512 | V195: 32709.1512 | X195: 1.301483229 | Y195: 0 | AB195: 666.54 | AG195: 0 | AH195: 0 | AI195: 0 | BC195: =IFERROR(IF(OR($E$11=Resumen!$N$6,$E$8=Resumen!$N$6),Amortización!AY195*0.16,0),"") -> 0
C196: 176 | D196: 703900.086 | E196: 26064.93868 | F196: 5748.517369 | G196: =IF(D196="","",L195*Resumen!$L$86/1000) -> 309.7160379 | H196: 666.54 | I196: =IF($E$16=$V$1,0,IF(D196="","",Amortización!$AE$14)) -> 0 | J196: =IFERROR(IF(OR($E$11=Resumen!$N$6,$E$8=Resumen!$N$6),Amortización!F196*0.16,0),"") -> 0 | K196: 32789.71208 | L196: 672835.1474 | M196: 0 | N196: 0 | O196: 0 | P196: 0 | Q196: =IF(OR(L195=0,L195=""),"",IF(E196>=D196,0,$E$17*10%)) -> 5000 | R196: 0.098 | T196: 176 | U196: 37697.77553 | V196: 37697.77553 | X196: 1.301483229 | Y196: 0 | AB196: 666.54 | AG196: 0 | AH196: 0 | AI196: 0 | BC196: =IFERROR(IF(OR($E$11=Resumen!$N$6,$E$8=Resumen!$N$6),Amortización!AY196*0.16,0),"") -> 0
C197: 177 | D197: 672835.1474 | E197: 26318.63568 | F197: 5494.82037 | G197: =IF(D197="","",L196*Resumen!$L$86/1000) -> 296.0474648 | H197: 666.54 | I197: =IF($E$16=$V$1,0,IF(D197="","",Amortización!$AE$14)) -> 0 | J197: =IFERROR(IF(OR($E$11=Resumen!$N$6,$E$8=Resumen!$N$6),Amortización!F197*0.16,0),"") -> 0 | K197: 32776.04351 | L197: 646516.5117 | M197: 0 | N197: 0 | O197: 0 | P197: 0 | R197: 0.098 | T197: 177 | U197: 32684.10696 | V197: 32684.10696 | X197: 1.301483229 | Y197: 0 | AB197: 666.54 | AG197: 0 | AH197: 0 | AI197: 0 | BC197: =IFERROR(IF(OR($E$11=Resumen!$N$6,$E$8=Resumen!$N$6),Amortización!AY197*0.16,0),"") -> 0
C198: 178 | D198: 646516.5117 | E198: 26533.5712 | F198: 5279.884845 | G198: =IF(D198="","",L197*Resumen!$L$86/1000) -> 284.4672651 | H198: 666.54 | I198: =IF($E$16=$V$1,0,IF(D198="","",Amortización!$AE$14)) -> 0 | J198: =IFERROR(IF(OR($E$11=Resumen!$N$6,$E$8=Resumen!$N$6),Amortización!F198*0.16,0),"") -> 0 | K198: 32764.46331 | L198: 614982.9405 | M198: 0 | N198: 0 | O198: 0 | P198: 0 | Q198: =IF(OR(L197=0,L197=""),"",IF(E198>=D198,0,$E$17*10%)) -> 5000 | R198: 0.098 | T198: 178 | U198: 37672.52676 | V198: 37672.52676 | X198: 1.301483229 | Y198: 0 | AB198: 666.54 | AG198: 0 | AH198: 0 | AI198: 0 | BC198: =IFERROR(IF(OR($E$11=Resumen!$N$6,$E$8=Resumen!$N$6),Amortización!AY198*0.16,0),"") -> 0
C199: 179 | D199: 614982.9405 | E199: 26791.09537 | F199: 5022.360681 | G199: =IF(D199="","",L198*Resumen!$L$86/1000) -> 270.5924938 | H199: 666.54 | I199: =IF($E$16=$V$1,0,IF(D199="","",Amortización!$AE$14)) -> 0 | J199: =IFERROR(IF(OR($E$11=Resumen!$N$6,$E$8=Resumen!$N$6),Amortización!F199*0.16,0),"") -> 0 | K199: 32750.58854 | L199: 588191.8451 | M199: 0 | N199: 0 | O199: 0 | P199: 0 | R199: 0.098 | T199: 179 | U199: 32658.65199 | V199: 32658.65199 | X199: 1.301483229 | Y199: 0 | AB199: 666.54 | AG199: 0 | AH199: 0 | AI199: 0 | BC199: =IFERROR(IF(OR($E$11=Resumen!$N$6,$E$8=Resumen!$N$6),Amortización!AY199*0.16,0),"") -> 0
C200: 180 | D200: 588191.8451 | E200: 27009.88931 | F200: 4803.566735 | G200: =IF(D200="","",L199*Resumen!$L$86/1000) -> 258.8044119 | H200: 666.54 | I200: =IF($E$16=$V$1,0,IF(D200="","",Amortización!$AE$14)) -> 0 | J200: =IFERROR(IF(OR($E$11=Resumen!$N$6,$E$8=Resumen!$N$6),Amortización!F200*0.16,0),"") -> 0 | K200: 32738.80046 | L200: 556181.9558 | M200: 0 | N200: 0 | O200: 0 | P200: 0 | Q200: =IF(OR(L199=0,L199=""),"",IF(E200>=D200,0,$E$17*10%)) -> 5000 | R200: 0.098 | T200: 180 | U200: 37646.86391 | V200: 37646.86391 | X200: 1.301483229 | Y200: 0 | AB200: 666.54 | AG200: 0 | AH200: 0 | AI200: 0 | BC200: =IFERROR(IF(OR($E$11=Resumen!$N$6,$E$8=Resumen!$N$6),Amortización!AY200*0.16,0),"") -> 0
C201: 181 | D201: 556181.9558 | E201: 27875.75907 | F201: 4542.152639 | G201: =IF(D201="","",L200*Resumen!$L$86/1000) -> 244.7200606 | H201: 666.54 | I201: =IF($E$16=$V$1,0,IF(D201="","",Amortización!$AE$14)) -> 0 | J201: =IFERROR(IF(OR($E$11=Resumen!$N$6,$E$8=Resumen!$N$6),Amortización!F201*0.16,0),"") -> 0 | K201: 33329.17177 | L201: 528306.1967 | M201: 0 | N201: 0 | O201: 0 | P201: 0 | R201: 0.098 | T201: 181 | U201: 33237.23522 | V201: 33237.23522 | X201: 1.32621141 | Y201: 0 | AB201: 666.54 | AG201: 0 | AH201: 0 | AI201: 0 | BC201: =IFERROR(IF(OR($E$11=Resumen!$N$6,$E$8=Resumen!$N$6),Amortización!AY201*0.16,0),"") -> 0
... 126 more rows

Sheet Oferta Vinculante
C2: Oferta Vinculante
D5: Oferta Pago Fijo | F5: Oferta Pago Bajo
